﻿Trans Date,Functional Name,TransNo,Subjective,Account,Account Name,Total,SuppID,Supplier Name,Invoice
04/01/2016,Finance,3180527,Equipment and supplies,50101,"Books, Stationery & Office Equipment",£873.75,264,Cipfa,3114132
04/01/2016,Transport and Operational Support,3180526,Capital Spend,CV303,Select Pumping Appliance,£988.70,607,John Dennis Coachbuilders Ltd,40558
04/01/2016,Transport and Operational Support,3180590,Capital Spend,CV303,Select Pumping Appliance,£988.70,607,John Dennis Coachbuilders Ltd,40560
04/01/2016,Transport and Operational Support,3180593,Capital Spend,CV303,Select Pumping Appliance,£988.70,607,John Dennis Coachbuilders Ltd,40559
04/01/2016,Corporate Management & Member Services,3180606,"Salaries, allowances and on-costs",450,Service Support Staff Agency Staff,£333.00,762,New Appointments Group Ltd,216231
04/01/2016,Facilities Stores & Procurement,3180631,"Repairs, maintenance and other costs",30400,Water services,£455.39,940,Southern Water,70109053393
04/01/2016,Premises & Programme Management,3180539,"Repairs, maintenance and other costs",30100,Premises Repairs and Maintenance,"£1,840.50",1132,Kent Commercial Services,I2443659
04/01/2016,Training & Development,3180496,Training Expenses,10600,Professional Staff  Exam & Course Fees,£510.19,2573,BPP Professional Education,SIDIS1516951
04/01/2016,Facilities Stores & Procurement,3180643,Utility costs,30201,Energy Costs - Electricity,£543.99,2590,KCS Laser,E3816813
04/01/2016,Facilities Stores & Procurement,3180639,Utility costs,30202,Energy Costs - Gas,£309.20,2590,KCS Laser,G3816448
04/01/2016,Training & Development,3180554,Training Expenses,10500,Operational Staff Exam & Course Fees,"£1,890.00",3324,OPP Limited,INV0590169
04/01/2016,Training & Development,3180556,Training Expenses,10600,Professional Staff  Exam & Course Fees,"£1,890.00",3324,OPP Limited,INV0590170
04/01/2016,Human Resources,3180640,Fees and services,51300,Professional Fees,"£5,498.96",3675,Edenred (UK Group) Ltd,IN118953301
04/01/2016,Transport and Operational Support,3180628,Vehicle purchase and running costs,40301,Vehicle fuel,"£7,643.40",3834,Allstar Business Solutions Ltd,E2005926204
04/01/2016,Information Systems & communications,3180613,Communications and computing,52302,Computer Software,"£1,275.00",3892,Aligned Assets,IN9853
04/01/2016,Corporate Management & Member Services,3180538,Fees and services,51200,External Audit Fee,"£8,902.00",3975,Grant Thornton UK LLP,8461812
04/01/2016,Premises & Programme Management,3180582,"Repairs, maintenance and other costs",30100,Premises Repairs and Maintenance,"£2,713.79",4083,Lanes Group PLC,INV00916515
04/01/2016,Fire Fighting and Rescue Services,3180564,Equipment and supplies,50803,External Refreshments at Meetings,£262.50,4171,Thyme 2 Dine Catering Services,10516
04/01/2016,Premises & Programme Management,3180608,"Repairs, maintenance and other costs",30100,Premises Repairs and Maintenance,£281.79,4211,P & I Generators Ltd,16796
04/01/2016,Premises & Programme Management,3180609,"Repairs, maintenance and other costs",30100,Premises Repairs and Maintenance,£558.03,4211,P & I Generators Ltd,16797
04/01/2016,Premises & Programme Management,3180610,"Repairs, maintenance and other costs",30100,Premises Repairs and Maintenance,"£1,322.02",4211,P & I Generators Ltd,16798
04/01/2016,Insurance Services,3180616,Vehicle purchase and running costs,40303,Vehicle Insurance Excess,"£2,421.80",4221,"Kent County Council, CTS Vehicle Services",2993
04/01/2016,Training & Development,3180620,Training Expenses,10500,Operational Staff Exam & Course Fees,£550.00,4322,RSGB Limited,6577
04/01/2016,Training & Development,3180620,Training Expenses,10600,Professional Staff  Exam & Course Fees,£940.00,4322,RSGB Limited,6577
05/01/2016,Transport and Operational Support,3180671,Capital Spend,CV303,Select Pumping Appliance,"£58,862.00",607,John Dennis Coachbuilders Ltd,40555
05/01/2016,Information Systems & communications,3180524,Communications and computing,52101,Mobile Telephone Costs,£258.00,4004,Telefonica UK Limited,MT-071-NOV15
05/01/2016,Transport and Operational Support,3180618,Vehicle purchase and running costs,40200,Vehicle Consumables,"£11,660.73",4221,"Kent County Council, CTS Vehicle Services",22991
05/01/2016,Transport and Operational Support,3180618,Vehicle purchase and running costs,40201,Vehicle Maintenance,"£46,010.21",4221,"Kent County Council, CTS Vehicle Services",22991
05/01/2016,Information Systems & communications,3180530,Equipment and supplies,51003,Printing Consumables,"£1,688.32",4236,Ricoh UK Ltd,100412510
05/01/2016,Premises & Programme Management,3180580,Capital Spend,CP101,Building Works,"£3,500.00",4306,Wildwood Media Ltd,247
05/01/2016,Transport and Operational Support,3180576,Equipment and supplies,50900,PPE - Operational,£276.26,122,Arco Group,926298190
05/01/2016,Transport and Operational Support,3180678,Vehicle purchase and running costs,40301,Vehicle fuel,"£6,756.20",2590,KCS Laser,F3816865
05/01/2016,Transport and Operational Support,3180679,Vehicle purchase and running costs,40301,Vehicle fuel,"£7,600.73",2590,KCS Laser,F3816866
05/01/2016,Transport and Operational Support,3180684,Equipment and supplies,50200,Operational Equipment,£349.00,3873,Cromwell,21049493
06/01/2016,Fire Fighting and Rescue Services,6028990,Allowances,225,Retained Compensation Scheme,£454.33,(blank),Sundry Supplier,Impreset
06/01/2016,Transport and Operational Support,6028990,Training Expenses,10600,Professional Staff  Exam & Course Fees,£450.05,(blank),Sundry Supplier,Impreset
06/01/2016,Transport and Operational Support,6028990,Equipment and supplies,50200,Operational Equipment,£418.90,(blank),Sundry Supplier,Impreset
06/01/2016,Transport and Operational Support,6028990,Equipment and supplies,50803,External Refreshments at Meetings,£607.00,(blank),Sundry Supplier,Impreset
06/01/2016,Finance,3180790,Fees and services,52700,Subscriptions to Organisations,£499.50,101,Alarm,26163
06/01/2016,Transport and Operational Support,3180641,Equipment and supplies,50200,Operational Equipment,"£1,476.91",180,BOC Ltd,3033807183
06/01/2016,Transport and Operational Support,3180384,Equipment and supplies,50200,Operational Equipment,"£6,417.00",607,John Dennis Coachbuilders Ltd,40524
06/01/2016,Transport and Operational Support,3180735,Equipment and supplies,50200,Operational Equipment,"£6,417.00",607,John Dennis Coachbuilders Ltd,40556
06/01/2016,Transport and Operational Support,3180736,Equipment and supplies,50200,Operational Equipment,"£12,834.00",607,John Dennis Coachbuilders Ltd,40557
06/01/2016,Transport and Operational Support,3180384,Capital Spend,CV303,Select Pumping Appliance,"£52,445.00",607,John Dennis Coachbuilders Ltd,40524
06/01/2016,Transport and Operational Support,3180735,Capital Spend,CV303,Select Pumping Appliance,"£52,445.00",607,John Dennis Coachbuilders Ltd,40556
06/01/2016,Transport and Operational Support,3180736,Capital Spend,CV303,Select Pumping Appliance,"£46,028.00",607,John Dennis Coachbuilders Ltd,40557
06/01/2016,Fire Fighting and Rescue Services,3180772,"Salaries, allowances and on-costs",450,Service Support Staff Agency Staff,£454.28,762,New Appointments Group Ltd,216283
06/01/2016,Training & Development,3180787,Equipment and supplies,50400,Training Equipment,"£1,374.00",874,Rother Valley Timber Ltd,RI249746
06/01/2016,Information Systems & communications,3180670,Communications and computing,52101,Mobile Telephone Costs,"£1,489.86",1083,Wireless Logic Ltd,AP/530086
06/01/2016,Transport and Operational Support,3180775,Utility costs,30300,External Rent & Room Hire,£328.00,1170,Kent County Council,OH46024
06/01/2016,Facilities Stores & Procurement,3180706,Fees and services,51300,Professional Fees,"£1,323.00",1170,Kent County Council,600011981
06/01/2016,Facilities Stores & Procurement,3180707,Fees and services,51300,Professional Fees,"£8,793.00",1170,Kent County Council,600011989
06/01/2016,Premises & Programme Management,3180695,Fees and services,51300,Professional Fees,£405.00,1170,Kent County Council,600011955
06/01/2016,Premises & Programme Management,3180697,Fees and services,51300,Professional Fees,"£1,710.00",1170,Kent County Council,600011960
06/01/2016,Premises & Programme Management,3180704,Fees and services,51300,Professional Fees,"£1,854.00",1170,Kent County Council,600011961
06/01/2016,Premises & Programme Management,3180712,Fees and services,51300,Professional Fees,"£3,074.73",1170,Kent County Council,600011977
06/01/2016,Premises & Programme Management,3180717,Fees and services,51300,Professional Fees,"£8,230.59",1170,Kent County Council,600011976
06/01/2016,Premises & Programme Management,3180719,Fees and services,51300,Professional Fees,"£2,244.00",1170,Kent County Council,600011985
06/01/2016,Premises & Programme Management,3180587,"Repairs, maintenance and other costs",30100,Premises Repairs and Maintenance,£480.00,2037,Hag Shutters & Grilles Ltd,INV50330
06/01/2016,Transport and Operational Support,3180509,Equipment and supplies,50300,Hydrants - Maintenance,£963.98,2092,South East Water Ltd,INV0173262
06/01/2016,Transport and Operational Support,3180510,Equipment and supplies,50300,Hydrants - Maintenance,£866.90,2092,South East Water Ltd,INV0173261
06/01/2016,Transport and Operational Support,3180511,Equipment and supplies,50300,Hydrants - Maintenance,£866.90,2092,South East Water Ltd,INV0173260
06/01/2016,Transport and Operational Support,3180512,Equipment and supplies,50300,Hydrants - Maintenance,£963.98,2092,South East Water Ltd,INV0173259
06/01/2016,Transport and Operational Support,3180513,Equipment and supplies,50300,Hydrants - Maintenance,£963.98,2092,South East Water Ltd,INV0173258
06/01/2016,Transport and Operational Support,3180514,Equipment and supplies,50300,Hydrants - Maintenance,£963.98,2092,South East Water Ltd,INV0173257
06/01/2016,Transport and Operational Support,3180515,Equipment and supplies,50300,Hydrants - Maintenance,£963.98,2092,South East Water Ltd,INV0173256
06/01/2016,Facilities Stores & Procurement,3180757,Utility costs,30201,Energy Costs - Electricity,£359.24,2590,KCS Laser,E3816918
06/01/2016,Direct Pension Costs,3180791,Direct pension costs,20100,Service Support Staff Pension,"£13,000.00",3577,KCC re Kent Pension Fund,ERSCOST/KLB
06/01/2016,Direct Pension Costs,3180792,Direct pension costs,20100,Service Support Staff Pension,"£15,500.00",3577,KCC re Kent Pension Fund,ERSCOST/CM
06/01/2016,Community Safety,3180794,Equipment and supplies,50200,Operational Equipment,£805.02,3686,L Whitaker & Sons (1983) Ltd,69399
06/01/2016,Transport and Operational Support,3180782,Equipment and supplies,50803,External Refreshments at Meetings,£342.00,3696,Frendz Ltd,TR-8345
06/01/2016,Facilities Stores & Procurement,3180621,"Repairs, maintenance and other costs",30602,Security Charges,£744.38,3862,Ward Security (Response) Ltd,34108
06/01/2016,Facilities Stores & Procurement,3180685,"Repairs, maintenance and other costs",30104,Grounds maintenance,£969.83,4063,Mark Walker (Grounds Maintenance) Ltd,121645
06/01/2016,Facilities Stores & Procurement,3180601,"Repairs, maintenance and other costs",30100,Premises Repairs and Maintenance,£351.92,4152,A.M Security Ltd T/A A.M Fire & Security Group,225749
06/01/2016,Transport and Operational Support,3180676,"Salaries, allowances and on-costs",450,Service Support Staff Agency Staff,£435.50,4185,HR GO Recruitment Ltd,619876
06/01/2016,Premises & Programme Management,3180688,"Repairs, maintenance and other costs",30100,Premises Repairs and Maintenance,£773.30,4211,P & I Generators Ltd,16847
06/01/2016,Facilities Stores & Procurement,3180770,"Repairs, maintenance and other costs",30400,Water services,£518.99,4243,South East Water Ltd trading as South East Water Choices,10454820-1 Bill No 13
06/01/2016,Facilities Stores & Procurement,3180771,"Repairs, maintenance and other costs",30400,Water services,"£1,071.04",4243,South East Water Ltd trading as South East Water Choices,10454818-6 Bill No 14
06/01/2016,Premises & Programme Management,3180723,"Repairs, maintenance and other costs",30100,Premises Repairs and Maintenance,"£72,164.33",4301,Gransden Construction Limited,INV0563/KFR230
07/01/2016,Transport and Operational Support,3180737,Capital Spend,CV303,Select Pumping Appliance,"£56,673.00",607,John Dennis Coachbuilders Ltd,40570
07/01/2016,Transport and Operational Support,3180799,Equipment and supplies,50803,External Refreshments at Meetings,£260.57,1170,Kent County Council,400012912
07/01/2016,Human Resources,3180701,Fees and services,51300,Professional Fees,"£4,950.00",1170,Kent County Council,600011988
07/01/2016,Human Resources,3180710,Fees and services,51300,Professional Fees,"£6,777.00",1170,Kent County Council,600011962
07/01/2016,Premises & Programme Management,3180703,Fees and services,51300,Professional Fees,"£1,125.00",1170,Kent County Council,600011959
07/01/2016,Premises & Programme Management,3180716,Fees and services,51300,Professional Fees,"£1,754.00",1170,Kent County Council,600011957
07/01/2016,Technical Fire Safety,3180705,Fees and services,51300,Professional Fees,"£1,629.00",1170,Kent County Council,600011991
07/01/2016,Training & Development,3180797,Other supplies and services,52701,Grants and Contributions,"£1,779.00",1723,Buckinghamshire & Milton Keynes Fire Authority,2530000394
07/01/2016,Premises & Programme Management,3180796,Capital Spend,CP101,Building Works,"£3,360.00",2407,C Barber,1979
07/01/2016,Information Systems & communications,3180784,Communications and computing,52304,Computer Technical Services,"£1,749.00",3359,Kronos,50001803
07/01/2016,Facilities Stores & Procurement,3180766,"Repairs, maintenance and other costs",30500,Contract Cleaning,"£8,992.39",4041,Grade One Commercial Cleaning Services Ltd,129918
07/01/2016,Premises & Programme Management,3180776,"Repairs, maintenance and other costs",30100,Premises Repairs and Maintenance,£350.00,4176,PBA Consulting,6004/14144.INV.04
07/01/2016,Facilities Stores & Procurement,3180764,"Repairs, maintenance and other costs",30500,Contract Cleaning,"£3,929.60",4241,Cordant Cleaning Ltd,C0051648
07/01/2016,"Corporate Policy, Communications & Marketing",3180774,Fees and services,51300,Professional Fees,£450.00,4246,Gorkana Group Ltd,GB_40643
07/01/2016,Transport and Operational Support,3180798,Equipment and supplies,50200,Operational Equipment,£422.20,4327,ITW Envopak,156783
08/01/2016,Transport and Operational Support,3180462,Communications and computing,52303,Computer Consumables,"£8,085.00",1197,Freight Transport Association Ltd,300116845
08/01/2016,Transport and Operational Support,3180464,Communications and computing,52303,Computer Consumables,"£8,085.00",1197,Freight Transport Association Ltd,300116847
08/01/2016,Transport and Operational Support,3180465,Communications and computing,52303,Computer Consumables,"£8,085.00",1197,Freight Transport Association Ltd,300116844
08/01/2016,Transport and Operational Support,3180807,Vehicle purchase and running costs,40200,Vehicle Consumables,£271.00,1213,Scania (Great Britain) Ltd,24597708#
08/01/2016,Facilities Stores & Procurement,3179826,Equipment and supplies,50910,Workwear and uniform,£554.85,4090,MWUK Limited T/A Dimensions,OLSINV/03076697
08/01/2016,Facilities Stores & Procurement,3180828,Equipment and supplies,50910,Workwear and uniform,£408.25,4090,MWUK Limited T/A Dimensions,OLSINV/03141911
11/01/2016,Facilities Stores & Procurement,3180824,"Repairs, maintenance and other costs",30400,Water services,£473.74,940,Southern Water,7.11001E+11
11/01/2016,Transport and Operational Support,3180829,Vehicle purchase and running costs,40200,Vehicle Consumables,£409.12,1020,MC Truck & Bus Ltd,3024798-03
11/01/2016,Facilities Stores & Procurement,3180819,Utility costs,30201,Energy Costs - Electricity,£255.44,2590,KCS Laser,E3818662
11/01/2016,Facilities Stores & Procurement,3180822,Utility costs,30201,Energy Costs - Electricity,£288.67,2590,KCS Laser,E3818673
11/01/2016,Transport and Operational Support,3180805,Equipment and supplies,50205,Operational Equipment Maintenance,£614.10,3894,Survitec Service and Distribution,CD20161000139
11/01/2016,Facilities Stores & Procurement,3180495,"Repairs, maintenance and other costs",30500,Contract Cleaning,"£3,239.06",4042,Superclean Services Wothorpe Limited,68380
11/01/2016,Community Safety,3179670,Equipment and supplies,50910,Workwear and uniform,"£1,237.60",4090,MWUK Limited T/A Dimensions,OLSINV/03076900
11/01/2016,Facilities Stores & Procurement,3180841,Equipment and supplies,50910,Workwear and uniform,£509.60,4090,MWUK Limited T/A Dimensions,OLSINV/03141895
11/01/2016,Facilities Stores & Procurement,3180851,Equipment and supplies,50910,Workwear and uniform,£270.19,4090,MWUK Limited T/A Dimensions,OLSINV/03141925
11/01/2016,Facilities Stores & Procurement,3180854,Equipment and supplies,50910,Workwear and uniform,£354.15,4090,MWUK Limited T/A Dimensions,OLSINV/03141849
11/01/2016,Facilities Stores & Procurement,3180878,Equipment and supplies,50910,Workwear and uniform,£452.50,4090,MWUK Limited T/A Dimensions,OLSINV/03141770
11/01/2016,Facilities Stores & Procurement,3180879,Equipment and supplies,50910,Workwear and uniform,£311.92,4090,MWUK Limited T/A Dimensions,OLSINV/03141811
11/01/2016,Facilities Stores & Procurement,3180890,Equipment and supplies,50910,Workwear and uniform,£327.60,4090,MWUK Limited T/A Dimensions,OLSINV/03141782
11/01/2016,Facilities Stores & Procurement,3180891,Equipment and supplies,50910,Workwear and uniform,£303.36,4090,MWUK Limited T/A Dimensions,OLSINV/03141783
11/01/2016,Facilities Stores & Procurement,3180910,Equipment and supplies,50910,Workwear and uniform,£367.83,4090,MWUK Limited T/A Dimensions,OLSINV/03141823
11/01/2016,Facilities Stores & Procurement,3180917,Equipment and supplies,50910,Workwear and uniform,£364.00,4090,MWUK Limited T/A Dimensions,OLSINV/03141810
11/01/2016,Facilities Stores & Procurement,3180921,Equipment and supplies,50910,Workwear and uniform,£394.75,4090,MWUK Limited T/A Dimensions,OLSINV/03141815
11/01/2016,Facilities Stores & Procurement,3180948,Equipment and supplies,50910,Workwear and uniform,£291.20,4090,MWUK Limited T/A Dimensions,OLSINV/03141854
11/01/2016,Facilities Stores & Procurement,3180956,Equipment and supplies,50910,Workwear and uniform,£254.80,4090,MWUK Limited T/A Dimensions,OLSINV/03141862
11/01/2016,Facilities Stores & Procurement,3180957,Equipment and supplies,50910,Workwear and uniform,£364.00,4090,MWUK Limited T/A Dimensions,OLSINV/03141863
11/01/2016,Facilities Stores & Procurement,3180964,Equipment and supplies,50910,Workwear and uniform,£371.88,4090,MWUK Limited T/A Dimensions,OLSINV/03141869
11/01/2016,Facilities Stores & Procurement,3180980,Equipment and supplies,50910,Workwear and uniform,£273.04,4090,MWUK Limited T/A Dimensions,OLSINV/03141891
12/01/2016,Transport and Operational Support,3181065,Equipment and supplies,50101,"Books, Stationery & Office Equipment","£2,104.37",477,Geographers´ A-Z Map Co Ltd,1032013
12/01/2016,Technical Fire Safety,3181066,Equipment and supplies,50600,"Filming, Photography & Audiovisual","£1,324.27",1132,Kent Commercial Services,I2450611
12/01/2016,Information Systems & communications,3181057,Communications and computing,52300,Computer hardware,"£1,765.52",1690,Specialist Computer Centres PLC,OP/M102269
12/01/2016,Information Systems & communications,3181058,Communications and computing,52300,Computer hardware,"£19,215.00",1690,Specialist Computer Centres PLC,OP/M100368
12/01/2016,Information Systems & communications,3181023,Communications and computing,52102,Pagers and Alerters,"£2,360.00",2249,Smye-Rumsby Ltd,145818
12/01/2016,Facilities Stores & Procurement,3181024,Utility costs,30202,Energy Costs - Gas,£713.72,2590,KCS Laser,G3819365
12/01/2016,Facilities Stores & Procurement,3181052,"Repairs, maintenance and other costs",30501,Refuse Collection and waste disposal,"£3,462.14",4045,Viridor Waste Management Ltd,0001507506AB
12/01/2016,Facilities Stores & Procurement,3180859,Equipment and supplies,50910,Workwear and uniform,£278.76,4090,MWUK Limited T/A Dimensions,OLSINV/03141838
12/01/2016,Facilities Stores & Procurement,3180976,Equipment and supplies,50910,Workwear and uniform,£414.23,4090,MWUK Limited T/A Dimensions,OLSINV/03141882
12/01/2016,Premises & Programme Management,3180809,"Repairs, maintenance and other costs",30100,Premises Repairs and Maintenance,"£24,225.00",4251,Aluminium Door & Window Solutions Ltd,31122015248
12/01/2016,Premises & Programme Management,3180810,"Repairs, maintenance and other costs",30100,Premises Repairs and Maintenance,"£18,715.00",4251,Aluminium Door & Window Solutions Ltd,30092015247
13/01/2016,Transport and Operational Support,3181063,Vehicle purchase and running costs,40200,Vehicle Consumables,£264.15,153,F G Barnes (Maidstone) Ltd,20312150
13/01/2016,Transport and Operational Support,3181141,Vehicle purchase and running costs,40200,Vehicle Consumables,£546.70,607,John Dennis Coachbuilders Ltd,40579
13/01/2016,Human Resources,3180698,Fees and services,51300,Professional Fees,"£2,142.00",1170,Kent County Council,600011990
13/01/2016,Premises & Programme Management,3180700,Fees and services,51300,Professional Fees,"£1,546.60",1170,Kent County Council,600011958
13/01/2016,Premises & Programme Management,3180718,Fees and services,51300,Professional Fees,£981.00,1170,Kent County Council,600011984
13/01/2016,Premises & Programme Management,3180720,Fees and services,51300,Professional Fees,£387.00,1170,Kent County Council,600011975
13/01/2016,Training & Development,3181082,Fees and services,51300,Professional Fees,£588.50,1170,Kent County Council,600011996
13/01/2016,Premises & Programme Management,3180713,Capital Spend,CN001,Building & Land Purchase,£810.00,1170,Kent County Council,600011964
13/01/2016,Premises & Programme Management,3181033,Capital Spend,CN001,Building & Land Purchase,"£2,151.00",1170,Kent County Council,600012042
13/01/2016,Transport and Operational Support,3181067,Vehicle purchase and running costs,40200,Vehicle Consumables,"£1,336.53",2302,Haynes Ford,16024920
13/01/2016,Transport and Operational Support,3181067,Vehicle purchase and running costs,40201,Vehicle Maintenance,£805.50,2302,Haynes Ford,16024920
13/01/2016,Facilities Stores & Procurement,3181117,Utility costs,30202,Energy Costs - Gas,£342.98,2590,KCS Laser,G3824024
13/01/2016,Facilities Stores & Procurement,3181104,Utility costs,30202,Energy Costs - Gas,£420.16,2590,KCS Laser,G3824009
13/01/2016,Facilities Stores & Procurement,3181110,Utility costs,30202,Energy Costs - Gas,£557.81,2590,KCS Laser,G3824019
13/01/2016,Facilities Stores & Procurement,3181125,Utility costs,30202,Energy Costs - Gas,£568.09,2590,KCS Laser,G3824041
13/01/2016,Facilities Stores & Procurement,3181121,Utility costs,30202,Energy Costs - Gas,£643.72,2590,KCS Laser,G3824038
13/01/2016,Facilities Stores & Procurement,3181128,Utility costs,30202,Energy Costs - Gas,£754.78,2590,KCS Laser,G3824051
13/01/2016,Facilities Stores & Procurement,3181119,Utility costs,30202,Energy Costs - Gas,£810.18,2590,KCS Laser,G3824027
13/01/2016,Facilities Stores & Procurement,3181123,Utility costs,30202,Energy Costs - Gas,£839.24,2590,KCS Laser,G3824031
13/01/2016,Facilities Stores & Procurement,3181105,Utility costs,30202,Energy Costs - Gas,£930.82,2590,KCS Laser,G3824011
13/01/2016,Facilities Stores & Procurement,3181103,Utility costs,30202,Energy Costs - Gas,"£1,015.13",2590,KCS Laser,G3824006
13/01/2016,Facilities Stores & Procurement,3181130,Utility costs,30202,Energy Costs - Gas,"£1,529.64",2590,KCS Laser,G3824059
13/01/2016,Human Resources,3181158,Fees and services,51300,Professional Fees,£840.00,2973,SHL Group Ltd,SI/273518
13/01/2016,Insurance Services,3181041,Fees and services,51300,Professional Fees,£311.75,3583,Intelligent Data Systems (UK) Ltd,24943
13/01/2016,Community Safety,3180686,Equipment and supplies,50200,Operational Equipment,"£1,000.00",3821,Solon Security,SI15011861
13/01/2016,Premises & Programme Management,3181132,"Repairs, maintenance and other costs",30100,Premises Repairs and Maintenance,"£2,050.00",4075,P Allison & Sons Demolition Contractors Ltd,4756
13/01/2016,Premises & Programme Management,3181137,"Repairs, maintenance and other costs",30100,Premises Repairs and Maintenance,"£4,686.00",4114,Datatrack Fuel Systems Ltd,12937
14/01/2016,Transport and Operational Support,3181216,Equipment and supplies,50205,Operational Equipment Maintenance,£488.55,116,Angloco Ltd,OP/I036068
14/01/2016,Information Systems & communications,3180795,Communications and computing,52100,Telephone & Fax Costs,"£2,886.27",201,British Telecom Plc,VP 72855170 M18101 MT
14/01/2016,Transport and Operational Support,3180813,Vehicle purchase and running costs,40200,Vehicle Consumables,£540.00,1020,MC Truck & Bus Ltd,1330299-01
14/01/2016,Information Systems & communications,3181172,Equipment and supplies,51001,Photocopying Contracts,"£1,016.16",1132,Kent Commercial Services,PRCOP0253378
14/01/2016,Facilities Stores & Procurement,3180777,"Repairs, maintenance and other costs",30501,Refuse Collection and waste disposal,£508.00,3271,Initial Medical Services Ltd,50043286
14/01/2016,Community Safety,3181224,Equipment and supplies,50200,Operational Equipment,"£9,450.00",3674,Sprue Safety Products Ltd,1086918
14/01/2016,Transport and Operational Support,3181210,Equipment and supplies,50200,Operational Equipment,"£1,249.25",3915,Capital Safety Group (Northern Europe) Ltd,227052
14/01/2016,Premises & Programme Management,3180783,Capital Spend,CN100,New Build Design fees,"£147,582.22",3926,Pick Everard,33021
14/01/2016,Transport and Operational Support,3181147,Equipment and supplies,50300,Hydrants - Maintenance,£300.00,3949,Affinity Water Ltd,101073466
14/01/2016,Transport and Operational Support,3181148,Equipment and supplies,50300,Hydrants - Maintenance,£300.00,3949,Affinity Water Ltd,101073467
14/01/2016,Information Systems & communications,3180765,Communications and computing,52304,Computer Technical Services,"£14,074.01",4061,Kent Police & Crime Commissioner,1800032292
14/01/2016,Transport and Operational Support,3180765,Capital Spend,CS105,Project Design and Management Fees,"£4,805.30",4061,Kent Police & Crime Commissioner,1800032292
14/01/2016,Facilities Stores & Procurement,3179852,Equipment and supplies,50910,Workwear and uniform,£291.20,4090,MWUK Limited T/A Dimensions,OLSINV/03076767
14/01/2016,Facilities Stores & Procurement,3180962,Equipment and supplies,50910,Workwear and uniform,£407.25,4090,MWUK Limited T/A Dimensions,OLSINV/03141768
14/01/2016,Premises & Programme Management,3181134,"Repairs, maintenance and other costs",30100,Premises Repairs and Maintenance,£775.00,4098,Theobalds (Refurbishment) Ltd,1839
14/01/2016,Premises & Programme Management,3181135,"Repairs, maintenance and other costs",30100,Premises Repairs and Maintenance,"£15,560.10",4098,Theobalds (Refurbishment) Ltd,1838
14/01/2016,Training & Development,3181204,Equipment and supplies,50400,Training Equipment,£330.00,4142,Copart Ltd,107539380
14/01/2016,Premises & Programme Management,3181217,Capital Spend,CP101,Building Works,"£1,500.00",4312,Phoenix Crew & Production Ltd,101948
14/01/2016,Training & Development,3181168,Training Expenses,10600,Professional Staff  Exam & Course Fees,£350.00,4321,PSTAX of LAVAT Consulting LTD,103549
14/01/2016,Training & Development,3180780,Equipment and supplies,50200,Operational Equipment,"£1,018.79",180,BOC Ltd,3033807182
14/01/2016,Facilities Stores & Procurement,3181219,"Repairs, maintenance and other costs",30501,Refuse Collection and waste disposal,"£3,134.55",230,Cannon Hygiene Ltd,CN19149987
14/01/2016,Fire Fighting and Rescue Services,3181197,"Salaries, allowances and on-costs",450,Service Support Staff Agency Staff,£747.03,762,New Appointments Group Ltd,216363
14/01/2016,Transport and Operational Support,3180179,Equipment and supplies,50300,Hydrants - Maintenance,£866.90,2092,South East Water Ltd,INV0172966
14/01/2016,Transport and Operational Support,3180181,Equipment and supplies,50300,Hydrants - Maintenance,£963.98,2092,South East Water Ltd,INV0172965
14/01/2016,Transport and Operational Support,3180217,Equipment and supplies,50300,Hydrants - Maintenance,£866.90,2092,South East Water Ltd,INV0172967
14/01/2016,Transport and Operational Support,3181205,Equipment and supplies,50200,Operational Equipment,"£1,695.00",3428,Collins Nets Ltd,77641
14/01/2016,Premises & Programme Management,3181235,Capital Spend,CN100,New Build Design fees,"£14,037.40",3926,Pick Everard,33200
14/01/2016,Premises & Programme Management,3181236,Capital Spend,CN100,New Build Design fees,"£5,406.17",3926,Pick Everard,33199
14/01/2016,Facilities Stores & Procurement,3180966,Equipment and supplies,50910,Workwear and uniform,£299.81,4090,MWUK Limited T/A Dimensions,OLSINV/03141906
14/01/2016,Premises & Programme Management,3181222,Capital Spend,CP101,Building Works,"£2,400.00",4135,Timeplan Fuel Solutions Limited,6366
14/01/2016,Training & Development,3181258,Fees and services,51400,Consultancy Fees,"£2,515.30",4238,GF Gash Road & Rail Tunnel Fire Consultant Ltd,29
15/01/2016,Transport and Operational Support,3181248,Equipment and supplies,50200,Operational Equipment,"£1,059.49",528,Hilti (Gt Britain) Limited,1443965532
15/01/2016,Facilities Stores & Procurement,3181270,"Repairs, maintenance and other costs",30400,Water services,£795.38,940,Southern Water,7.02002E+11
15/01/2016,Fire Fighting and Rescue Services,3181164,"Repairs, maintenance and other costs",30502,Cleaning Materials,£533.17,1132,Kent Commercial Services,I2450522
15/01/2016,Facilities Stores & Procurement,3181259,Utility costs,30201,Energy Costs - Electricity,"£1,089.37",2590,KCS Laser,E3831499
15/01/2016,Facilities Stores & Procurement,3181260,Utility costs,30201,Energy Costs - Electricity,"£1,259.80",2590,KCS Laser,E3831501
15/01/2016,Facilities Stores & Procurement,3181261,Utility costs,30201,Energy Costs - Electricity,£516.03,2590,KCS Laser,E3831638
15/01/2016,Facilities Stores & Procurement,3181262,Utility costs,30201,Energy Costs - Electricity,£303.03,2590,KCS Laser,E3831642
15/01/2016,Facilities Stores & Procurement,3181263,Utility costs,30201,Energy Costs - Electricity,£332.78,2590,KCS Laser,E3831669
15/01/2016,Facilities Stores & Procurement,3181264,Utility costs,30201,Energy Costs - Electricity,£272.13,2590,KCS Laser,E3831676
15/01/2016,Facilities Stores & Procurement,3181265,Utility costs,30201,Energy Costs - Electricity,£306.47,2590,KCS Laser,E3831678
15/01/2016,Facilities Stores & Procurement,3181266,Utility costs,30201,Energy Costs - Electricity,£351.20,2590,KCS Laser,E3831681
15/01/2016,Facilities Stores & Procurement,3181287,Utility costs,30201,Energy Costs - Electricity,£971.94,2590,KCS Laser,E3831708
15/01/2016,Facilities Stores & Procurement,3181288,Utility costs,30201,Energy Costs - Electricity,"£1,143.86",2590,KCS Laser,E3831710
15/01/2016,Facilities Stores & Procurement,3181291,Utility costs,30201,Energy Costs - Electricity,£462.71,2590,KCS Laser,E3831767
15/01/2016,Facilities Stores & Procurement,3181292,Utility costs,30201,Energy Costs - Electricity,£550.66,2590,KCS Laser,E3831826
15/01/2016,Facilities Stores & Procurement,3181293,Utility costs,30201,Energy Costs - Electricity,£561.57,2590,KCS Laser,E3832109
15/01/2016,Facilities Stores & Procurement,3181294,Utility costs,30201,Energy Costs - Electricity,£570.73,2590,KCS Laser,E3832110
15/01/2016,Facilities Stores & Procurement,3181297,Utility costs,30201,Energy Costs - Electricity,£312.01,2590,KCS Laser,E3832118
15/01/2016,Facilities Stores & Procurement,3181298,Utility costs,30201,Energy Costs - Electricity,£316.92,2590,KCS Laser,E3832122
15/01/2016,Facilities Stores & Procurement,3181299,Utility costs,30201,Energy Costs - Electricity,£255.21,2590,KCS Laser,E3832125
15/01/2016,Facilities Stores & Procurement,3181300,Utility costs,30201,Energy Costs - Electricity,£325.72,2590,KCS Laser,E3832124
15/01/2016,Facilities Stores & Procurement,3181302,Utility costs,30201,Energy Costs - Electricity,£263.58,2590,KCS Laser,E3832136
15/01/2016,Facilities Stores & Procurement,3181303,Utility costs,30201,Energy Costs - Electricity,£332.81,2590,KCS Laser,E3832137
15/01/2016,Facilities Stores & Procurement,3181304,Utility costs,30201,Energy Costs - Electricity,£264.09,2590,KCS Laser,E3832144
15/01/2016,Facilities Stores & Procurement,3181305,Utility costs,30201,Energy Costs - Electricity,£289.05,2590,KCS Laser,E3832145
15/01/2016,Facilities Stores & Procurement,3181306,Utility costs,30201,Energy Costs - Electricity,£296.77,2590,KCS Laser,E3832152
15/01/2016,Facilities Stores & Procurement,3181307,Utility costs,30201,Energy Costs - Electricity,£347.74,2590,KCS Laser,E3832157
15/01/2016,Facilities Stores & Procurement,3181308,Utility costs,30201,Energy Costs - Electricity,£616.54,2590,KCS Laser,E3832165
15/01/2016,Facilities Stores & Procurement,3181309,Utility costs,30201,Energy Costs - Electricity,£662.58,2590,KCS Laser,E3832167
15/01/2016,Facilities Stores & Procurement,3181310,Utility costs,30201,Energy Costs - Electricity,£402.67,2590,KCS Laser,E3832169
15/01/2016,Facilities Stores & Procurement,3181311,Utility costs,30201,Energy Costs - Electricity,£372.72,2590,KCS Laser,E3832170
15/01/2016,Transport and Operational Support,3181321,Vehicle purchase and running costs,40301,Vehicle fuel,"£4,038.13",2590,KCS Laser,F3831949
15/01/2016,Transport and Operational Support,3181322,Vehicle purchase and running costs,40301,Vehicle fuel,"£4,038.13",2590,KCS Laser,F3831952
15/01/2016,Community Safety,3181280,Utility costs,30300,External Rent & Room Hire,"£1,150.00",2945,The Maidstone Leisure Trust,MAID005825
15/01/2016,Transport and Operational Support,3181202,Equipment and supplies,50205,Operational Equipment Maintenance,£306.49,3409,Supply + Limited,24108
15/01/2016,Facilities Stores & Procurement,3179748,Equipment and supplies,50910,Workwear and uniform,£351.60,4090,MWUK Limited T/A Dimensions,OLSINV/03076859
15/01/2016,Fire Fighting and Rescue Services,3181240,Fees and services,51400,Consultancy Fees,"£4,368.00",4247,Asfalis Safety Ltd,1021
15/01/2016,Human Resources,3181276,Employee Insurance and other employee costs,10100,"Medical, Dental and Optical","£3,874.86",4317,Team Prevent,13510
15/01/2016,Transport and Operational Support,3181274,Fees and services,51300,Professional Fees,£511.77,99013,Anne Laure Morvan,16.108
18/01/2016,Facilities Stores & Procurement,3181344,"Repairs, maintenance and other costs",30100,Premises Repairs and Maintenance,£818.09,63,W S Parsons Ltd,002559TF
18/01/2016,Premises & Programme Management,3181343,"Repairs, maintenance and other costs",30100,Premises Repairs and Maintenance,£495.73,63,W S Parsons Ltd,002515TF
18/01/2016,Human Resources,3181400,Employee Insurance and other employee costs,10100,"Medical, Dental and Optical",£330.00,842,Psicon Ltd,20859
18/01/2016,Training & Development,3181361,Equipment and supplies,50400,Training Equipment,"£1,986.75",885,Ruth Lee Fire & Rescue Equipment,13882
18/01/2016,Facilities Stores & Procurement,3181347,"Repairs, maintenance and other costs",30400,Water services,"£1,691.77",940,Southern Water,7.06001E+11
18/01/2016,Premises & Programme Management,3181275,Capital Spend,CP100,Fees,"£68,300.00",1120,Medway Council,DD/16/Medway Fire Station A2 Watling Street
18/01/2016,Premises & Programme Management,3181332,"Repairs, maintenance and other costs",30100,Premises Repairs and Maintenance,£305.88,2037,Hag Shutters & Grilles Ltd,INV50451
18/01/2016,Premises & Programme Management,3181333,"Repairs, maintenance and other costs",30100,Premises Repairs and Maintenance,"£4,125.00",2037,Hag Shutters & Grilles Ltd,INV50452
18/01/2016,Transport and Operational Support,3180516,Equipment and supplies,50300,Hydrants - Maintenance,£305.90,2092,South East Water Ltd,INV0173255
18/01/2016,Premises & Programme Management,3181355,"Repairs, maintenance and other costs",30100,Premises Repairs and Maintenance,£400.00,3473,Hydro Descaling Ltd,81522
18/01/2016,Human Resources,3181413,Employee Insurance and other employee costs,10100,"Medical, Dental and Optical","£17,264.25",3843,Health Management Ltd,142125
18/01/2016,Corporate Management & Member Services,3181409,Equipment and supplies,51000,Printing,£263.08,4037,(Commercial Services Kent Ltd trading as) County Print & Design,PC013766
18/01/2016,Premises & Programme Management,3181257,"Repairs, maintenance and other costs",30100,Premises Repairs and Maintenance,"£3,704.50",4059,Healthy Buildings International,26745
18/01/2016,Training & Development,3181076,Training Expenses,10500,Operational Staff Exam & Course Fees,"£1,500.00",4061,Kent Police & Crime Commissioner,1800032460
18/01/2016,Premises & Programme Management,3181243,"Repairs, maintenance and other costs",30100,Premises Repairs and Maintenance,"£4,290.00",4075,P Allison & Sons Demolition Contractors Ltd,4754
18/01/2016,Transport and Operational Support,3181356,Fees and services,51300,Professional Fees,"£1,725.00",4084,Sharpe Pritchard,83392
18/01/2016,Transport and Operational Support,3181328,"Salaries, allowances and on-costs",450,Service Support Staff Agency Staff,£383.50,4185,HR GO Recruitment Ltd,622029
18/01/2016,Training & Development,3181249,Training Expenses,10600,Professional Staff  Exam & Course Fees,"£1,208.33",4200,First Intuition Maidstone Ltd,6451
18/01/2016,Finance,3181362,Fees and services,51300,Professional Fees,"£1,625.00",4214,Capita Treasury Solutions Ltd,6002002010
18/01/2016,Insurance Services,3181406,Other supplies and services,52800,Miscellaneous Insurance - Premium,£252.08,4225,Arthur J Gallagher,20667005
18/01/2016,Premises & Programme Management,3181238,"Repairs, maintenance and other costs",30100,Premises Repairs and Maintenance,"£6,480.00",4226,Burtonwood Generator & Switchgear Services Ltd,25342
18/01/2016,Facilities Stores & Procurement,3181348,"Repairs, maintenance and other costs",30400,Water services,£737.38,4243,South East Water Ltd trading as South East Water Choices,10474585-9 Bill No 13
18/01/2016,Information Systems & communications,3181212,Communications and computing,52301,Computer hardware repair & maintenance,"£42,000.00",4333,Thales UK Limited,160049
19/01/2016,Premises & Programme Management,3181426,"Repairs, maintenance and other costs",30100,Premises Repairs and Maintenance,£338.07,36,Intec,13953
19/01/2016,Premises & Programme Management,3181429,"Repairs, maintenance and other costs",30100,Premises Repairs and Maintenance,"£3,650.00",36,Intec,13977
19/01/2016,Premises & Programme Management,3181430,"Repairs, maintenance and other costs",30100,Premises Repairs and Maintenance,£374.00,36,Intec,13980
19/01/2016,Premises & Programme Management,3181431,"Repairs, maintenance and other costs",30100,Premises Repairs and Maintenance,£400.00,36,Intec,14000
19/01/2016,Premises & Programme Management,3181432,"Repairs, maintenance and other costs",30100,Premises Repairs and Maintenance,"£1,048.00",36,Intec,14003
19/01/2016,Premises & Programme Management,3181437,"Repairs, maintenance and other costs",30100,Premises Repairs and Maintenance,"£1,225.00",36,Intec,14012
19/01/2016,Premises & Programme Management,3181444,"Repairs, maintenance and other costs",30100,Premises Repairs and Maintenance,"£1,890.00",36,Intec,14007
19/01/2016,Facilities Stores & Procurement,3181411,"Repairs, maintenance and other costs",30104,Grounds maintenance,"£1,065.58",57,Serco Ltd,91225591
19/01/2016,Transport and Operational Support,3181353,Vehicle purchase and running costs,40201,Vehicle Maintenance,£424.35,153,F G Barnes (Maidstone) Ltd,20312733
19/01/2016,Information Systems & communications,3181196,"Salaries, allowances and on-costs",450,Service Support Staff Agency Staff,£448.95,762,New Appointments Group Ltd,216364
19/01/2016,Training & Development,3181441,Training Expenses,10600,Professional Staff  Exam & Course Fees,£400.00,1110,East Sussex Fire Authority,8021002721
19/01/2016,"Corporate Policy, Communications & Marketing",3181454,Equipment and supplies,51000,Printing,"£1,057.00",2365,Mastercolour plc,43312
19/01/2016,Facilities Stores & Procurement,3181424,Utility costs,30202,Energy Costs - Gas,£271.82,2590,KCS Laser,G3833422
19/01/2016,Premises & Programme Management,3181416,"Repairs, maintenance and other costs",30100,Premises Repairs and Maintenance,"£4,492.05",4098,Theobalds (Refurbishment) Ltd,1841
19/01/2016,Training & Development,3181181,Equipment and supplies,50400,Training Equipment,£330.00,4142,Copart Ltd,107539387
19/01/2016,"Corporate Policy, Communications & Marketing",3181327,Fees and services,51300,Professional Fees,"£2,709.56",4335,SurveyMonkey Europe Sarl,INV-EU-4379
20/01/2016,Information Systems & communications,1036127,Communications and computing,52101,Mobile Telephone Costs,£390.37,81,O2 (UK) Limited,81359705
20/01/2016,Information Systems & communications,1036128,Communications and computing,52101,Mobile Telephone Costs,"£2,835.00",81,O2 (UK) Limited,81375287
20/01/2016,Premises & Programme Management,3181420,"Repairs, maintenance and other costs",30100,Premises Repairs and Maintenance,£847.00,36,Intec,13989
20/01/2016,Premises & Programme Management,3181422,"Repairs, maintenance and other costs",30100,Premises Repairs and Maintenance,£980.00,36,Intec,13957
20/01/2016,Premises & Programme Management,3181425,"Repairs, maintenance and other costs",30100,Premises Repairs and Maintenance,£477.00,36,Intec,13984
20/01/2016,Premises & Programme Management,3181427,"Repairs, maintenance and other costs",30100,Premises Repairs and Maintenance,£492.64,36,Intec,13956
20/01/2016,Premises & Programme Management,3181434,"Repairs, maintenance and other costs",30100,Premises Repairs and Maintenance,£475.00,36,Intec,14010
20/01/2016,Premises & Programme Management,3181478,"Repairs, maintenance and other costs",30100,Premises Repairs and Maintenance,£958.33,36,Intec,14017
20/01/2016,Premises & Programme Management,3181493,"Repairs, maintenance and other costs",30100,Premises Repairs and Maintenance,£393.86,63,W S Parsons Ltd,002574TF
20/01/2016,Information Systems & communications,3181465,Communications and computing,52101,Mobile Telephone Costs,"£2,999.56",81,O2 (UK) Limited,81659717
20/01/2016,Technical Fire Safety,3181324,Equipment and supplies,50101,"Books, Stationery & Office Equipment",£573.95,200,British Standards Institution,20588551
20/01/2016,Premises & Programme Management,3181462,Capital Spend,CP100,Fees,"£5,464.00",1120,Medway Council,600264129
20/01/2016,Transport and Operational Support,3181237,Equipment and supplies,50300,Hydrants - Maintenance,£865.68,1456,Southern Water Ltd,200917/DF2102270
20/01/2016,Transport and Operational Support,3181239,Equipment and supplies,50300,Hydrants - Maintenance,£865.68,1456,Southern Water Ltd,200917/DF2102271
20/01/2016,Transport and Operational Support,3181241,Equipment and supplies,50300,Hydrants - Maintenance,£865.68,1456,Southern Water Ltd,200917/DF2102272
20/01/2016,Transport and Operational Support,3181242,Equipment and supplies,50300,Hydrants - Maintenance,£865.68,1456,Southern Water Ltd,200917/DF2102273
20/01/2016,Training & Development,3181499,Equipment and supplies,50400,Training Equipment,"£2,339.40",2413,Drager Safety,2910039948
20/01/2016,Transport and Operational Support,3181443,Equipment and supplies,50200,Operational Equipment,"£4,102.00",3409,Supply + Limited,24154
20/01/2016,Information Systems & communications,3181440,Communications and computing,52300,Computer hardware,"£1,155.00",3840,XMA Limited,AB32840
20/01/2016,Facilities Stores & Procurement,3181479,"Repairs, maintenance and other costs",30602,Security Charges,"£1,304.42",3859,Brook Security Limited,55582
20/01/2016,Transport and Operational Support,3181480,Equipment and supplies,50200,Operational Equipment,£267.36,3873,Cromwell,21022175
20/01/2016,Community Safety,3181178,Equipment and supplies,50200,Operational Equipment,£770.00,3890,Blockabox,05/01/2016
20/01/2016,Facilities Stores & Procurement,3181439,"Repairs, maintenance and other costs",30500,Contract Cleaning,"£1,226.90",4040,Hi Spec Facilities Services Plc,28799
20/01/2016,Transport and Operational Support,3181507,Training Expenses,10500,Operational Staff Exam & Course Fees,"£2,225.00",4270,Serco Ltd,91225929
20/01/2016,Transport and Operational Support,3181503,Equipment and supplies,50900,PPE - Operational,"£2,596.16",4311,The Outdoors Company,18713
20/01/2016,Community Safety,3181246,Training Expenses,10500,Operational Staff Exam & Course Fees,"£1,750.00",4322,RSGB Limited,6581
20/01/2016,Community Safety,3181246,Training Expenses,10600,Professional Staff  Exam & Course Fees,"£2,450.00",4322,RSGB Limited,6581
20/01/2016,Transport and Operational Support,3181497,Equipment and supplies,50803,External Refreshments at Meetings,£700.00,4323,The Ambassador Theatre Group Ltd,SIFOL32757
20/01/2016,Transport and Operational Support,3181504,Equipment and supplies,50200,Operational Equipment,"£6,653.80",4328,Reach and Rescue Ltd,567
21/01/2016,Premises & Programme Management,3181489,"Repairs, maintenance and other costs",30100,Premises Repairs and Maintenance,£297.92,63,W S Parsons Ltd,002556TF
21/01/2016,Facilities Stores & Procurement,3181486,"Repairs, maintenance and other costs",30104,Grounds maintenance,£511.67,4069,Ground Control Ltd,SIN007494
21/01/2016,Human Resources,3181598,Employee Insurance and other employee costs,10100,"Medical, Dental and Optical",£255.00,842,Psicon Ltd,20749
21/01/2016,Technical Fire Safety,3181603,Equipment and supplies,50101,"Books, Stationery & Office Equipment",£285.60,955,The Stationery Office Ltd,24351652
21/01/2016,Premises & Programme Management,3181567,"Repairs, maintenance and other costs",30100,Premises Repairs and Maintenance,£800.00,1132,Kent Commercial Services,I2461178
21/01/2016,Fire Fighting and Rescue Services,3181470,"Repairs, maintenance and other costs",30502,Cleaning Materials,£358.21,1132,Kent Commercial Services,I2459511
21/01/2016,Training & Development,3181610,Equipment and supplies,50400,Training Equipment,£556.14,1132,Kent Commercial Services,I2460783
21/01/2016,Training & Development,3181611,Equipment and supplies,50400,Training Equipment,"£1,225.90",1132,Kent Commercial Services,I2456886
21/01/2016,Information Systems & communications,3181568,Communications and computing,52300,Computer hardware,"£2,213.15",1132,Kent Commercial Services,I2460774
21/01/2016,Training & Development,3181586,Fees and services,52700,Subscriptions to Organisations,£300.00,1971,IOSH Services Ltd,ISL147168
21/01/2016,Facilities Stores & Procurement,3181514,Utility costs,30201,Energy Costs - Electricity,"£1,246.28",2590,KCS Laser,E3838136
21/01/2016,Facilities Stores & Procurement,3181515,Utility costs,30201,Energy Costs - Electricity,£790.71,2590,KCS Laser,E3838139
21/01/2016,Facilities Stores & Procurement,3181517,Utility costs,30201,Energy Costs - Electricity,£338.37,2590,KCS Laser,E3838142
21/01/2016,Facilities Stores & Procurement,3181523,Utility costs,30201,Energy Costs - Electricity,£318.69,2590,KCS Laser,E3838155
21/01/2016,Facilities Stores & Procurement,3181524,Utility costs,30201,Energy Costs - Electricity,£257.30,2590,KCS Laser,E3838156
21/01/2016,Facilities Stores & Procurement,3181530,Utility costs,30201,Energy Costs - Electricity,£349.68,2590,KCS Laser,E3838169
21/01/2016,Facilities Stores & Procurement,3181535,Utility costs,30201,Energy Costs - Electricity,"£1,283.73",2590,KCS Laser,E3838181
21/01/2016,Facilities Stores & Procurement,3181538,Utility costs,30201,Energy Costs - Electricity,£593.81,2590,KCS Laser,E3838191
21/01/2016,Facilities Stores & Procurement,3181540,Utility costs,30201,Energy Costs - Electricity,£602.57,2590,KCS Laser,E3838198
21/01/2016,Facilities Stores & Procurement,3181543,Utility costs,30201,Energy Costs - Electricity,£351.19,2590,KCS Laser,E3838213
21/01/2016,Facilities Stores & Procurement,3181544,Utility costs,30201,Energy Costs - Electricity,£346.19,2590,KCS Laser,E3838216
21/01/2016,Facilities Stores & Procurement,3181545,Utility costs,30201,Energy Costs - Electricity,£298.48,2590,KCS Laser,E3838222
21/01/2016,Facilities Stores & Procurement,3181546,Utility costs,30201,Energy Costs - Electricity,£333.27,2590,KCS Laser,E3838224
21/01/2016,Facilities Stores & Procurement,3181548,Utility costs,30201,Energy Costs - Electricity,£269.89,2590,KCS Laser,E3838229
21/01/2016,Facilities Stores & Procurement,3181550,Utility costs,30201,Energy Costs - Electricity,£594.31,2590,KCS Laser,E3838231
21/01/2016,Facilities Stores & Procurement,3181552,Utility costs,30201,Energy Costs - Electricity,£376.87,2590,KCS Laser,E3838237
21/01/2016,Facilities Stores & Procurement,3181561,Utility costs,30201,Energy Costs - Electricity,£404.16,2590,KCS Laser,E3838255
21/01/2016,Facilities Stores & Procurement,3181563,Utility costs,30201,Energy Costs - Electricity,£730.16,2590,KCS Laser,E3838260
21/01/2016,Facilities Stores & Procurement,3181564,Utility costs,30201,Energy Costs - Electricity,£401.58,2590,KCS Laser,E3838262
21/01/2016,Facilities Stores & Procurement,3181566,Utility costs,30202,Energy Costs - Gas,£339.06,2590,KCS Laser,G3839646
21/01/2016,Training & Development,3181247,Training Expenses,10600,Professional Staff  Exam & Course Fees,"£2,376.00",3799,QA Ltd,IPR150046
21/01/2016,Training & Development,3181593,Training Expenses,10600,Professional Staff  Exam & Course Fees,£520.00,3799,QA Ltd,IPR150313
21/01/2016,Community Safety,3181501,Equipment and supplies,50200,Operational Equipment,"£1,000.00",3821,Solon Security,SI6000523
21/01/2016,Transport and Operational Support,3181601,Equipment and supplies,50200,Operational Equipment,£457.44,3984,Nightsearcher Ltd,60350
21/01/2016,Transport and Operational Support,3181505,Equipment and supplies,50200,Operational Equipment,"£79,612.85",4328,Reach and Rescue Ltd,592
22/01/2016,Premises & Programme Management,3181435,"Repairs, maintenance and other costs",30100,Premises Repairs and Maintenance,£510.55,36,Intec,14015
22/01/2016,Information Systems & communications,3181230,Communications and computing,52101,Mobile Telephone Costs,£610.98,81,O2 (UK) Limited,81744609
22/01/2016,Transport and Operational Support,3181622,Equipment and supplies,50200,Operational Equipment,"£2,252.50",116,Angloco Ltd,OP/I036130
22/01/2016,Transport and Operational Support,3181623,Equipment and supplies,50200,Operational Equipment,"£1,484.00",116,Angloco Ltd,OP/I036129
22/01/2016,Human Resources,3181726,Employee Insurance and other employee costs,10100,"Medical, Dental and Optical","£1,363.00",128,ASE (Eye Care Plans) Ltd,38972
22/01/2016,Transport and Operational Support,3181615,Vehicle purchase and running costs,40203,Tyres,"£1,241.62",135,ATS Euromaster Ltd,A9980113571
22/01/2016,Information Systems & communications,3181485,Communications and computing,52302,Computer Software,£810.17,267,Civica Services Ltd,1044811
22/01/2016,Transport and Operational Support,3181602,Equipment and supplies,50206,Medical & First Aid,"£1,270.00",652,Laerdal Medical Ltd,2016/UK000001118
22/01/2016,Fire Fighting and Rescue Services,3181584,"Salaries, allowances and on-costs",450,Service Support Staff Agency Staff,£747.03,762,New Appointments Group Ltd,216482
22/01/2016,Information Systems & communications,3181583,"Salaries, allowances and on-costs",450,Service Support Staff Agency Staff,£452.03,762,New Appointments Group Ltd,216483
22/01/2016,Information Systems & communications,3181720,Communications and computing,52300,Computer hardware,£468.00,1132,Kent Commercial Services,I2462957
22/01/2016,Premises & Programme Management,3180269,Capital Spend,CP101,Building Works,£583.83,1132,Kent Commercial Services,I2437938
22/01/2016,Transport and Operational Support,3181597,Vehicle purchase and running costs,40200,Vehicle Consumables,£353.24,1213,Scania (Great Britain) Ltd,24598413
22/01/2016,Transport and Operational Support,3181231,Equipment and supplies,50300,Hydrants - Maintenance,£866.90,2092,South East Water Ltd,INV0173407
22/01/2016,Transport and Operational Support,3181232,Equipment and supplies,50300,Hydrants - Maintenance,£866.90,2092,South East Water Ltd,INV0173408
22/01/2016,Transport and Operational Support,3181618,Vehicle purchase and running costs,40301,Vehicle fuel,"£4,038.13",2590,KCS Laser,F3831953
22/01/2016,Transport and Operational Support,3181609,Equipment and supplies,50205,Operational Equipment Maintenance,"£1,325.18",3572,Central Compressor Consultants Ltd,20520
22/01/2016,Information Systems & communications,3181730,Communications and computing,52302,Computer Software,£993.00,3972,GMO Global Sign Ltd,BM20151100325485
22/01/2016,Facilities Stores & Procurement,3181715,Communications and computing,52200,Postage & Courier Fees,"£1,000.00",4262,Pitney Bowes Limited,60180816
22/01/2016,"Corporate Policy, Communications & Marketing",3181500,Fees and services,51300,Professional Fees,"£8,000.00",4266,Ideagen Content Ltd,221679
22/01/2016,Transport and Operational Support,3181729,Other supplies and services,52400,Conference Expenses,"£3,980.00",4299,Kent Events Centre,2770
22/01/2016,Training & Development,3181408,Training Expenses,10600,Professional Staff  Exam & Course Fees,"£1,661.00",4313,Cheshire Training Solutions,6087
22/01/2016,Information Systems & communications,3181357,Communications and computing,52302,Computer Software,£943.02,4326,Actual Metrics,1298
25/01/2016,Information Systems & communications,3181620,Communications and computing,52100,Telephone & Fax Costs,"£2,887.42",201,British Telecom Plc,VP 72855170 M18201 QY
25/01/2016,Facilities Stores & Procurement,3181723,Equipment and supplies,50801,Catering Equipment,£269.99,1132,Kent Commercial Services,I2462948
25/01/2016,Transport and Operational Support,3181716,Vehicle purchase and running costs,40200,Vehicle Consumables,£313.87,1213,Scania (Great Britain) Ltd,24598341
25/01/2016,Transport and Operational Support,3181717,Vehicle purchase and running costs,40200,Vehicle Consumables,£313.87,1213,Scania (Great Britain) Ltd,24598268
25/01/2016,Transport and Operational Support,3181233,Equipment and supplies,50300,Hydrants - Maintenance,£963.98,2092,South East Water Ltd,INV0173409
25/01/2016,Information Systems & communications,3181285,Communications and computing,52001,Opernl Comms equipment rental,£629.69,3289,Airwave Solutions Ltd,0940000024-054
25/01/2016,Transport and Operational Support,3181149,Equipment and supplies,50300,Hydrants - Maintenance,£350.00,3949,Affinity Water Ltd,101073463
25/01/2016,Transport and Operational Support,3181718,"Salaries, allowances and on-costs",450,Service Support Staff Agency Staff,£435.50,4185,HR GO Recruitment Ltd,622823
25/01/2016,Transport and Operational Support,3181727,Vehicle purchase and running costs,40200,Vehicle Consumables,"£2,095.13",4221,"Kent County Council, CTS Vehicle Services",23199
25/01/2016,Transport and Operational Support,3181727,Vehicle purchase and running costs,40201,Vehicle Maintenance,"£5,714.84",4221,"Kent County Council, CTS Vehicle Services",23199
25/01/2016,Premises & Programme Management,3181619,Capital Spend,CP101,Building Works,"£1,525.00",4336,Instacomm,12000
26/01/2016,Technical Fire Safety,3181767,Equipment and supplies,50600,"Filming, Photography & Audiovisual","£4,464.32",227,Canford Audio PLC,1122529892
26/01/2016,Transport and Operational Support,3181779,Vehicle purchase and running costs,40200,Vehicle Consumables,£260.00,657,LCP Engineering Co Ltd,1 196437
26/01/2016,Facilities Stores & Procurement,3181749,"Repairs, maintenance and other costs",30400,Water services,"£1,115.67",940,Southern Water,7.00002E+11
26/01/2016,Facilities Stores & Procurement,3181772,"Repairs, maintenance and other costs",30400,Water services,£652.66,940,Southern Water,7.13001E+11
26/01/2016,"Corporate Policy, Communications & Marketing",3181780,Equipment and supplies,51000,Printing,£398.00,1418,PB Group Ltd,45822
26/01/2016,Transport and Operational Support,3181784,Vehicle purchase and running costs,40301,Vehicle fuel,"£4,033.63",2590,KCS Laser,F3841579
26/01/2016,Transport and Operational Support,3181785,Vehicle purchase and running costs,40301,Vehicle fuel,"£3,641.06",2590,KCS Laser,F3841580
26/01/2016,Premises & Programme Management,3181747,Capital Spend,CP101,Building Works,"£35,229.70",3575,Virgin Business Media,VM.CIP.129272a
26/01/2016,Transport and Operational Support,3181728,Vehicle purchase and running costs,40200,Vehicle Consumables,"£14,002.41",4221,"Kent County Council, CTS Vehicle Services",23197
26/01/2016,Transport and Operational Support,3181728,Vehicle purchase and running costs,40201,Vehicle Maintenance,"£47,234.75",4221,"Kent County Council, CTS Vehicle Services",23197
27/01/2016,Facilities Stores & Procurement,3181788,"Repairs, maintenance and other costs",30100,Premises Repairs and Maintenance,"£2,436.28",63,W S Parsons Ltd,002596TF
27/01/2016,Facilities Stores & Procurement,3181789,"Repairs, maintenance and other costs",30100,Premises Repairs and Maintenance,£398.80,63,W S Parsons Ltd,002597TF
27/01/2016,Facilities Stores & Procurement,3181792,"Repairs, maintenance and other costs",30100,Premises Repairs and Maintenance,£865.48,63,W S Parsons Ltd,002593TF
27/01/2016,Facilities Stores & Procurement,3181793,"Repairs, maintenance and other costs",30100,Premises Repairs and Maintenance,£645.58,63,W S Parsons Ltd,002595TF
27/01/2016,Premises & Programme Management,3181791,"Repairs, maintenance and other costs",30100,Premises Repairs and Maintenance,"£1,075.94",63,W S Parsons Ltd,002592TF
27/01/2016,Transport and Operational Support,3181841,Capital Spend,CV303,Select Pumping Appliance,£988.70,607,John Dennis Coachbuilders Ltd,30650
27/01/2016,Transport and Operational Support,3181776,Equipment and supplies,50206,Medical & First Aid,£647.50,652,Laerdal Medical Ltd,2016/UK000001516
27/01/2016,Training & Development,3181832,Equipment and supplies,50400,Training Equipment,"£1,288.00",660,Le Maitre Limited,6604
27/01/2016,Human Resources,3181585,"Salaries, allowances and on-costs",450,Service Support Staff Agency Staff,£269.55,762,New Appointments Group Ltd,216484
27/01/2016,Information Systems & communications,3181815,"Salaries, allowances and on-costs",450,Service Support Staff Agency Staff,£461.25,762,New Appointments Group Ltd,216605
27/01/2016,Fire Fighting and Rescue Services,3181854,"Repairs, maintenance and other costs",30502,Cleaning Materials,£327.92,1132,Kent Commercial Services,I2468857
27/01/2016,Transport and Operational Support,3181819,Vehicle purchase and running costs,40200,Vehicle Consumables,£343.40,1213,Scania (Great Britain) Ltd,24598512
27/01/2016,Transport and Operational Support,3181820,Vehicle purchase and running costs,40200,Vehicle Consumables,£379.11,1213,Scania (Great Britain) Ltd,24598573
27/01/2016,Premises & Programme Management,3181577,"Repairs, maintenance and other costs",30100,Premises Repairs and Maintenance,£640.00,2037,Hag Shutters & Grilles Ltd,INV50497
27/01/2016,Facilities Stores & Procurement,3181805,Utility costs,30201,Energy Costs - Electricity,£466.55,2590,KCS Laser,E3842048
27/01/2016,Facilities Stores & Procurement,3181806,Utility costs,30201,Energy Costs - Electricity,£602.75,2590,KCS Laser,E3842049
27/01/2016,Facilities Stores & Procurement,3181807,Utility costs,30201,Energy Costs - Electricity,£600.79,2590,KCS Laser,E3842051
27/01/2016,Facilities Stores & Procurement,3181782,Utility costs,30202,Energy Costs - Gas,£308.10,2590,KCS Laser,G3841469
27/01/2016,Facilities Stores & Procurement,3181781,Utility costs,30202,Energy Costs - Gas,£918.96,2590,KCS Laser,G3841457
27/01/2016,Transport and Operational Support,3181786,Vehicle purchase and running costs,40201,Vehicle Maintenance,"£1,859.00",2981,Cummins UK,6230554
27/01/2016,Human Resources,3181838,Communications and computing,52304,Computer Technical Services,£425.00,4160,Midland Software Ltd trading as MHR,37175
27/01/2016,Premises & Programme Management,3181710,"Repairs, maintenance and other costs",30100,Premises Repairs and Maintenance,£250.93,4211,P & I Generators Ltd,16999
27/01/2016,Fire Fighting and Rescue Services,3181858,Fees and services,51400,Consultancy Fees,"£24,709.50",4270,Serco Ltd,91219508
28/01/2016,Transport and Operational Support,3181844,Capital Spend,CV303,Select Pumping Appliance,£988.70,607,John Dennis Coachbuilders Ltd,40651
28/01/2016,Transport and Operational Support,3181845,Capital Spend,CV303,Select Pumping Appliance,£988.70,607,John Dennis Coachbuilders Ltd,40652
28/01/2016,Information Systems & communications,3181831,Communications and computing,52102,Pagers and Alerters,"£1,294.19",2249,Smye-Rumsby Ltd,145929
28/01/2016,Facilities Stores & Procurement,3181829,"Repairs, maintenance and other costs",30500,Contract Cleaning,"£3,239.06",4042,Superclean Services Wothorpe Limited,68552
29/01/2016,Premises & Programme Management,3181833,"Repairs, maintenance and other costs",30100,Premises Repairs and Maintenance,£403.10,36,Intec,13993
29/01/2016,Transport and Operational Support,3181859,Fees and services,51300,Professional Fees,£666.00,1170,Kent County Council,600011962#
29/01/2016,Premises & Programme Management,3181830,Capital Spend,CP101,Building Works,"£12,774.32",2037,Hag Shutters & Grilles Ltd,INV50634
01/02/2016,Facilities Stores & Procurement,3181863,Utility costs,30202,Energy Costs - Gas,£372.43,2590,KCS Laser,G3842736
01/02/2016,Premises & Programme Management,3181878,Capital Spend,CP101,Building Works,"£215,409.35",4205,Walker Construction (UK) Ltd,35305
01/02/2016,Transport and Operational Support,3181766,Training Expenses,10500,Operational Staff Exam & Course Fees,"£6,600.00",4298,JM Hazmat Consultancy Ltd,09/2015-2016
02/02/2016,Transport and Operational Support,3181891,Vehicle purchase and running costs,40200,Vehicle Consumables,£434.25,223,Caffyns Plc,8332296
02/02/2016,Transport and Operational Support,3181891,Vehicle purchase and running costs,40201,Vehicle Maintenance,£330.00,223,Caffyns Plc,8332296
02/02/2016,Transport and Operational Support,3181795,Capital Spend,CV303,Select Pumping Appliance,"£56,673.00",607,John Dennis Coachbuilders Ltd,40638
02/02/2016,Information Systems & communications,3181273,Communications and computing,52300,Computer hardware,"£1,011.40",1690,Specialist Computer Centres PLC,OP/M107129
02/02/2016,Transport and Operational Support,3181892,Vehicle purchase and running costs,40200,Vehicle Consumables,£779.88,2060,Machine Mart Ltd,4642815
02/02/2016,Training & Development,3181800,Training Expenses,10500,Operational Staff Exam & Course Fees,£875.00,2452,The Institution of Fire Engineers,1123390
02/02/2016,Transport and Operational Support,3180763,Capital Spend,CS105,Project Design and Management Fees,"£10,000.00",4061,Kent Police & Crime Commissioner,1800032206
03/02/2016,Premises & Programme Management,3181922,"Repairs, maintenance and other costs",30100,Premises Repairs and Maintenance,"£3,816.57",51,Powermain Limited,15047
03/02/2016,Transport and Operational Support,3181951,Equipment and supplies,50200,Operational Equipment,"£19,815.50",275,Clan Tools & Plant Ltd,INV24297
03/02/2016,Premises & Programme Management,3181954,Capital Spend,CP101,Building Works,"£18,195.00",275,Clan Tools & Plant Ltd,INV24298
03/02/2016,Transport and Operational Support,3181842,Equipment and supplies,50200,Operational Equipment,"£6,417.00",607,John Dennis Coachbuilders Ltd,40647
03/02/2016,Transport and Operational Support,3181842,Capital Spend,CV303,Select Pumping Appliance,"£52,445.00",607,John Dennis Coachbuilders Ltd,40647
03/02/2016,Premises & Programme Management,3181972,Capital Spend,CP101,Building Works,"£2,190.22",687,Maidstone Signs Ltd,34390
03/02/2016,Training & Development,3181948,Equipment and supplies,50400,Training Equipment,"£1,054.00",885,Ruth Lee Fire & Rescue Equipment,13914
03/02/2016,Transport and Operational Support,3181971,Vehicle purchase and running costs,40200,Vehicle Consumables,£250.00,1020,MC Truck & Bus Ltd,1332036-01
03/02/2016,Transport and Operational Support,3181991,Equipment and supplies,51003,Printing Consumables,"£1,953.35",1170,Kent County Council,600012276
03/02/2016,Community Safety,3181979,Communications and computing,52200,Postage & Courier Fees,£500.00,1407,Royal Mail,1109160519
03/02/2016,Training & Development,3181993,Training Expenses,10600,Professional Staff  Exam & Course Fees,£280.00,2162,Stonewall Equality Ltd,48894
03/02/2016,Facilities Stores & Procurement,3181981,Utility costs,30200,Energy Costs - Fuel Oil,£543.19,2590,KCS Laser,F3843390
03/02/2016,Transport and Operational Support,3181980,Vehicle purchase and running costs,40301,Vehicle fuel,"£3,958.83",2590,KCS Laser,F3843387
03/02/2016,Transport and Operational Support,3182002,Vehicle purchase and running costs,40301,Vehicle fuel,"£3,956.46",2590,KCS Laser,F3843391
03/02/2016,Technical Fire Safety,3181983,Fees and services,51300,Professional Fees,"£2,500.00",3602,David Stotesbury,1034
03/02/2016,Transport and Operational Support,3181887,Vehicle purchase and running costs,40301,Vehicle fuel,"£9,110.02",3834,Allstar Business Solutions Ltd,E2006070488
03/02/2016,Transport and Operational Support,3181988,Equipment and supplies,50205,Operational Equipment Maintenance,£638.04,3894,Survitec Service and Distribution,CD20161002561
03/02/2016,Facilities Stores & Procurement,3181958,Communications and computing,52304,Computer Technical Services,£647.15,4036,CGI IT UK Ltd,GB2400012134
03/02/2016,Facilities Stores & Procurement,3181985,"Repairs, maintenance and other costs",30501,Refuse Collection and waste disposal,"£4,343.34",4045,Viridor Waste Management Ltd,0001541253AB
03/02/2016,Transport and Operational Support,3181947,Equipment and supplies,50900,PPE - Operational,"£55,464.01",4079,Ballyclare Ltd,767315
03/02/2016,Transport and Operational Support,3181949,Equipment and supplies,50900,PPE - Operational,£691.27,4079,Ballyclare Ltd,767316
03/02/2016,Control,3181732,Communications and computing,52304,Computer Technical Services,"£50,381.37",4140,Steria Limited,100085584
03/02/2016,Transport and Operational Support,3181903,"Salaries, allowances and on-costs",450,Service Support Staff Agency Staff,£344.50,4185,HR GO Recruitment Ltd,623654
03/02/2016,Facilities Stores & Procurement,3181975,"Repairs, maintenance and other costs",30500,Contract Cleaning,"£3,929.60",4241,Cordant Cleaning Ltd,CO052026
03/02/2016,Training & Development,3181994,Training Expenses,10500,Operational Staff Exam & Course Fees,£340.00,4255,Oliver & Company (UK) Ltd,1210
03/02/2016,Training & Development,3181994,Training Expenses,10600,Professional Staff  Exam & Course Fees,£510.00,4255,Oliver & Company (UK) Ltd,1210
04/02/2016,Information Systems & communications,3181929,Communications and computing,52101,Mobile Telephone Costs,£403.70,81,O2 (UK) Limited,82333791
04/02/2016,Information Systems & communications,3181930,Communications and computing,52101,Mobile Telephone Costs,"£2,358.96",81,O2 (UK) Limited,82345761
04/02/2016,Transport and Operational Support,3181839,Equipment and supplies,50200,Operational Equipment,"£6,417.00",607,John Dennis Coachbuilders Ltd,40648
04/02/2016,Transport and Operational Support,3181843,Equipment and supplies,50200,Operational Equipment,"£6,417.00",607,John Dennis Coachbuilders Ltd,40649
04/02/2016,Transport and Operational Support,3181839,Capital Spend,CV303,Select Pumping Appliance,"£52,445.00",607,John Dennis Coachbuilders Ltd,40648
04/02/2016,Transport and Operational Support,3181843,Capital Spend,CV303,Select Pumping Appliance,"£52,445.00",607,John Dennis Coachbuilders Ltd,40649
04/02/2016,Premises & Programme Management,3181974,Capital Spend,CP101,Building Works,£477.40,687,Maidstone Signs Ltd,34391
04/02/2016,Human Resources,3181921,Fees and services,51300,Professional Fees,"£6,064.07",3675,Edenred (UK Group) Ltd,IN120806474
04/02/2016,Premises & Programme Management,3182015,"Repairs, maintenance and other costs",30100,Premises Repairs and Maintenance,£708.00,4098,Theobalds (Refurbishment) Ltd,1861
04/02/2016,Transport and Operational Support,3182076,Equipment and supplies,50101,"Books, Stationery & Office Equipment","£1,346.80",477,Geographers´ A-Z Map Co Ltd,1035803
04/02/2016,Training & Development,3182081,Equipment and supplies,50400,Training Equipment,"£4,338.00",660,Le Maitre Limited,6722
04/02/2016,Information Systems & communications,3181990,Communications and computing,52101,Mobile Telephone Costs,"£1,487.38",1083,Wireless Logic Ltd,AP/536911
04/02/2016,Facilities Stores & Procurement,3182024,Fees and services,52700,Subscriptions to Organisations,"£3,000.00",1170,Kent County Council,600012323
04/02/2016,Information Systems & communications,3182069,Communications and computing,52300,Computer hardware,"£4,044.92",1690,Specialist Computer Centres PLC,OP/M113697
04/02/2016,Training & Development,3182018,Equipment and supplies,50400,Training Equipment,£795.82,2060,Machine Mart Ltd,592709
04/02/2016,Training & Development,3182019,Equipment and supplies,50400,Training Equipment,£316.72,2060,Machine Mart Ltd,592659
04/02/2016,Facilities Stores & Procurement,3181978,Utility costs,30200,Energy Costs - Fuel Oil,£695.25,2590,KCS Laser,F3843392
04/02/2016,Facilities Stores & Procurement,3182075,"Repairs, maintenance and other costs",30500,Contract Cleaning,"£1,226.90",4040,Hi Spec Facilities Services Plc,29024
04/02/2016,Insurance Services,3181725,Vehicle purchase and running costs,40303,Vehicle Insurance Excess,£518.46,4221,"Kent County Council, CTS Vehicle Services",23198
05/02/2016,Information Systems & communications,3182136,"Salaries, allowances and on-costs",450,Service Support Staff Agency Staff,£461.25,762,New Appointments Group Ltd,216717
05/02/2016,Facilities Stores & Procurement,3182138,"Repairs, maintenance and other costs",30400,Water services,£251.16,940,Southern Water,7.12001E+11
05/02/2016,Transport and Operational Support,3181809,Equipment and supplies,50206,Medical & First Aid,£272.01,948,SP Services,799303
05/02/2016,Facilities Stores & Procurement,3182144,Utility costs,30201,Energy Costs - Electricity,£617.97,2590,KCS Laser,E3844885
05/02/2016,Facilities Stores & Procurement,3182125,"Repairs, maintenance and other costs",30104,Grounds maintenance,£686.71,3087,Barge Landscape Management,6922
05/02/2016,Facilities Stores & Procurement,3182127,"Repairs, maintenance and other costs",30104,Grounds maintenance,£421.00,3087,Barge Landscape Management,6975
05/02/2016,Fire Fighting and Rescue Services,3182119,Equipment and supplies,50902,Bedding,£320.00,3540,Nestledown Beds Ltd,OP/I247295
05/02/2016,Facilities Stores & Procurement,3182121,"Repairs, maintenance and other costs",30104,Grounds maintenance,£969.83,4063,Mark Walker (Grounds Maintenance) Ltd,121871
05/02/2016,Facilities Stores & Procurement,3182086,Equipment and supplies,50910,Workwear and uniform,£400.40,4090,MWUK Limited T/A Dimensions,OLSINV/03199045
05/02/2016,Facilities Stores & Procurement,3182088,Equipment and supplies,50910,Workwear and uniform,£285.60,4090,MWUK Limited T/A Dimensions,OLSINV/03199074
05/02/2016,Premises & Programme Management,3182020,"Repairs, maintenance and other costs",30100,Premises Repairs and Maintenance,£890.00,4098,Theobalds (Refurbishment) Ltd,1860
05/02/2016,Transport and Operational Support,3181731,Capital Spend,CS105,Project Design and Management Fees,"£53,072.00",4140,Steria Limited,100085583
08/02/2016,Transport and Operational Support,3182124,Vehicle purchase and running costs,40203,Tyres,"£5,083.25",135,ATS Euromaster Ltd,A9980114296
08/02/2016,Premises & Programme Management,3182108,"Repairs, maintenance and other costs",30100,Premises Repairs and Maintenance,£960.00,2037,Hag Shutters & Grilles Ltd,INV50684
08/02/2016,Premises & Programme Management,3182109,"Repairs, maintenance and other costs",30100,Premises Repairs and Maintenance,£480.00,2037,Hag Shutters & Grilles Ltd,INV50685
08/02/2016,Premises & Programme Management,3182105,Capital Spend,CP101,Building Works,"£10,286.20",2037,Hag Shutters & Grilles Ltd,INV50679
08/02/2016,Information Systems & communications,3181963,Communications and computing,52001,Opernl Comms equipment rental,"£54,914.76",2684,Department of Communities & Local Government,1800022194
08/02/2016,Premises & Programme Management,3182132,"Repairs, maintenance and other costs",30100,Premises Repairs and Maintenance,"£1,598.70",4249,Clague LLP,PM/PM/223178A-8
09/02/2016,Transport and Operational Support,3181935,Vehicle purchase and running costs,40200,Vehicle Consumables,£273.37,223,Caffyns Plc,8332404
09/02/2016,Transport and Operational Support,3181935,Vehicle purchase and running costs,40201,Vehicle Maintenance,£467.12,223,Caffyns Plc,8332404
09/02/2016,Transport and Operational Support,3182129,Equipment and supplies,50205,Operational Equipment Maintenance,£566.60,275,Clan Tools & Plant Ltd,INV24314
09/02/2016,Transport and Operational Support,3182165,Equipment and supplies,50200,Operational Equipment,£356.00,638,Key Industrial Equipment Ltd,I0647080
09/02/2016,Human Resources,3182137,"Salaries, allowances and on-costs",450,Service Support Staff Agency Staff,£730.75,762,New Appointments Group Ltd,216716
09/02/2016,Transport and Operational Support,3181910,Vehicle purchase and running costs,40200,Vehicle Consumables,£250.28,805,Perrys Motor Sales Limited,17548643
09/02/2016,Transport and Operational Support,3181910,Vehicle purchase and running costs,40201,Vehicle Maintenance,£302.00,805,Perrys Motor Sales Limited,17548643
09/02/2016,Transport and Operational Support,3182021,Vehicle purchase and running costs,40201,Vehicle Maintenance,£316.73,2302,Haynes Ford,14035945
09/02/2016,Premises & Programme Management,3182187,"Repairs, maintenance and other costs",30100,Premises Repairs and Maintenance,"£1,297.61",4152,A.M Security Ltd T/A A.M Fire & Security Group,225857
09/02/2016,Transport and Operational Support,3182175,Vehicle purchase and running costs,40102,Contract Hire and Operational Leases,£418.60,4221,"Kent County Council, CTS Vehicle Services",CTSINV00171
10/02/2016,Information Systems & communications,3182160,Communications and computing,52101,Mobile Telephone Costs,"£3,030.46",81,O2 (UK) Limited,82643620
10/02/2016,Facilities Stores & Procurement,3182157,Fees and services,52700,Subscriptions to Organisations,"£1,948.82",1602,The Performing Right Society,4751519
10/02/2016,Transport and Operational Support,3182162,Equipment and supplies,50300,Hydrants - Maintenance,£305.90,2092,South East Water Ltd,INV0173879
10/02/2016,Information Systems & communications,3182141,Communications and computing,52100,Telephone & Fax Costs,£262.53,3575,Virgin Business Media,817882-111
10/02/2016,Transport and Operational Support,3182131,"Repairs, maintenance and other costs",30500,Contract Cleaning,£431.00,4041,Grade One Commercial Cleaning Services Ltd,130038
10/02/2016,Premises & Programme Management,3182186,"Repairs, maintenance and other costs",30100,Premises Repairs and Maintenance,£434.00,4114,Datatrack Fuel Systems Ltd,13030
10/02/2016,Transport and Operational Support,3182196,Capital Spend,CV406,Other Operational Vehicles,"£8,500.00",4346,Walker Movements Limited,Proforma 08/02/16
11/02/2016,Transport and Operational Support,3182224,Equipment and supplies,50200,Operational Equipment,"£1,320.96",180,BOC Ltd,3034270452
11/02/2016,Transport and Operational Support,3182205,Vehicle purchase and running costs,40200,Vehicle Consumables,£432.76,1213,Scania (Great Britain) Ltd,24598583
11/02/2016,Transport and Operational Support,3182201,Equipment and supplies,50205,Operational Equipment Maintenance,"£1,274.44",3572,Central Compressor Consultants Ltd,20423
11/02/2016,Transport and Operational Support,3182235,Equipment and supplies,50802,Catering Refreshments,£492.00,4048,Edgar´s Water,INV1584269
11/02/2016,Transport and Operational Support,3182206,Communications and computing,52304,Computer Technical Services,"£10,654.00",4135,Timeplan Fuel Solutions Limited,6365
11/02/2016,Transport and Operational Support,3182208,Communications and computing,52304,Computer Technical Services,"£14,026.43",4135,Timeplan Fuel Solutions Limited,6351
11/02/2016,Transport and Operational Support,3182172,Equipment and supplies,50800,Purchase of Food,£418.50,4289,Vestey Foods UK Ltd,31001962
11/02/2016,Transport and Operational Support,3182230,Equipment and supplies,50205,Operational Equipment Maintenance,£452.86,749,MV Safety Co Ltd,33994
11/02/2016,Community Safety,3182284,Other supplies and services,52701,Grants and Contributions,£347.49,3405,MotorSport Vision Ltd,SI-043244
11/02/2016,Information Systems & communications,3181977,Equipment and supplies,51003,Printing Consumables,"£1,078.11",4236,Ricoh UK Ltd,100439944
12/02/2016,Premises & Programme Management,3182232,Capital Spend,CP101,Building Works,"£4,145.40",1132,Kent Commercial Services,I2478464
12/02/2016,Transport and Operational Support,3182296,Training Expenses,10500,Operational Staff Exam & Course Fees,"£1,060.00",4049,Fire Service College Limited,805696
12/02/2016,Premises & Programme Management,3182271,"Repairs, maintenance and other costs",30100,Premises Repairs and Maintenance,"£3,704.50",4059,Healthy Buildings International,27066
12/02/2016,Premises & Programme Management,3182274,Communications and computing,52304,Computer Technical Services,"£5,800.00",4059,Healthy Buildings International,26860
12/02/2016,Facilities Stores & Procurement,3182068,Equipment and supplies,50910,Workwear and uniform,£347.28,4090,MWUK Limited T/A Dimensions,OLSINV/03199057
12/02/2016,Premises & Programme Management,3182315,"Repairs, maintenance and other costs",30100,Premises Repairs and Maintenance,"£1,263.50",4211,P & I Generators Ltd,17105
12/02/2016,Premises & Programme Management,3182273,"Repairs, maintenance and other costs",30100,Premises Repairs and Maintenance,£265.00,4226,Burtonwood Generator & Switchgear Services Ltd,25530
12/02/2016,Training & Development,3182199,Fees and services,51400,Consultancy Fees,"£2,318.85",4238,GF Gash Road & Rail Tunnel Fire Consultant Ltd,31
15/02/2016,Corporate Management & Member Services,3182327,Other supplies and services,52400,Conference Expenses,"£2,370.00",663,Local Government Association,40146440
15/02/2016,Transport and Operational Support,3182209,Vehicle purchase and running costs,40200,Vehicle Consumables,£423.68,937,South Eastern Auto Elec Sus,10163411
15/02/2016,Corporate Management & Member Services,3182228,Fees and services,51300,Professional Fees,"£2,500.00",1131,Tunbridge Wells Borough Council,D0038922
15/02/2016,Community Safety,3182298,Equipment and supplies,50101,"Books, Stationery & Office Equipment",£966.99,1132,Kent Commercial Services,I2479939
15/02/2016,Information Systems & communications,3182336,Communications and computing,52300,Computer hardware,"£5,568.75",1132,Kent Commercial Services,I2468371
15/02/2016,Information Systems & communications,3182336,Communications and computing,52303,Computer Consumables,"£1,699.20",1132,Kent Commercial Services,I2468371
15/02/2016,Transport and Operational Support,3182204,Vehicle purchase and running costs,40200,Vehicle Consumables,£281.00,1724,Emergency One (UK) Ltd,17345
15/02/2016,Transport and Operational Support,3182231,Vehicle purchase and running costs,40200,Vehicle Consumables,£585.51,1724,Emergency One (UK) Ltd,17358
15/02/2016,Community Safety,3182272,Other supplies and services,52900,Publicity,£330.96,3539,Chegworth Graphics Ltd,79231
15/02/2016,Transport and Operational Support,3182352,Vehicle purchase and running costs,40200,Vehicle Consumables,"£11,249.04",4221,"Kent County Council, CTS Vehicle Services",23336
15/02/2016,Transport and Operational Support,3182352,Vehicle purchase and running costs,40201,Vehicle Maintenance,"£24,005.61",4221,"Kent County Council, CTS Vehicle Services",23336
16/02/2016,Premises & Programme Management,3182322,"Repairs, maintenance and other costs",30100,Premises Repairs and Maintenance,£660.51,63,W S Parsons Ltd,002451TF
16/02/2016,Human Resources,3182350,"Salaries, allowances and on-costs",450,Service Support Staff Agency Staff,£582.63,762,New Appointments Group Ltd,216828
16/02/2016,Information Systems & communications,3182349,"Salaries, allowances and on-costs",450,Service Support Staff Agency Staff,£461.25,762,New Appointments Group Ltd,216829
16/02/2016,Facilities Stores & Procurement,3182338,"Repairs, maintenance and other costs",30400,Water services,£465.37,940,Southern Water,7.05001E+11
16/02/2016,Premises & Programme Management,3182219,Capital Spend,CP101,Building Works,"£2,701.09",1132,Kent Commercial Services,FEM233320
16/02/2016,Information Systems & communications,3182238,Communications and computing,52000,Operational Comms equipment purchase,£934.34,1170,Kent County Council,600012437
16/02/2016,Information Systems & communications,3182276,Communications and computing,52300,Computer hardware,"£1,056.00",1690,Specialist Computer Centres PLC,OP/M115970
16/02/2016,Facilities Stores & Procurement,3182358,Utility costs,30201,Energy Costs - Electricity,"£1,508.92",2590,KCS Laser,E3845396
16/02/2016,Facilities Stores & Procurement,3182360,Utility costs,30201,Energy Costs - Electricity,£783.39,2590,KCS Laser,E3845398
16/02/2016,Facilities Stores & Procurement,3182362,Utility costs,30201,Energy Costs - Electricity,£346.58,2590,KCS Laser,E3845400
16/02/2016,Facilities Stores & Procurement,3182368,Utility costs,30201,Energy Costs - Electricity,£320.47,2590,KCS Laser,E3845406
16/02/2016,Facilities Stores & Procurement,3182370,Utility costs,30201,Energy Costs - Electricity,£273.38,2590,KCS Laser,E3845408
16/02/2016,Facilities Stores & Procurement,3182371,Utility costs,30201,Energy Costs - Electricity,£324.10,2590,KCS Laser,E3845409
16/02/2016,Facilities Stores & Procurement,3182376,Utility costs,30201,Energy Costs - Electricity,£347.57,2590,KCS Laser,E3845414
16/02/2016,Facilities Stores & Procurement,3182383,Utility costs,30201,Energy Costs - Electricity,£288.78,2590,KCS Laser,E3845420
16/02/2016,Facilities Stores & Procurement,3182385,Utility costs,30201,Energy Costs - Electricity,£665.71,2590,KCS Laser,E3845422
16/02/2016,Facilities Stores & Procurement,3182386,Utility costs,30201,Energy Costs - Electricity,£539.81,2590,KCS Laser,E3845423
16/02/2016,Facilities Stores & Procurement,3182388,Utility costs,30201,Energy Costs - Electricity,£545.39,2590,KCS Laser,E3845425
16/02/2016,Facilities Stores & Procurement,3182391,Utility costs,30201,Energy Costs - Electricity,£351.99,2590,KCS Laser,E3845428
16/02/2016,Facilities Stores & Procurement,3182392,Utility costs,30201,Energy Costs - Electricity,£339.04,2590,KCS Laser,E3845429
16/02/2016,Facilities Stores & Procurement,3182393,Utility costs,30201,Energy Costs - Electricity,£304.85,2590,KCS Laser,E3845430
16/02/2016,Facilities Stores & Procurement,3182394,Utility costs,30201,Energy Costs - Electricity,£336.77,2590,KCS Laser,E3845431
16/02/2016,Facilities Stores & Procurement,3182396,Utility costs,30201,Energy Costs - Electricity,£278.26,2590,KCS Laser,E3845433
16/02/2016,Facilities Stores & Procurement,3182397,Utility costs,30201,Energy Costs - Electricity,£659.28,2590,KCS Laser,E3845434
16/02/2016,Facilities Stores & Procurement,3182399,Utility costs,30201,Energy Costs - Electricity,£346.45,2590,KCS Laser,E3845436
16/02/2016,Facilities Stores & Procurement,3182408,Utility costs,30201,Energy Costs - Electricity,£347.68,2590,KCS Laser,E3845453
16/02/2016,Facilities Stores & Procurement,3182409,Utility costs,30201,Energy Costs - Electricity,£829.59,2590,KCS Laser,E3845455
16/02/2016,Facilities Stores & Procurement,3182410,Utility costs,30201,Energy Costs - Electricity,£365.66,2590,KCS Laser,E3845456
16/02/2016,Facilities Stores & Procurement,3182492,Utility costs,30201,Energy Costs - Electricity,"£1,244.94",2590,KCS Laser,E3858292
16/02/2016,Facilities Stores & Procurement,3182417,Utility costs,30202,Energy Costs - Gas,£377.94,2590,KCS Laser,G3846687
16/02/2016,Facilities Stores & Procurement,3182418,Utility costs,30202,Energy Costs - Gas,£508.35,2590,KCS Laser,G3846691
16/02/2016,Facilities Stores & Procurement,3182443,Utility costs,30202,Energy Costs - Gas,£642.89,2590,KCS Laser,G3857149
16/02/2016,Facilities Stores & Procurement,3182423,Utility costs,30202,Energy Costs - Gas,£735.64,2590,KCS Laser,G3846710
16/02/2016,Facilities Stores & Procurement,3182422,Utility costs,30202,Energy Costs - Gas,£836.86,2590,KCS Laser,G3846708
16/02/2016,Facilities Stores & Procurement,3182428,Utility costs,30202,Energy Costs - Gas,£916.45,2590,KCS Laser,G3846728
16/02/2016,Facilities Stores & Procurement,3182419,Utility costs,30202,Energy Costs - Gas,£949.38,2590,KCS Laser,G3846697
16/02/2016,Facilities Stores & Procurement,3182420,Utility costs,30202,Energy Costs - Gas,"£1,088.32",2590,KCS Laser,G3846699
16/02/2016,Facilities Stores & Procurement,3182415,Utility costs,30202,Energy Costs - Gas,"£1,207.18",2590,KCS Laser,G3846681
16/02/2016,Facilities Stores & Procurement,3182414,Utility costs,30202,Energy Costs - Gas,"£1,328.38",2590,KCS Laser,G3846679
16/02/2016,Facilities Stores & Procurement,3182429,Utility costs,30202,Energy Costs - Gas,"£1,708.24",2590,KCS Laser,G3846733
16/02/2016,Transport and Operational Support,3182481,Fees and services,51300,Professional Fees,"£1,648.50",4084,Sharpe Pritchard,83633
16/02/2016,Facilities Stores & Procurement,3182521,"Repairs, maintenance and other costs",30100,Premises Repairs and Maintenance,"£1,200.00",4152,A.M Security Ltd T/A A.M Fire & Security Group,226373
16/02/2016,Premises & Programme Management,3182496,Capital Spend,CN101,New Build Main contractor,"£339,599.44",4205,Walker Construction (UK) Ltd,35319
16/02/2016,Insurance Services,3182473,Vehicle purchase and running costs,40303,Vehicle Insurance Excess,"£1,151.91",4221,"Kent County Council, CTS Vehicle Services",23338
16/02/2016,Premises & Programme Management,3182517,"Repairs, maintenance and other costs",30100,Premises Repairs and Maintenance,"£2,160.00",4226,Burtonwood Generator & Switchgear Services Ltd,25644
16/02/2016,Premises & Programme Management,3182289,"Repairs, maintenance and other costs",30100,Premises Repairs and Maintenance,"£1,114.33",4251,Aluminium Door & Window Solutions Ltd,31012016665
16/02/2016,Premises & Programme Management,3182278,"Repairs, maintenance and other costs",30100,Premises Repairs and Maintenance,"£15,452.70",4301,Gransden Construction Limited,INV0568/KFR230#
17/02/2016,Premises & Programme Management,3182531,"Repairs, maintenance and other costs",30100,Premises Repairs and Maintenance,£482.00,36,Intec,13976
17/02/2016,Premises & Programme Management,3182532,"Repairs, maintenance and other costs",30100,Premises Repairs and Maintenance,£390.00,36,Intec,13994
17/02/2016,Facilities Stores & Procurement,3182524,"Repairs, maintenance and other costs",30104,Grounds maintenance,"£1,065.58",57,Serco Ltd,91235186
17/02/2016,Transport and Operational Support,3182120,Equipment and supplies,50205,Operational Equipment Maintenance,"£3,265.80",275,Clan Tools & Plant Ltd,INV24313
17/02/2016,Transport and Operational Support,3182285,Equipment and supplies,50205,Operational Equipment Maintenance,"£3,083.72",275,Clan Tools & Plant Ltd,INV24527
17/02/2016,Transport and Operational Support,3181828,Equipment and supplies,50205,Operational Equipment Maintenance,£860.51,418,Factair Limited,39020
17/02/2016,Technical Fire Safety,3182292,Equipment and supplies,50101,"Books, Stationery & Office Equipment","£1,126.67",436,The Fire Protection Association,29899
17/02/2016,Transport and Operational Support,3182475,Vehicle purchase and running costs,40200,Vehicle Consumables,£522.24,607,John Dennis Coachbuilders Ltd,40710
17/02/2016,Transport and Operational Support,3182225,Capital Spend,CV303,Select Pumping Appliance,"£56,673.00",607,John Dennis Coachbuilders Ltd,40702
17/02/2016,Corporate Management & Member Services,3182570,"Salaries, allowances and on-costs",450,Service Support Staff Agency Staff,£251.58,762,New Appointments Group Ltd,216931
17/02/2016,Human Resources,3182569,"Salaries, allowances and on-costs",450,Service Support Staff Agency Staff,£730.75,762,New Appointments Group Ltd,216932
17/02/2016,Transport and Operational Support,3182546,Equipment and supplies,50200,Operational Equipment,"£1,343.76",782,Orbison Products Ltd,105170
17/02/2016,Training & Development,3182325,Equipment and supplies,50400,Training Equipment,"£1,460.00",885,Ruth Lee Fire & Rescue Equipment,13973
17/02/2016,Community Safety,3182562,Training Expenses,10600,Professional Staff  Exam & Course Fees,£927.10,1170,Kent County Council,400013803
17/02/2016,Transport and Operational Support,3182490,Vehicle purchase and running costs,40201,Vehicle Maintenance,£432.25,1213,Scania (Great Britain) Ltd,20027009
17/02/2016,Facilities Stores & Procurement,3182574,Utility costs,30202,Energy Costs - Gas,-£284.68,2590,KCS Laser,G3862399
17/02/2016,Facilities Stores & Procurement,3182576,Utility costs,30202,Energy Costs - Gas,-£281.82,2590,KCS Laser,G3862494
17/02/2016,Facilities Stores & Procurement,3182585,Utility costs,30202,Energy Costs - Gas,£258.37,2590,KCS Laser,G3862497
17/02/2016,Facilities Stores & Procurement,3182580,Utility costs,30202,Energy Costs - Gas,£300.28,2590,KCS Laser,G3862375
17/02/2016,Facilities Stores & Procurement,3182583,Utility costs,30202,Energy Costs - Gas,£343.55,2590,KCS Laser,G3862426
17/02/2016,Premises & Programme Management,3182530,"Repairs, maintenance and other costs",30100,Premises Repairs and Maintenance,£400.00,3193,Astral Ltd,8098
17/02/2016,Information Systems & communications,3182541,Communications and computing,52001,Opernl Comms equipment rental,£629.69,3289,Airwave Solutions Ltd,0940000024-055
17/02/2016,Human Resources,3182544,Employee Insurance and other employee costs,10100,"Medical, Dental and Optical","£17,164.25",3843,Health Management Ltd,142976
17/02/2016,Information Systems & communications,3182472,Fees and services,51400,Consultancy Fees,"£4,050.00",3987,Marcus Donald People Ltd,22202
17/02/2016,Facilities Stores & Procurement,3182480,"Repairs, maintenance and other costs",30104,Grounds maintenance,£511.67,4069,Ground Control Ltd,PS/SIN007714
17/02/2016,Human Resources,3182542,Fees and services,51400,Consultancy Fees,"£2,550.00",4147,MJF Systems Ltd,KFRS26
17/02/2016,Human Resources,3182543,Fees and services,51400,Consultancy Fees,"£1,912.50",4147,MJF Systems Ltd,KFRS25
17/02/2016,Information Systems & communications,3182489,Communications and computing,52304,Computer Technical Services,£300.00,4160,Midland Software Ltd trading as MHR,28320
17/02/2016,Information Systems & communications,3182539,Communications and computing,52304,Computer Technical Services,"£1,393.50",4160,Midland Software Ltd trading as MHR,37536
17/02/2016,Facilities Stores & Procurement,3182564,Fees and services,52700,Subscriptions to Organisations,£973.75,4169,Motion Picture Licensing Company,384581
17/02/2016,Transport and Operational Support,3182549,Equipment and supplies,50205,Operational Equipment Maintenance,£433.20,4173,Rosenbauer UK Plc,6429
17/02/2016,Transport and Operational Support,3182520,Equipment and supplies,50205,Operational Equipment Maintenance,"£1,027.21",4204,Terberg DTS UK Ltd,362924
18/02/2016,Transport and Operational Support,3182522,Equipment and supplies,50205,Operational Equipment Maintenance,"£4,219.50",275,Clan Tools & Plant Ltd,INV24363
18/02/2016,Premises & Programme Management,3182550,Capital Spend,CP101,Building Works,"£1,088.00",660,Le Maitre Limited,6803
18/02/2016,Information Systems & communications,3182568,"Salaries, allowances and on-costs",450,Service Support Staff Agency Staff,£455.10,762,New Appointments Group Ltd,216933
18/02/2016,Human Resources,3182622,Fees and services,51300,Professional Fees,£306.00,1170,Kent County Council,600012135
18/02/2016,Premises & Programme Management,3182197,Fees and services,51300,Professional Fees,£825.99,1170,Kent County Council,600012136
18/02/2016,Transport and Operational Support,3182589,Equipment and supplies,50205,Operational Equipment Maintenance,"£1,443.42",2804,Hydraquip Hose & Hydraulics,339511
18/02/2016,Transport and Operational Support,3182617,"Repairs, maintenance and other costs",30100,Premises Repairs and Maintenance,"£2,740.00",3193,Astral Ltd,8101
18/02/2016,Community Safety,3182286,Other supplies and services,52701,Grants and Contributions,£612.00,3405,MotorSport Vision Ltd,SI-043243
18/02/2016,Community Safety,3182287,Other supplies and services,52701,Grants and Contributions,£582.00,3405,MotorSport Vision Ltd,SI-043242
18/02/2016,Transport and Operational Support,3182588,Vehicle purchase and running costs,40200,Vehicle Consumables,£678.80,607,John Dennis Coachbuilders Ltd,40740
18/02/2016,Transport and Operational Support,3182604,Vehicle purchase and running costs,40200,Vehicle Consumables,£570.26,607,John Dennis Coachbuilders Ltd,40708
18/02/2016,Transport and Operational Support,3182567,Capital Spend,CV406,Other Operational Vehicles,"£17,861.51",3060,General Motors UK Ltd,001000-111250
18/02/2016,Transport and Operational Support,3182623,Capital Spend,CV406,Other Operational Vehicles,"£3,360.00",4346,Walker Movements Limited,Proforma 17/02/16
19/02/2016,Training & Development,3182483,Equipment and supplies,50200,Operational Equipment,£305.94,180,BOC Ltd,3034270451
19/02/2016,Transport and Operational Support,3182477,Capital Spend,CV303,Select Pumping Appliance,"£56,673.00",607,John Dennis Coachbuilders Ltd,40701
19/02/2016,Transport and Operational Support,3182684,Capital Spend,CV303,Select Pumping Appliance,"£56,673.00",607,John Dennis Coachbuilders Ltd,40770
19/02/2016,Transport and Operational Support,3182685,Capital Spend,CV303,Select Pumping Appliance,"£56,673.00",607,John Dennis Coachbuilders Ltd,40771
19/02/2016,Premises & Programme Management,3182297,"Repairs, maintenance and other costs",30100,Premises Repairs and Maintenance,£261.00,1132,Kent Commercial Services,I2483961
19/02/2016,Transport and Operational Support,3182655,Vehicle purchase and running costs,40301,Vehicle fuel,"£6,739.01",2590,KCS Laser,F3863158
19/02/2016,Transport and Operational Support,3182656,Vehicle purchase and running costs,40301,Vehicle fuel,"£3,971.63",2590,KCS Laser,F3863159
19/02/2016,Transport and Operational Support,3182657,Vehicle purchase and running costs,40301,Vehicle fuel,"£4,009.02",2590,KCS Laser,F3863186
22/02/2016,Premises & Programme Management,3182323,"Repairs, maintenance and other costs",30100,Premises Repairs and Maintenance,£905.95,63,W S Parsons Ltd,002573TF
22/02/2016,Premises & Programme Management,3182324,"Repairs, maintenance and other costs",30100,Premises Repairs and Maintenance,£930.13,63,W S Parsons Ltd,002604TF
22/02/2016,Transport and Operational Support,3182547,Vehicle purchase and running costs,40200,Vehicle Consumables,£330.28,116,Angloco Ltd,OP/I036249
22/02/2016,Transport and Operational Support,3182733,Equipment and supplies,50205,Operational Equipment Maintenance,£860.19,116,Angloco Ltd,OP/I036269
22/02/2016,Transport and Operational Support,3182474,Equipment and supplies,50205,Operational Equipment Maintenance,"£3,265.80",275,Clan Tools & Plant Ltd,INV24343
22/02/2016,Transport and Operational Support,3182294,Equipment and supplies,50200,Operational Equipment,£333.68,833,Premier Hose Technologies Ltd,624288
22/02/2016,Facilities Stores & Procurement,3182696,"Repairs, maintenance and other costs",30400,Water services,£911.20,940,Southern Water,7.19001E+11
22/02/2016,Premises & Programme Management,3182561,"Repairs, maintenance and other costs",30100,Premises Repairs and Maintenance,£640.00,1254,Steelplan,12034
22/02/2016,Facilities Stores & Procurement,3182605,Utility costs,30300,External Rent & Room Hire,£600.00,1370,Ashford International Hotel & Conference Centre,416271
22/02/2016,Transport and Operational Support,3182710,Equipment and supplies,50200,Operational Equipment,£302.00,1418,PB Group Ltd,45865
22/02/2016,Transport and Operational Support,3182692,Vehicle purchase and running costs,40301,Vehicle fuel,"£3,971.63",2590,KCS Laser,F3863478
22/02/2016,Premises & Programme Management,3182619,"Repairs, maintenance and other costs",30100,Premises Repairs and Maintenance,"£9,921.00",3193,Astral Ltd,8103
22/02/2016,Premises & Programme Management,3182627,"Repairs, maintenance and other costs",30100,Premises Repairs and Maintenance,£720.00,3193,Astral Ltd,8109
22/02/2016,Transport and Operational Support,3182705,Equipment and supplies,50900,PPE - Operational,"£1,525.58",3895,Rig Equipment Limited,11507
22/02/2016,Facilities Stores & Procurement,3182740,Communications and computing,52304,Computer Technical Services,£647.15,4036,CGI IT UK Ltd,GB2400012307
22/02/2016,Information Systems & communications,3182698,Communications and computing,52304,Computer Technical Services,"£2,097.55",4126,Highpoint Implementation and Training Services Ltd,SI-281960
22/02/2016,Information Systems & communications,3182693,Communications and computing,52304,Computer Technical Services,"£4,231.20",4160,Midland Software Ltd trading as MHR,28276
22/02/2016,Information Systems & communications,3182694,Communications and computing,52304,Computer Technical Services,"£1,763.00",4160,Midland Software Ltd trading as MHR,28327
22/02/2016,Information Systems & communications,3182695,Communications and computing,52304,Computer Technical Services,"£26,202.75",4160,Midland Software Ltd trading as MHR,28312
23/02/2016,Premises & Programme Management,3182787,"Repairs, maintenance and other costs",30100,Premises Repairs and Maintenance,"£1,280.00",36,Intec,14028
23/02/2016,Premises & Programme Management,3182788,"Repairs, maintenance and other costs",30100,Premises Repairs and Maintenance,£545.00,36,Intec,14027
23/02/2016,Premises & Programme Management,3182789,"Repairs, maintenance and other costs",30100,Premises Repairs and Maintenance,£395.00,36,Intec,14025
23/02/2016,Premises & Programme Management,3182799,"Repairs, maintenance and other costs",30100,Premises Repairs and Maintenance,"£1,155.00",36,Intec,14068
23/02/2016,Premises & Programme Management,3182803,"Repairs, maintenance and other costs",30100,Premises Repairs and Maintenance,£710.00,36,Intec,14064
23/02/2016,Premises & Programme Management,3182805,"Repairs, maintenance and other costs",30100,Premises Repairs and Maintenance,"£1,105.00",36,Intec,14061
23/02/2016,Premises & Programme Management,3182681,Capital Spend,CP101,Building Works,"£2,995.00",106,Allan Blinds,160107
23/02/2016,Premises & Programme Management,3182714,Capital Spend,CP101,Building Works,£291.66,140,Autowash,126391
23/02/2016,Transport and Operational Support,3182699,Equipment and supplies,50205,Operational Equipment Maintenance,"£3,265.80",275,Clan Tools & Plant Ltd,INV24371
23/02/2016,Transport and Operational Support,3182700,Equipment and supplies,50205,Operational Equipment Maintenance,"£2,805.68",275,Clan Tools & Plant Ltd,INV24372
23/02/2016,Training & Development,3182713,Equipment and supplies,50400,Training Equipment,"£1,426.00",874,Rother Valley Timber Ltd,RI251145
23/02/2016,Community Safety,3182701,Other supplies and services,52701,Grants and Contributions,"£5,000.00",1170,Kent County Council,800011404
23/02/2016,Transport and Operational Support,3182782,Capital Spend,CV406,Other Operational Vehicles,"£70,838.00",3019,W H Bence Coachworks Ltd,14278
23/02/2016,Transport and Operational Support,3182783,Capital Spend,CV406,Other Operational Vehicles,"£27,250.00",3019,W H Bence Coachworks Ltd,14279
23/02/2016,Transport and Operational Support,3182784,Capital Spend,CV406,Other Operational Vehicles,£850.00,3019,W H Bence Coachworks Ltd,14280
23/02/2016,Transport and Operational Support,3182726,Equipment and supplies,50803,External Refreshments at Meetings,£532.80,3037,In To Lunch Ltd,13874
23/02/2016,Premises & Programme Management,3182775,"Repairs, maintenance and other costs",30100,Premises Repairs and Maintenance,£320.00,3193,Astral Ltd,8113
23/02/2016,Transport and Operational Support,3182719,Equipment and supplies,50205,Operational Equipment Maintenance,"£1,717.50",3572,Central Compressor Consultants Ltd,20621
23/02/2016,Community Safety,3182193,Equipment and supplies,50200,Operational Equipment,"£1,283.80",3674,Sprue Safety Products Ltd,1087969
23/02/2016,Training & Development,3182704,Training Expenses,10600,Professional Staff  Exam & Course Fees,£900.00,3799,QA Ltd,IPR151480
23/02/2016,Facilities Stores & Procurement,3182099,Equipment and supplies,50910,Workwear and uniform,£475.48,4090,MWUK Limited T/A Dimensions,OLSINV/03199055
23/02/2016,Premises & Programme Management,3182545,"Repairs, maintenance and other costs",30100,Premises Repairs and Maintenance,"£9,767.94",4114,Datatrack Fuel Systems Ltd,13014
23/02/2016,Community Safety,3182728,Other supplies and services,52701,Grants and Contributions,£500.00,4121,Swale Action to End Domestic Abuse (SATEDA),17/02/16-KFR/5
23/02/2016,Training & Development,3182749,Training Expenses,10500,Operational Staff Exam & Course Fees,"£3,221.25",4270,Serco Ltd,91238909
23/02/2016,Training & Development,3182749,Training Expenses,10600,Professional Staff  Exam & Course Fees,"£1,073.75",4270,Serco Ltd,91238909
23/02/2016,Technical Fire Safety,3182691,Other supplies and services,52900,Publicity,£359.31,4284,SocialSignIn,INV-6801
24/02/2016,Training & Development,3182743,Fees and services,52700,Subscriptions to Organisations,£263.33,879,Royal Yachting Association,TI-25307
24/02/2016,Training & Development,3182845,Training Expenses,10500,Operational Staff Exam & Course Fees,"£15,750.00",1170,Kent County Council,600012646
24/02/2016,Training & Development,3182846,Training Expenses,10500,Operational Staff Exam & Course Fees,"£1,750.00",1170,Kent County Council,600012644
24/02/2016,Training & Development,3182845,Training Expenses,10600,Professional Staff  Exam & Course Fees,"£1,750.00",1170,Kent County Council,600012646
24/02/2016,Transport and Operational Support,3182780,Equipment and supplies,50200,Operational Equipment,£504.99,1380,Clifton Canvas Developments Ltd,59920
24/02/2016,Facilities Stores & Procurement,3182781,Equipment and supplies,50801,Catering Equipment,£332.36,2424,Kerry SCS,16868
24/02/2016,Premises & Programme Management,3182624,Capital Spend,CP101,Building Works,"£1,020.00",3193,Astral Ltd,8106
24/02/2016,Facilities Stores & Procurement,3182742,"Repairs, maintenance and other costs",30500,Contract Cleaning,"£8,963.24",4041,Grade One Commercial Cleaning Services Ltd,130139
24/02/2016,Premises & Programme Management,3181681,Capital Spend,CP101,Building Works,"£16,555.50",4114,Datatrack Fuel Systems Ltd,13038
24/02/2016,Control,3181733,Communications and computing,52304,Computer Technical Services,"£23,768.63",4140,Steria Limited,100085585
24/02/2016,Training & Development,3182848,Equipment and supplies,50400,Training Equipment,£390.00,4173,Rosenbauer UK Plc,6462
24/02/2016,Transport and Operational Support,3182837,Vehicle purchase and running costs,40200,Vehicle Consumables,£479.49,805,Perrys Motor Sales Limited,17549140
24/02/2016,Facilities Stores & Procurement,3182832,Equipment and supplies,50101,"Books, Stationery & Office Equipment",£559.84,1132,Kent Commercial Services,I2493231
24/02/2016,Premises & Programme Management,3182809,"Repairs, maintenance and other costs",30100,Premises Repairs and Maintenance,"£10,260.00",2603,Waterlink,INV-W0005700
24/02/2016,Facilities Stores & Procurement,3182871,"Repairs, maintenance and other costs",30500,Contract Cleaning,£407.50,2790,Initial Washroom Solutions,31841903
24/02/2016,Community Safety,3182895,Equipment and supplies,50200,Operational Equipment,"£28,350.00",3674,Sprue Safety Products Ltd,1088883
24/02/2016,Corporate Management & Member Services,3182876,Fees and services,51300,Professional Fees,"£2,400.00",3847,Barnett Waddingham LLP,B16/1737
24/02/2016,Transport and Operational Support,3182748,Equipment and supplies,50200,Operational Equipment,"£3,125.20",3984,Nightsearcher Ltd,61007
24/02/2016,Technical Fire Safety,3182847,Other supplies and services,52900,Publicity,£296.00,4109,KM Media Group Ltd,709603
24/02/2016,Premises & Programme Management,3182762,"Repairs, maintenance and other costs",30100,Premises Repairs and Maintenance,£596.66,4211,P & I Generators Ltd,17163
25/02/2016,Premises & Programme Management,3182792,"Repairs, maintenance and other costs",30100,Premises Repairs and Maintenance,£545.00,36,Intec,14053
25/02/2016,Premises & Programme Management,3182886,"Repairs, maintenance and other costs",30100,Premises Repairs and Maintenance,£263.45,36,Intec,14072
25/02/2016,Information Systems & communications,3182725,Communications and computing,52302,Computer Software,"£5,882.00",267,Civica Services Ltd,1045212
25/02/2016,Transport and Operational Support,3182844,Equipment and supplies,50200,Operational Equipment,"£1,210.00",607,John Dennis Coachbuilders Ltd,40797
25/02/2016,Corporate Management & Member Services,3182906,"Salaries, allowances and on-costs",450,Service Support Staff Agency Staff,£449.25,762,New Appointments Group Ltd,217043
25/02/2016,Information Systems & communications,3182907,"Salaries, allowances and on-costs",450,Service Support Staff Agency Staff,£461.25,762,New Appointments Group Ltd,217045
25/02/2016,Information Systems & communications,3182785,Communications and computing,52304,Computer Technical Services,"£6,000.00",1170,Kent County Council,600012721
25/02/2016,"Corporate Policy, Communications & Marketing",3182896,Equipment and supplies,51000,Printing,"£2,925.00",1418,PB Group Ltd,45898
25/02/2016,Information Systems & communications,3182849,Communications and computing,52300,Computer hardware,"£4,872.00",1690,Specialist Computer Centres PLC,OP/M124580
25/02/2016,Transport and Operational Support,3181777,Equipment and supplies,50300,Hydrants - Maintenance,£866.90,2092,South East Water Ltd,INV0173598
25/02/2016,Transport and Operational Support,3182730,Equipment and supplies,50300,Hydrants - Maintenance,£866.90,2092,South East Water Ltd,INV0174074
25/02/2016,Information Systems & communications,3182566,Communications and computing,52302,Computer Software,"£5,260.95",2896,Civica UK Ltd,M/BL035132
25/02/2016,Premises & Programme Management,3182776,"Repairs, maintenance and other costs",30100,Premises Repairs and Maintenance,£930.00,3193,Astral Ltd,8119
25/02/2016,Training & Development,3182335,Training Expenses,10500,Operational Staff Exam & Course Fees,"£5,404.00",3221,Peter Stanley Training Ltd,SI-159
25/02/2016,Transport and Operational Support,3182868,Equipment and supplies,50205,Operational Equipment Maintenance,£497.92,3409,Supply + Limited,24609
25/02/2016,Transport and Operational Support,3181604,Equipment and supplies,50300,Hydrants - Maintenance,£350.00,3949,Affinity Water Ltd,101074071
25/02/2016,Information Systems & communications,3182817,Equipment and supplies,51001,Photocopying Contracts,"£16,304.12",4236,Ricoh UK Ltd,100459271
25/02/2016,Fire Fighting and Rescue Services,3182709,Fees and services,51400,Consultancy Fees,"£7,248.90",4247,Asfalis Safety Ltd,1023
25/02/2016,Premises & Programme Management,3182909,Capital Spend,CP101,Building Works,"£3,500.00",4306,Wildwood Media Ltd,250
26/02/2016,Premises & Programme Management,3182795,"Repairs, maintenance and other costs",30100,Premises Repairs and Maintenance,£250.00,36,Intec,14048
26/02/2016,Information Systems & communications,3182754,Communications and computing,52100,Telephone & Fax Costs,"£2,887.08",201,British Telecom Plc,VP 72855170 M18301
26/02/2016,Transport and Operational Support,3182853,Equipment and supplies,50205,Operational Equipment Maintenance,"£3,265.80",275,Clan Tools & Plant Ltd,INV24406
26/02/2016,Transport and Operational Support,3182864,Equipment and supplies,50205,Operational Equipment Maintenance,"£1,822.08",275,Clan Tools & Plant Ltd,INV24409
26/02/2016,Human Resources,3182908,"Salaries, allowances and on-costs",450,Service Support Staff Agency Staff,£434.50,762,New Appointments Group Ltd,217044
26/02/2016,Transport and Operational Support,3182920,Equipment and supplies,50200,Operational Equipment,£315.60,885,Ruth Lee Fire & Rescue Equipment,14005
26/02/2016,Transport and Operational Support,3182763,Equipment and supplies,50300,Hydrants - Maintenance,£865.68,1456,Southern Water Ltd,200917/DF2102295
26/02/2016,Transport and Operational Support,3182778,Equipment and supplies,50300,Hydrants - Maintenance,£865.68,1456,Southern Water Ltd,200917/DF2102297
26/02/2016,Premises & Programme Management,3181326,"Repairs, maintenance and other costs",30100,Premises Repairs and Maintenance,"£9,980.25",3962,Fire Control Services Ltd,GL0648
26/02/2016,Premises & Programme Management,3182877,"Repairs, maintenance and other costs",30100,Premises Repairs and Maintenance,£250.00,4075,P Allison & Sons Demolition Contractors Ltd,4794
29/02/2016,Transport and Operational Support,3182983,Vehicle purchase and running costs,40200,Vehicle Consumables,"£1,151.62",223,Caffyns Plc,8333541
29/02/2016,Transport and Operational Support,3182983,Vehicle purchase and running costs,40201,Vehicle Maintenance,£907.43,223,Caffyns Plc,8333541
29/02/2016,Transport and Operational Support,3182993,Vehicle purchase and running costs,40200,Vehicle Consumables,£421.00,805,Perrys Motor Sales Limited,17549270
29/02/2016,Facilities Stores & Procurement,3182928,"Repairs, maintenance and other costs",30400,Water services,£391.15,940,Southern Water,7.07001E+11
29/02/2016,Fire Fighting and Rescue Services,3182953,Equipment and supplies,50902,Bedding,£255.36,951,Stat-Express Ltd,IN00252281
29/02/2016,Premises & Programme Management,3182955,Fees and services,51300,Professional Fees,"£2,866.50",1120,Medway Council,600265563
29/02/2016,Facilities Stores & Procurement,3182945,Equipment and supplies,50200,Operational Equipment,£292.20,1132,Kent Commercial Services,FEM23457
29/02/2016,Financing Costs,3182949,Other supplies and services,52701,Grants and Contributions,"£1,984.00",1164,Ashford Borough Council,85362727
29/02/2016,Premises & Programme Management,3182910,"Repairs, maintenance and other costs",30100,Premises Repairs and Maintenance,£298.00,2037,Hag Shutters & Grilles Ltd,INV51116
29/02/2016,Premises & Programme Management,3182911,"Repairs, maintenance and other costs",30100,Premises Repairs and Maintenance,£252.00,2037,Hag Shutters & Grilles Ltd,INV51114
29/02/2016,Transport and Operational Support,3182980,Vehicle purchase and running costs,40200,Vehicle Consumables,£265.29,3067,Invicta Canterbury,50SF/91289I
29/02/2016,Transport and Operational Support,3182980,Vehicle purchase and running costs,40201,Vehicle Maintenance,£265.67,3067,Invicta Canterbury,50SF/91289I
29/02/2016,Facilities Stores & Procurement,3182918,"Repairs, maintenance and other costs",30104,Grounds maintenance,£686.71,3087,Barge Landscape Management,7030
29/02/2016,Premises & Programme Management,3182859,"Repairs, maintenance and other costs",30100,Premises Repairs and Maintenance,"£20,930.00",3193,Astral Ltd,8153
29/02/2016,Premises & Programme Management,3182860,"Repairs, maintenance and other costs",30100,Premises Repairs and Maintenance,"£13,354.00",3193,Astral Ltd,8160
29/02/2016,Premises & Programme Management,3182861,"Repairs, maintenance and other costs",30100,Premises Repairs and Maintenance,"£12,997.00",3193,Astral Ltd,8161
29/02/2016,Transport and Operational Support,3182840,Equipment and supplies,50205,Operational Equipment Maintenance,£479.50,3428,Collins Nets Ltd,78304
29/02/2016,Facilities Stores & Procurement,3182913,"Repairs, maintenance and other costs",30500,Contract Cleaning,"£3,239.06",4042,Superclean Services Wothorpe Limited,68714
29/02/2016,Training & Development,3182972,Equipment and supplies,50400,Training Equipment,"£1,407.92",4087,Angus Fire Ltd,8033587
29/02/2016,Facilities Stores & Procurement,3182958,"Repairs, maintenance and other costs",30100,Premises Repairs and Maintenance,"£1,127.60",4152,A.M Security Ltd T/A A.M Fire & Security Group,226670
29/02/2016,Premises & Programme Management,3182873,"Repairs, maintenance and other costs",30100,Premises Repairs and Maintenance,"£1,751.76",4152,A.M Security Ltd T/A A.M Fire & Security Group,226289
29/02/2016,Transport and Operational Support,3182357,"Salaries, allowances and on-costs",450,Service Support Staff Agency Staff,£473.69,4185,HR GO Recruitment Ltd,624401
29/02/2016,Transport and Operational Support,3182470,"Salaries, allowances and on-costs",450,Service Support Staff Agency Staff,£473.69,4185,HR GO Recruitment Ltd,625182
29/02/2016,Transport and Operational Support,3182899,"Salaries, allowances and on-costs",450,Service Support Staff Agency Staff,£473.69,4185,HR GO Recruitment Ltd,625923
29/02/2016,Transport and Operational Support,3182930,"Salaries, allowances and on-costs",450,Service Support Staff Agency Staff,£416.00,4185,HR GO Recruitment Ltd,626747
29/02/2016,Insurance Services,3182295,Vehicle purchase and running costs,40303,Vehicle Insurance Excess,"£5,157.34",4221,"Kent County Council, CTS Vehicle Services",23337
29/02/2016,Information Systems & communications,3182954,Communications and computing,52304,Computer Technical Services,"£9,185.14",4257,iESE Transformation Ltd,171
01/03/2016,Premises & Programme Management,3183019,Capital Spend,CP101,Building Works,£697.00,106,Allan Blinds,160215
01/03/2016,Facilities Stores & Procurement,3182988,Equipment and supplies,50801,Catering Equipment,£274.99,140,Autowash,127128
01/03/2016,Training & Development,3183011,Equipment and supplies,50802,Catering Refreshments,£303.08,951,Stat-Express Ltd,IN00252348
01/03/2016,Premises & Programme Management,3182932,Capital Spend,CP101,Building Works,"£7,810.00",1132,Kent Commercial Services,I2490797
01/03/2016,Premises & Programme Management,3182933,Capital Spend,CP101,Building Works,"£1,175.00",1132,Kent Commercial Services,I2490798
01/03/2016,Transport and Operational Support,3182962,Equipment and supplies,50300,Hydrants - Maintenance,£866.90,2092,South East Water Ltd,INV0174169
01/03/2016,"Corporate Policy, Communications & Marketing",3182982,Equipment and supplies,51000,Printing,£998.00,2365,Mastercolour plc,43672
01/03/2016,Transport and Operational Support,3182940,Equipment and supplies,50200,Operational Equipment,"£11,853.40",3894,Survitec Service and Distribution,CD20161004654
01/03/2016,Facilities Stores & Procurement,3183018,"Repairs, maintenance and other costs",30500,Contract Cleaning,"£3,929.60",4241,Cordant Cleaning Ltd,CO052461
02/03/2016,Premises & Programme Management,3183078,"Repairs, maintenance and other costs",30100,Premises Repairs and Maintenance,£880.00,36,Intec,14120
02/03/2016,Premises & Programme Management,3183082,"Repairs, maintenance and other costs",30100,Premises Repairs and Maintenance,"£1,735.00",36,Intec,14095
02/03/2016,Premises & Programme Management,3183088,"Repairs, maintenance and other costs",30100,Premises Repairs and Maintenance,£250.00,36,Intec,14087
02/03/2016,Premises & Programme Management,3183089,"Repairs, maintenance and other costs",30100,Premises Repairs and Maintenance,£276.00,36,Intec,14083
02/03/2016,Premises & Programme Management,3183107,"Repairs, maintenance and other costs",30100,Premises Repairs and Maintenance,£280.00,36,Intec,14065
02/03/2016,Premises & Programme Management,3183112,"Repairs, maintenance and other costs",30100,Premises Repairs and Maintenance,£984.00,36,Intec,14110
02/03/2016,Premises & Programme Management,3183124,"Repairs, maintenance and other costs",30100,Premises Repairs and Maintenance,£285.00,36,Intec,14133
02/03/2016,Information Systems & communications,3182942,Communications and computing,52101,Mobile Telephone Costs,£423.75,81,O2 (UK) Limited,83270308
02/03/2016,Premises & Programme Management,3183020,"Repairs, maintenance and other costs",30100,Premises Repairs and Maintenance,"£1,730.00",106,Allan Blinds,160205
02/03/2016,Human Resources,3183084,Employee Insurance and other employee costs,10100,"Medical, Dental and Optical","£1,079.00",128,ASE (Eye Care Plans) Ltd,39108
02/03/2016,Transport and Operational Support,3183009,Vehicle purchase and running costs,40200,Vehicle Consumables,£278.92,607,John Dennis Coachbuilders Ltd,40826
02/03/2016,Community Safety,3182957,Other supplies and services,52900,Publicity,£416.50,1110,East Sussex Fire Authority,8020001116
02/03/2016,Community Safety,3183091,Other supplies and services,52701,Grants and Contributions,"£2,500.00",1124,Sevenoaks District Council,2042169
02/03/2016,Information Systems & communications,3182842,Communications and computing,52001,Opernl Comms equipment rental,"£55,342.17",2684,Department of Communities & Local Government,1800022274
02/03/2016,Premises & Programme Management,3182985,Capital Spend,CP101,Building Works,"£1,072.50",4052,MDB Associates Chartered Surveyors,422
02/03/2016,Facilities Stores & Procurement,3183152,Equipment and supplies,50910,Workwear and uniform,£309.16,4090,MWUK Limited T/A Dimensions,OLSINV/03259774
02/03/2016,"Corporate Policy, Communications & Marketing",3182921,Fees and services,51300,Professional Fees,"£5,897.45",4290,Fire and Risk Management Support Services Limited (FARMSS),00351/4
03/03/2016,Premises & Programme Management,3182791,"Repairs, maintenance and other costs",30100,Premises Repairs and Maintenance,"£3,125.00",36,Intec,14054
03/03/2016,Premises & Programme Management,3182802,"Repairs, maintenance and other costs",30100,Premises Repairs and Maintenance,£408.00,36,Intec,14066
03/03/2016,Premises & Programme Management,3182881,"Repairs, maintenance and other costs",30100,Premises Repairs and Maintenance,£654.00,36,Intec,14080
03/03/2016,Premises & Programme Management,3183064,"Repairs, maintenance and other costs",30100,Premises Repairs and Maintenance,£314.38,36,Intec,14090
03/03/2016,Premises & Programme Management,3183111,"Repairs, maintenance and other costs",30100,Premises Repairs and Maintenance,£488.00,36,Intec,14109
03/03/2016,Premises & Programme Management,3183114,"Repairs, maintenance and other costs",30100,Premises Repairs and Maintenance,£250.00,36,Intec,14112
03/03/2016,Premises & Programme Management,3183122,"Repairs, maintenance and other costs",30100,Premises Repairs and Maintenance,£250.00,36,Intec,14130
03/03/2016,Premises & Programme Management,3183131,"Repairs, maintenance and other costs",30100,Premises Repairs and Maintenance,£613.00,36,Intec,14136
03/03/2016,Premises & Programme Management,3183144,"Repairs, maintenance and other costs",30100,Premises Repairs and Maintenance,£419.00,36,Intec,14142
03/03/2016,Premises & Programme Management,3183148,"Repairs, maintenance and other costs",30100,Premises Repairs and Maintenance,£350.00,36,Intec,14144
03/03/2016,Premises & Programme Management,3183172,"Repairs, maintenance and other costs",30100,Premises Repairs and Maintenance,£257.63,36,Intec,14150
03/03/2016,Premises & Programme Management,3183181,"Repairs, maintenance and other costs",30100,Premises Repairs and Maintenance,£311.34,36,Intec,14152
03/03/2016,Premises & Programme Management,3183185,"Repairs, maintenance and other costs",30100,Premises Repairs and Maintenance,£266.50,36,Intec,14159
03/03/2016,Premises & Programme Management,3183189,"Repairs, maintenance and other costs",30100,Premises Repairs and Maintenance,£417.00,36,Intec,14169
03/03/2016,Premises & Programme Management,3183190,"Repairs, maintenance and other costs",30100,Premises Repairs and Maintenance,£282.60,36,Intec,14170
03/03/2016,Premises & Programme Management,3183191,"Repairs, maintenance and other costs",30100,Premises Repairs and Maintenance,"£5,572.00",36,Intec,14055
03/03/2016,Premises & Programme Management,3183192,"Repairs, maintenance and other costs",30100,Premises Repairs and Maintenance,£673.00,36,Intec,14167
03/03/2016,Transport and Operational Support,3183201,Equipment and supplies,50205,Operational Equipment Maintenance,£398.00,38,JH (Lifting Gear Hire) Ltd,118502
03/03/2016,Information Systems & communications,3182941,Communications and computing,52101,Mobile Telephone Costs,"£3,277.57",81,O2 (UK) Limited,83273438
03/03/2016,Transport and Operational Support,3182269,Capital Spend,CV303,Select Pumping Appliance,"£70,000.00",607,John Dennis Coachbuilders Ltd,40724
03/03/2016,Transport and Operational Support,3182683,Capital Spend,CV303,Select Pumping Appliance,"£70,000.00",607,John Dennis Coachbuilders Ltd,40769
03/03/2016,Transport and Operational Support,3182916,Capital Spend,CV303,Select Pumping Appliance,"£70,000.00",607,John Dennis Coachbuilders Ltd,40814
03/03/2016,Training & Development,3183202,Equipment and supplies,50400,Training Equipment,"£1,415.00",828,Powervamp Limited,19004
03/03/2016,Information Systems & communications,3182989,Communications and computing,52304,Computer Technical Services,"£2,970.00",3359,Kronos,50002368
03/03/2016,Facilities Stores & Procurement,3183197,"Repairs, maintenance and other costs",30602,Security Charges,£654.38,3862,Ward Security (Response) Ltd,35838
03/03/2016,Transport and Operational Support,3183198,Equipment and supplies,50200,Operational Equipment,"£3,714.81",3894,Survitec Service and Distribution,CD20161004874
03/03/2016,Transport and Operational Support,3182894,Equipment and supplies,50300,Hydrants - Maintenance,£811.34,3949,Affinity Water Ltd,101075645
03/03/2016,Facilities Stores & Procurement,3182866,"Repairs, maintenance and other costs",30500,Contract Cleaning,"£1,050.00",4041,Grade One Commercial Cleaning Services Ltd,130141
03/03/2016,Human Resources,3182538,Communications and computing,52304,Computer Technical Services,"£1,755.20",4160,Midland Software Ltd trading as MHR,37537
03/03/2016,Human Resources,3182841,Employee Insurance and other employee costs,10100,"Medical, Dental and Optical","£1,369.90",4317,Team Prevent,13830
03/03/2016,Human Resources,3183069,Fees and services,51300,Professional Fees,£963.00,1170,Kent County Council,600012818
03/03/2016,Technical Fire Safety,3183069,Fees and services,51300,Professional Fees,£516.00,1170,Kent County Council,600012818
03/03/2016,Transport and Operational Support,3183021,Equipment and supplies,50200,Operational Equipment,£577.00,3428,Collins Nets Ltd,78476
03/03/2016,Transport and Operational Support,3182990,Equipment and supplies,50205,Operational Equipment Maintenance,£267.90,3459,Fire Hosetech Ltd,3748
03/03/2016,Transport and Operational Support,3182991,Equipment and supplies,50205,Operational Equipment Maintenance,£428.52,3459,Fire Hosetech Ltd,3747
04/03/2016,Training & Development,3183227,Equipment and supplies,50200,Operational Equipment,£925.55,180,BOC Ltd,3034745041
04/03/2016,Transport and Operational Support,3183200,Equipment and supplies,50205,Operational Equipment Maintenance,"£3,265.80",275,Clan Tools & Plant Ltd,INV24439
04/03/2016,Corporate Management & Member Services,3183221,"Salaries, allowances and on-costs",450,Service Support Staff Agency Staff,£269.55,762,New Appointments Group Ltd,217157
04/03/2016,Information Systems & communications,3183220,"Salaries, allowances and on-costs",450,Service Support Staff Agency Staff,£461.25,762,New Appointments Group Ltd,217158
04/03/2016,Transport and Operational Support,3182960,Equipment and supplies,50300,Hydrants - Maintenance,£305.90,2092,South East Water Ltd,INV0174171
04/03/2016,Transport and Operational Support,3182961,Equipment and supplies,50300,Hydrants - Maintenance,£963.98,2092,South East Water Ltd,INV0174170
04/03/2016,Facilities Stores & Procurement,3183252,Utility costs,30202,Energy Costs - Gas,£276.65,2590,KCS Laser,G3868522
04/03/2016,Facilities Stores & Procurement,3183251,Utility costs,30202,Energy Costs - Gas,£406.22,2590,KCS Laser,G3868516
04/03/2016,Community Safety,3183238,Equipment and supplies,50200,Operational Equipment,"£15,562.80",3674,Sprue Safety Products Ltd,1089314
04/03/2016,Community Safety,3183239,Equipment and supplies,50200,Operational Equipment,"£2,200.80",3674,Sprue Safety Products Ltd,1089294
04/03/2016,Human Resources,3183271,Fees and services,51300,Professional Fees,"£6,167.57",3675,Edenred (UK Group) Ltd,IN122635010
04/03/2016,Transport and Operational Support,3183217,Vehicle purchase and running costs,40301,Vehicle fuel,"£9,359.96",3834,Allstar Business Solutions Ltd,E2006214758
04/03/2016,Human Resources,3183281,Employee Insurance and other employee costs,10100,"Medical, Dental and Optical","£17,475.25",3843,Health Management Ltd,144632
04/03/2016,Facilities Stores & Procurement,3183246,"Repairs, maintenance and other costs",30500,Contract Cleaning,"£8,720.22",4041,Grade One Commercial Cleaning Services Ltd,130175
04/03/2016,Transport and Operational Support,3183249,"Repairs, maintenance and other costs",30500,Contract Cleaning,£431.00,4041,Grade One Commercial Cleaning Services Ltd,130174
04/03/2016,Facilities Stores & Procurement,3183282,"Repairs, maintenance and other costs",30104,Grounds maintenance,"£1,004.83",4063,Mark Walker (Grounds Maintenance) Ltd,122112
04/03/2016,Transport and Operational Support,3183296,"Salaries, allowances and on-costs",450,Service Support Staff Agency Staff,£409.50,4185,HR GO Recruitment Ltd,627567
04/03/2016,Human Resources,3183272,Fees and services,52700,Subscriptions to Organisations,£420.00,4237,VocaLink Limited,2165512
04/03/2016,Facilities Stores & Procurement,3183265,Communications and computing,52200,Postage & Courier Fees,£500.00,4262,Pitney Bowes Limited,60600904
04/03/2016,Human Resources,3183276,Fees and services,52700,Subscriptions to Organisations,"£2,000.00",4347,Carers Uk,SIN024290
07/03/2016,Premises & Programme Management,3183325,"Repairs, maintenance and other costs",30100,Premises Repairs and Maintenance,£424.00,36,Intec,14085
07/03/2016,Premises & Programme Management,3183326,"Repairs, maintenance and other costs",30100,Premises Repairs and Maintenance,"£1,248.00",36,Intec,14092
07/03/2016,Transport and Operational Support,3183308,Vehicle purchase and running costs,40203,Tyres,"£2,804.37",135,ATS Euromaster Ltd,A9980115024
07/03/2016,Transport and Operational Support,3183235,Equipment and supplies,50200,Operational Equipment,"£1,512.13",180,BOC Ltd,3034745042
07/03/2016,Transport and Operational Support,3183280,Equipment and supplies,50206,Medical & First Aid,"£1,013.50",652,Laerdal Medical Ltd,2016/UK000004078
07/03/2016,Transport and Operational Support,3183290,Vehicle purchase and running costs,40200,Vehicle Consumables,£290.00,657,LCP Engineering Co Ltd,1 198905
07/03/2016,Information Systems & communications,3183085,Communications and computing,52101,Mobile Telephone Costs,"£1,487.98",1083,Wireless Logic Ltd,AP/543707
07/03/2016,Transport and Operational Support,3183259,Vehicle purchase and running costs,40200,Vehicle Consumables,£333.12,1213,Scania (Great Britain) Ltd,24599354
07/03/2016,Information Systems & communications,3183295,Communications and computing,52002,Opernl Comms equipt repairs & mtce,£260.00,2249,Smye-Rumsby Ltd,146471
07/03/2016,Information Systems & communications,3183305,Communications and computing,52102,Pagers and Alerters,£340.00,2249,Smye-Rumsby Ltd,146466
07/03/2016,Premises & Programme Management,3183255,Capital Spend,CP101,Building Works,"£3,368.82",2407,C Barber,1986
07/03/2016,Facilities Stores & Procurement,3183337,Utility costs,30200,Energy Costs - Fuel Oil,£828.31,2590,KCS Laser,F3868201
07/03/2016,Transport and Operational Support,3183299,Vehicle purchase and running costs,40301,Vehicle fuel,"£3,964.63",2590,KCS Laser,F3868202
07/03/2016,Premises & Programme Management,3183283,"Repairs, maintenance and other costs",30100,Premises Repairs and Maintenance,"£15,059.00",3193,Astral Ltd,8164
07/03/2016,Community Safety,3183331,Other supplies and services,52900,Publicity,£279.40,3420,Superfast Labels Ltd,85733
07/03/2016,Community Safety,3183316,Fees and services,52700,Subscriptions to Organisations,"£1,260.00",3660,IAAI-UK,SI-15-160
07/03/2016,Community Safety,3183274,Equipment and supplies,50200,Operational Equipment,£383.75,3821,Solon Security,SI16001851
07/03/2016,Premises & Programme Management,3183237,"Repairs, maintenance and other costs",30100,Premises Repairs and Maintenance,"£2,577.70",4098,Theobalds (Refurbishment) Ltd,1880
07/03/2016,Information Systems & communications,3183267,Communications and computing,52304,Computer Technical Services,"£2,625.00",4208,Capita Secure Information Solutions Ltd,6060010595
07/03/2016,Premises & Programme Management,3183324,"Repairs, maintenance and other costs",30100,Premises Repairs and Maintenance,"£1,263.50",4211,P & I Generators Ltd,17302
08/03/2016,Facilities Stores & Procurement,3183343,"Repairs, maintenance and other costs",30100,Premises Repairs and Maintenance,"£1,354.70",63,W S Parsons Ltd,002594TF
08/03/2016,Fire Fighting and Rescue Services,3183211,"Repairs, maintenance and other costs",30502,Cleaning Materials,£284.65,1132,Kent Commercial Services,I2501854
08/03/2016,Transport and Operational Support,3183348,Vehicle purchase and running costs,40201,Vehicle Maintenance,"£1,121.01",1197,Freight Transport Association Ltd,8263634
08/03/2016,Transport and Operational Support,3183349,Vehicle purchase and running costs,40200,Vehicle Consumables,£351.51,1592,RGVA,INV-00248
08/03/2016,Transport and Operational Support,3183297,Equipment and supplies,50300,Hydrants - Maintenance,£866.90,2092,South East Water Ltd,INV0174172
08/03/2016,Transport and Operational Support,3183298,Equipment and supplies,50300,Hydrants - Maintenance,£866.90,2092,South East Water Ltd,INV0174173
08/03/2016,Community Safety,3183352,Other supplies and services,52900,Publicity,"£2,400.00",3099,Hotline Group Limited,AGN2674
08/03/2016,Facilities Stores & Procurement,3183327,"Repairs, maintenance and other costs",30602,Security Charges,"£1,952.95",3862,Ward Security (Response) Ltd,36223
08/03/2016,Insurance Services,3183341,Vehicle purchase and running costs,40303,Vehicle Insurance Excess,"£1,341.39",4221,"Kent County Council, CTS Vehicle Services",23558
08/03/2016,Insurance Services,3183359,Vehicle purchase and running costs,40303,Vehicle Insurance Excess,"£1,029.47",4221,"Kent County Council, CTS Vehicle Services",23559
08/03/2016,Training & Development,3183307,Fees and services,51400,Consultancy Fees,"£3,365.60",4238,GF Gash Road & Rail Tunnel Fire Consultant Ltd,32
08/03/2016,Facilities Stores & Procurement,3183323,"Repairs, maintenance and other costs",30500,Contract Cleaning,£496.00,4241,Cordant Cleaning Ltd,CO052654
08/03/2016,Facilities Stores & Procurement,3183378,Communications and computing,52200,Postage & Courier Fees,£750.00,4262,Pitney Bowes Limited,60640916
09/03/2016,Corporate Management & Member Services,3183397,"Salaries, allowances and on-costs",450,Service Support Staff Agency Staff,£449.25,762,New Appointments Group Ltd,217283
09/03/2016,Transport and Operational Support,3182689,Equipment and supplies,50206,Medical & First Aid,£257.53,948,SP Services,801442
09/03/2016,Facilities Stores & Procurement,3183385,Utility costs,30201,Energy Costs - Electricity,£772.87,2590,KCS Laser,E3870715
09/03/2016,Facilities Stores & Procurement,3183386,Utility costs,30201,Energy Costs - Electricity,£366.51,2590,KCS Laser,E3870718
09/03/2016,Facilities Stores & Procurement,3183388,Utility costs,30201,Energy Costs - Electricity,£379.97,2590,KCS Laser,E3870724
09/03/2016,Facilities Stores & Procurement,3183113,Equipment and supplies,50910,Workwear and uniform,£270.05,4090,MWUK Limited T/A Dimensions,OLSINV/03259749
09/03/2016,Training & Development,3183381,Training Expenses,10500,Operational Staff Exam & Course Fees,"£1,500.00",4255,Oliver & Company (UK) Ltd,1197
10/03/2016,Premises & Programme Management,3183394,Capital Spend,CP101,Building Works,"£89,383.91",1132,Kent Commercial Services,I2499599
10/03/2016,Information Systems & communications,3183332,Communications and computing,52300,Computer hardware,"£2,328.00",1690,Specialist Computer Centres PLC,OP/M117445
10/03/2016,Premises & Programme Management,3183284,"Repairs, maintenance and other costs",30100,Premises Repairs and Maintenance,"£14,668.00",3193,Astral Ltd,8165
10/03/2016,Premises & Programme Management,3183285,"Repairs, maintenance and other costs",30100,Premises Repairs and Maintenance,"£17,601.00",3193,Astral Ltd,8166
10/03/2016,Premises & Programme Management,3183286,"Repairs, maintenance and other costs",30100,Premises Repairs and Maintenance,"£9,943.00",3193,Astral Ltd,8167
10/03/2016,Premises & Programme Management,3183287,"Repairs, maintenance and other costs",30100,Premises Repairs and Maintenance,"£11,573.00",3193,Astral Ltd,8168
10/03/2016,Community Safety,3183413,Equipment and supplies,50200,Operational Equipment,£383.75,3821,Solon Security,SI16001888
10/03/2016,Training & Development,3183400,Fees and services,51300,Professional Fees,£470.00,3829,Lantra,WEBINV016551
10/03/2016,Information Systems & communications,3183351,Communications and computing,52304,Computer Technical Services,"£2,000.00",4018,Modality Systems Ltd,I16/1919-2546
10/03/2016,Technical Fire Safety,3183270,Other supplies and services,52900,Publicity,£351.30,4109,KM Media Group Ltd,710387
10/03/2016,Transport and Operational Support,3183360,Vehicle purchase and running costs,40200,Vehicle Consumables,"£17,048.59",4221,"Kent County Council, CTS Vehicle Services",23555
10/03/2016,Transport and Operational Support,3183360,Vehicle purchase and running costs,40201,Vehicle Maintenance,"£23,547.51",4221,"Kent County Council, CTS Vehicle Services",23555
10/03/2016,Insurance Services,3183336,Fees and services,51300,Professional Fees,£865.00,3583,Intelligent Data Systems (UK) Ltd,25296
10/03/2016,Facilities Stores & Procurement,3183483,"Repairs, maintenance and other costs",30104,Grounds maintenance,"£1,065.58",57,Serco Ltd,91244896
10/03/2016,Premises & Programme Management,3183451,"Repairs, maintenance and other costs",30100,Premises Repairs and Maintenance,£282.57,63,W S Parsons Ltd,002661TF
10/03/2016,Premises & Programme Management,3183457,"Repairs, maintenance and other costs",30100,Premises Repairs and Maintenance,£325.87,63,W S Parsons Ltd,002668TF
10/03/2016,Transport and Operational Support,3183302,Capital Spend,CV303,Select Pumping Appliance,"£56,673.00",607,John Dennis Coachbuilders Ltd,40836
10/03/2016,Transport and Operational Support,3183476,Equipment and supplies,50206,Medical & First Aid,£591.50,652,Laerdal Medical Ltd,2016/UK000004323
10/03/2016,"Corporate Policy, Communications & Marketing",3183489,Other supplies and services,52900,Publicity,£458.50,1167,Canterbury City Council,2194284
10/03/2016,Direct Pension Costs,3183266,Direct pension costs,20100,Service Support Staff Pension,"£2,290.47",1170,Kent County Council,600012845
10/03/2016,Corporate Management & Member Services,3183425,Fees and services,52700,Subscriptions to Organisations,"£9,166.00",2383,CFOA (Services) Ltd,CFOA 4273
10/03/2016,Premises & Programme Management,3183488,Capital Spend,CP101,Building Works,£298.76,2407,C Barber,1988
10/03/2016,Facilities Stores & Procurement,3183428,"Repairs, maintenance and other costs",30500,Contract Cleaning,"£1,226.90",4040,Hi Spec Facilities Services Plc,29261
10/03/2016,Training & Development,3183468,Training Expenses,10500,Operational Staff Exam & Course Fees,£283.00,4061,Kent Police & Crime Commissioner,1800032737
10/03/2016,Transport and Operational Support,3183473,Equipment and supplies,50900,PPE - Operational,"£55,464.01",4079,Ballyclare Ltd,770212
10/03/2016,Transport and Operational Support,3183474,Equipment and supplies,50900,PPE - Operational,£691.27,4079,Ballyclare Ltd,770213
10/03/2016,Transport and Operational Support,3183494,Equipment and supplies,50200,Operational Equipment,"£2,210.88",4087,Angus Fire Ltd,8033730
10/03/2016,Training & Development,3183501,Equipment and supplies,50400,Training Equipment,"£3,280.00",4173,Rosenbauer UK Plc,6531
11/03/2016,Premises & Programme Management,3183505,"Repairs, maintenance and other costs",30100,Premises Repairs and Maintenance,£445.00,36,Intec,14196
11/03/2016,Premises & Programme Management,3183555,"Repairs, maintenance and other costs",30100,Premises Repairs and Maintenance,£391.00,36,Intec,14201
11/03/2016,Premises & Programme Management,3183562,"Repairs, maintenance and other costs",30100,Premises Repairs and Maintenance,£400.00,36,Intec,14195
11/03/2016,Premises & Programme Management,3183565,"Repairs, maintenance and other costs",30100,Premises Repairs and Maintenance,£411.41,36,Intec,14218
11/03/2016,Premises & Programme Management,3183568,"Repairs, maintenance and other costs",30100,Premises Repairs and Maintenance,£992.00,36,Intec,14228
11/03/2016,Premises & Programme Management,3183572,"Repairs, maintenance and other costs",30100,Premises Repairs and Maintenance,£265.59,36,Intec,14232
11/03/2016,Premises & Programme Management,3183575,"Repairs, maintenance and other costs",30100,Premises Repairs and Maintenance,£287.98,36,Intec,14253
11/03/2016,Premises & Programme Management,3183592,"Repairs, maintenance and other costs",30100,Premises Repairs and Maintenance,£295.36,63,W S Parsons Ltd,002456TF
11/03/2016,Premises & Programme Management,3183597,"Repairs, maintenance and other costs",30100,Premises Repairs and Maintenance,£293.65,63,W S Parsons Ltd,002563TF
11/03/2016,Premises & Programme Management,3183599,"Repairs, maintenance and other costs",30100,Premises Repairs and Maintenance,£393.85,63,W S Parsons Ltd,002575TF
11/03/2016,Premises & Programme Management,3183601,"Repairs, maintenance and other costs",30100,Premises Repairs and Maintenance,£389.88,63,W S Parsons Ltd,002577TF
11/03/2016,Information Systems & communications,3183500,Communications and computing,52101,Mobile Telephone Costs,"£3,267.74",81,O2 (UK) Limited,83557634
11/03/2016,Transport and Operational Support,3183486,Equipment and supplies,50205,Operational Equipment Maintenance,£290.50,116,Angloco Ltd,OP/I036363
11/03/2016,Transport and Operational Support,3183588,Vehicle purchase and running costs,40201,Vehicle Maintenance,£444.00,167,Beadles Maidstone Ltd,21643
11/03/2016,Transport and Operational Support,3183317,Equipment and supplies,50205,Operational Equipment Maintenance,"£4,973.85",275,Clan Tools & Plant Ltd,INV24440
11/03/2016,Transport and Operational Support,3183472,Equipment and supplies,50200,Operational Equipment,£320.58,548,J Hudson & Co (Whistles) Ltd,66567
11/03/2016,Facilities Stores & Procurement,3183526,Utility costs,30202,Energy Costs - Gas,£399.34,2590,KCS Laser,G3875565
11/03/2016,Facilities Stores & Procurement,3183523,Utility costs,30202,Energy Costs - Gas,£546.84,2590,KCS Laser,G3875561
11/03/2016,Facilities Stores & Procurement,3183530,Utility costs,30202,Energy Costs - Gas,£656.66,2590,KCS Laser,G3875568
11/03/2016,Facilities Stores & Procurement,3183533,Utility costs,30202,Energy Costs - Gas,£661.44,2590,KCS Laser,G3875570
11/03/2016,Facilities Stores & Procurement,3183531,Utility costs,30202,Energy Costs - Gas,£752.26,2590,KCS Laser,G3875569
11/03/2016,Facilities Stores & Procurement,3183527,Utility costs,30202,Energy Costs - Gas,£853.31,2590,KCS Laser,G3875566
11/03/2016,Facilities Stores & Procurement,3183528,Utility costs,30202,Energy Costs - Gas,£978.46,2590,KCS Laser,G3875567
11/03/2016,Facilities Stores & Procurement,3183524,Utility costs,30202,Energy Costs - Gas,"£1,058.66",2590,KCS Laser,G3875562
11/03/2016,Facilities Stores & Procurement,3183556,Utility costs,30202,Energy Costs - Gas,"£1,061.27",2590,KCS Laser,G3875588
11/03/2016,Facilities Stores & Procurement,3183522,Utility costs,30202,Energy Costs - Gas,"£1,145.11",2590,KCS Laser,G3875560
11/03/2016,Facilities Stores & Procurement,3183433,"Repairs, maintenance and other costs",30501,Refuse Collection and waste disposal,"£3,880.02",4045,Viridor Waste Management Ltd,0001574104AB
11/03/2016,Training & Development,3183466,Training Expenses,10500,Operational Staff Exam & Course Fees,£283.00,4061,Kent Police & Crime Commissioner,1800032739
11/03/2016,Training & Development,3183467,Training Expenses,10500,Operational Staff Exam & Course Fees,£283.00,4061,Kent Police & Crime Commissioner,1800032738
11/03/2016,Training & Development,3183469,Training Expenses,10500,Operational Staff Exam & Course Fees,£283.00,4061,Kent Police & Crime Commissioner,1800032736
11/03/2016,Training & Development,3183470,Training Expenses,10500,Operational Staff Exam & Course Fees,£283.00,4061,Kent Police & Crime Commissioner,1800032735
11/03/2016,Premises & Programme Management,3183583,"Repairs, maintenance and other costs",30100,Premises Repairs and Maintenance,"£19,570.00",4251,Aluminium Door & Window Solutions Ltd,31012016259
11/03/2016,Premises & Programme Management,3183584,"Repairs, maintenance and other costs",30100,Premises Repairs and Maintenance,"£18,525.00",4251,Aluminium Door & Window Solutions Ltd,29022016668
14/03/2016,Premises & Programme Management,3183552,"Repairs, maintenance and other costs",30100,Premises Repairs and Maintenance,£604.58,36,Intec,14202
14/03/2016,Premises & Programme Management,3183654,"Repairs, maintenance and other costs",30100,Premises Repairs and Maintenance,£250.00,36,Intec,14281
14/03/2016,Premises & Programme Management,3183449,"Repairs, maintenance and other costs",30100,Premises Repairs and Maintenance,£533.38,63,W S Parsons Ltd,002658TF
14/03/2016,Premises & Programme Management,3183593,"Repairs, maintenance and other costs",30100,Premises Repairs and Maintenance,£645.15,63,W S Parsons Ltd,002490TF
14/03/2016,Premises & Programme Management,3183595,"Repairs, maintenance and other costs",30100,Premises Repairs and Maintenance,£655.32,63,W S Parsons Ltd,002536TF
14/03/2016,Premises & Programme Management,3183598,"Repairs, maintenance and other costs",30100,Premises Repairs and Maintenance,£709.23,63,W S Parsons Ltd,002606TF
14/03/2016,Transport and Operational Support,3183639,Vehicle purchase and running costs,40200,Vehicle Consumables,£474.08,367,D & S Supplies,4419
14/03/2016,Transport and Operational Support,3183631,Vehicle purchase and running costs,40201,Vehicle Maintenance,£281.61,646,W J King (Garages) Ltd,32400516
14/03/2016,Training & Development,3183623,Training Expenses,10600,Professional Staff  Exam & Course Fees,£400.00,1110,East Sussex Fire Authority,8019003024
14/03/2016,Finance,3183628,Fees and services,51301,Bought In / Contracted Out Services,"£8,860.00",1170,Kent County Council,600012947
14/03/2016,Transport and Operational Support,3183502,Vehicle purchase and running costs,40201,Vehicle Maintenance,£370.90,1213,Scania (Great Britain) Ltd,24096853
14/03/2016,Transport and Operational Support,3183635,Vehicle purchase and running costs,40201,Vehicle Maintenance,£295.00,1213,Scania (Great Britain) Ltd,24097734
14/03/2016,Information Systems & communications,3183333,Communications and computing,52300,Computer hardware,£663.00,1690,Specialist Computer Centres PLC,OP/M128934
14/03/2016,Corporate Management & Member Services,3183426,Other supplies and services,52400,Conference Expenses,£350.00,2383,CFOA (Services) Ltd,CSL15010
14/03/2016,Facilities Stores & Procurement,3183670,Utility costs,30201,Energy Costs - Electricity,"£1,499.54",2590,KCS Laser,E3882686
14/03/2016,Facilities Stores & Procurement,3183679,Utility costs,30201,Energy Costs - Electricity,£337.23,2590,KCS Laser,E3882703
14/03/2016,Facilities Stores & Procurement,3183680,Utility costs,30201,Energy Costs - Electricity,£315.67,2590,KCS Laser,E3882705
14/03/2016,Facilities Stores & Procurement,3183686,Utility costs,30201,Energy Costs - Electricity,£397.18,2590,KCS Laser,E3882717
14/03/2016,Facilities Stores & Procurement,3183691,Utility costs,30201,Energy Costs - Electricity,£307.47,2590,KCS Laser,E3882726
14/03/2016,Facilities Stores & Procurement,3183692,Utility costs,30201,Energy Costs - Electricity,"£1,304.91",2590,KCS Laser,E3882727
14/03/2016,Facilities Stores & Procurement,3183694,Utility costs,30201,Energy Costs - Electricity,£721.17,2590,KCS Laser,E3882729
14/03/2016,Facilities Stores & Procurement,3183695,Utility costs,30201,Energy Costs - Electricity,£546.76,2590,KCS Laser,E3882730
14/03/2016,Facilities Stores & Procurement,3183696,Utility costs,30201,Energy Costs - Electricity,£598.48,2590,KCS Laser,E3882732
14/03/2016,Facilities Stores & Procurement,3183698,Utility costs,30201,Energy Costs - Electricity,£262.22,2590,KCS Laser,E3882734
14/03/2016,Facilities Stores & Procurement,3183699,Utility costs,30201,Energy Costs - Electricity,£368.71,2590,KCS Laser,E3882735
14/03/2016,Facilities Stores & Procurement,3183700,Utility costs,30201,Energy Costs - Electricity,£364.83,2590,KCS Laser,E3882736
14/03/2016,Facilities Stores & Procurement,3183701,Utility costs,30201,Energy Costs - Electricity,£315.11,2590,KCS Laser,E3882737
14/03/2016,Facilities Stores & Procurement,3183702,Utility costs,30201,Energy Costs - Electricity,£324.95,2590,KCS Laser,E3882738
14/03/2016,Facilities Stores & Procurement,3183704,Utility costs,30201,Energy Costs - Electricity,£326.19,2590,KCS Laser,E3882740
14/03/2016,Facilities Stores & Procurement,3183705,Utility costs,30201,Energy Costs - Electricity,£744.33,2590,KCS Laser,E3882741
14/03/2016,Facilities Stores & Procurement,3183707,Utility costs,30201,Energy Costs - Electricity,£358.00,2590,KCS Laser,E3882743
14/03/2016,Facilities Stores & Procurement,3183557,Utility costs,30202,Energy Costs - Gas,"£1,350.04",2590,KCS Laser,G3875589
14/03/2016,Information Systems & communications,3183434,Communications and computing,52100,Telephone & Fax Costs,£287.36,3575,Virgin Business Media,817882-112
14/03/2016,Facilities Stores & Procurement,3183417,Equipment and supplies,50910,Workwear and uniform,£287.09,4090,MWUK Limited T/A Dimensions,OLSINV/03259772
14/03/2016,Human Resources,3183622,Communications and computing,52304,Computer Technical Services,£425.00,4160,Midland Software Ltd trading as MHR,38139
15/03/2016,Premises & Programme Management,3183642,"Repairs, maintenance and other costs",30100,Premises Repairs and Maintenance,£328.00,36,Intec,14164
15/03/2016,Premises & Programme Management,3183656,"Repairs, maintenance and other costs",30100,Premises Repairs and Maintenance,"£2,149.00",36,Intec,14129
15/03/2016,Premises & Programme Management,3183732,"Repairs, maintenance and other costs",30100,Premises Repairs and Maintenance,£250.00,36,Intec,14345
15/03/2016,Premises & Programme Management,3183734,"Repairs, maintenance and other costs",30100,Premises Repairs and Maintenance,£325.10,36,Intec,14354
15/03/2016,Premises & Programme Management,3183740,"Repairs, maintenance and other costs",30100,Premises Repairs and Maintenance,£266.68,36,Intec,14337
15/03/2016,Premises & Programme Management,3183745,"Repairs, maintenance and other costs",30100,Premises Repairs and Maintenance,£267.00,36,Intec,14342
15/03/2016,Premises & Programme Management,3183746,"Repairs, maintenance and other costs",30100,Premises Repairs and Maintenance,£266.89,36,Intec,14341
15/03/2016,Premises & Programme Management,3183759,"Repairs, maintenance and other costs",30100,Premises Repairs and Maintenance,£268.92,36,Intec,14319
15/03/2016,Premises & Programme Management,3183769,"Repairs, maintenance and other costs",30100,Premises Repairs and Maintenance,£305.35,36,Intec,14320
15/03/2016,Premises & Programme Management,3183781,"Repairs, maintenance and other costs",30100,Premises Repairs and Maintenance,£977.00,36,Intec,14327
15/03/2016,Premises & Programme Management,3183783,"Repairs, maintenance and other costs",30100,Premises Repairs and Maintenance,£311.16,36,Intec,14325
15/03/2016,Premises & Programme Management,3183789,"Repairs, maintenance and other costs",30100,Premises Repairs and Maintenance,£300.00,36,Intec,14307
15/03/2016,Premises & Programme Management,3183801,"Repairs, maintenance and other costs",30100,Premises Repairs and Maintenance,£355.50,36,Intec,14293
15/03/2016,Premises & Programme Management,3183829,"Repairs, maintenance and other costs",30100,Premises Repairs and Maintenance,£257.53,36,Intec,14378
15/03/2016,Premises & Programme Management,3183832,"Repairs, maintenance and other costs",30100,Premises Repairs and Maintenance,£250.00,36,Intec,14374
15/03/2016,Premises & Programme Management,3183862,"Repairs, maintenance and other costs",30100,Premises Repairs and Maintenance,£699.00,36,Intec,14398
15/03/2016,Premises & Programme Management,3183864,"Repairs, maintenance and other costs",30100,Premises Repairs and Maintenance,"£2,425.00",36,Intec,14088
15/03/2016,Premises & Programme Management,3183344,"Repairs, maintenance and other costs",30100,Premises Repairs and Maintenance,£593.29,63,W S Parsons Ltd,002613TF
15/03/2016,Facilities Stores & Procurement,3183715,Utility costs,30201,Energy Costs - Electricity,£351.38,2590,KCS Laser,E3882752
15/03/2016,Facilities Stores & Procurement,3183717,Utility costs,30201,Energy Costs - Electricity,£917.50,2590,KCS Laser,E3882754
15/03/2016,Facilities Stores & Procurement,3183718,Utility costs,30201,Energy Costs - Electricity,£401.71,2590,KCS Laser,E3882755
15/03/2016,Facilities Stores & Procurement,3183720,Utility costs,30202,Energy Costs - Gas,"£1,642.74",2590,KCS Laser,G3882564
15/03/2016,Transport and Operational Support,3183834,Equipment and supplies,50900,PPE - Operational,£266.78,4079,Ballyclare Ltd,767263
15/03/2016,Training & Development,3183805,Equipment and supplies,50400,Training Equipment,£987.66,4142,Copart Ltd,107616222
15/03/2016,Training & Development,3183826,Equipment and supplies,50400,Training Equipment,£551.00,4142,Copart Ltd,107616236
15/03/2016,Transport and Operational Support,3183667,"Salaries, allowances and on-costs",450,Service Support Staff Agency Staff,£455.00,4185,HR GO Recruitment Ltd,628353
15/03/2016,Premises & Programme Management,3183303,"Repairs, maintenance and other costs",30100,Premises Repairs and Maintenance,£360.00,4267,H & K Safety Services Ltd,INV-7662
16/03/2016,Premises & Programme Management,3183650,"Repairs, maintenance and other costs",30100,Premises Repairs and Maintenance,£645.30,36,Intec,14269
16/03/2016,Premises & Programme Management,3183652,"Repairs, maintenance and other costs",30100,Premises Repairs and Maintenance,£459.25,36,Intec,14277
16/03/2016,Premises & Programme Management,3183722,"Repairs, maintenance and other costs",30100,Premises Repairs and Maintenance,£727.55,36,Intec,14362
16/03/2016,Premises & Programme Management,3183723,"Repairs, maintenance and other costs",30100,Premises Repairs and Maintenance,£520.00,36,Intec,14361
16/03/2016,Premises & Programme Management,3183726,"Repairs, maintenance and other costs",30100,Premises Repairs and Maintenance,£437.00,36,Intec,14367
16/03/2016,Premises & Programme Management,3183739,"Repairs, maintenance and other costs",30100,Premises Repairs and Maintenance,£520.00,36,Intec,14338
16/03/2016,Premises & Programme Management,3183784,"Repairs, maintenance and other costs",30100,Premises Repairs and Maintenance,£654.18,36,Intec,14324
16/03/2016,Premises & Programme Management,3183798,"Repairs, maintenance and other costs",30100,Premises Repairs and Maintenance,£482.00,36,Intec,14288
16/03/2016,Premises & Programme Management,3183802,"Repairs, maintenance and other costs",30100,Premises Repairs and Maintenance,£450.75,36,Intec,14292
16/03/2016,Premises & Programme Management,3183813,"Repairs, maintenance and other costs",30100,Premises Repairs and Maintenance,"£1,126.00",36,Intec,14077
16/03/2016,Premises & Programme Management,3183841,"Repairs, maintenance and other costs",30100,Premises Repairs and Maintenance,£436.87,36,Intec,14369
16/03/2016,Premises & Programme Management,3183848,"Repairs, maintenance and other costs",30100,Premises Repairs and Maintenance,£454.41,36,Intec,14368
16/03/2016,Premises & Programme Management,3183856,"Repairs, maintenance and other costs",30100,Premises Repairs and Maintenance,£278.00,36,Intec,14402
16/03/2016,Premises & Programme Management,3183859,"Repairs, maintenance and other costs",30100,Premises Repairs and Maintenance,£566.00,36,Intec,14388
16/03/2016,Premises & Programme Management,3183869,"Repairs, maintenance and other costs",30100,Premises Repairs and Maintenance,£285.37,36,Intec,14303
16/03/2016,Premises & Programme Management,3183870,"Repairs, maintenance and other costs",30100,Premises Repairs and Maintenance,£251.09,36,Intec,14284
16/03/2016,Premises & Programme Management,3183871,"Repairs, maintenance and other costs",30100,Premises Repairs and Maintenance,£255.00,36,Intec,14300
16/03/2016,Premises & Programme Management,3183988,"Repairs, maintenance and other costs",30100,Premises Repairs and Maintenance,"£1,927.00",36,Intec,14240
16/03/2016,Premises & Programme Management,3183866,Capital Spend,CP101,Building Works,"£8,068.90",201,British Telecom Plc,CNS 226511
16/03/2016,Premises & Programme Management,3183974,"Repairs, maintenance and other costs",30100,Premises Repairs and Maintenance,"£2,380.93",687,Maidstone Signs Ltd,34553
16/03/2016,Premises & Programme Management,3183976,"Repairs, maintenance and other costs",30100,Premises Repairs and Maintenance,£519.88,687,Maidstone Signs Ltd,34555
16/03/2016,Premises & Programme Management,3183975,Capital Spend,CP101,Building Works,£292.37,687,Maidstone Signs Ltd,34554
16/03/2016,Transport and Operational Support,3183791,Vehicle purchase and running costs,40200,Vehicle Consumables,£372.40,805,Perrys Motor Sales Limited,16551700
16/03/2016,Transport and Operational Support,3183990,Equipment and supplies,51000,Printing,£548.00,1130,Tonbridge & Malling Borough Council,48246
16/03/2016,Facilities Stores & Procurement,3183749,Equipment and supplies,50101,"Books, Stationery & Office Equipment",£476.75,1132,Kent Commercial Services,I2512082
16/03/2016,Facilities Stores & Procurement,3183960,Equipment and supplies,50903,Toiletries,£263.33,1132,Kent Commercial Services,I2516256
16/03/2016,Information Systems & communications,3183419,Equipment and supplies,51001,Photocopying Contracts,"£1,278.93",1132,Kent Commercial Services,PRCOP0257395
16/03/2016,Facilities Stores & Procurement,3183083,Fees and services,51300,Professional Fees,"£1,134.00",1170,Kent County Council,600012821
16/03/2016,Human Resources,3183083,Fees and services,51300,Professional Fees,£657.00,1170,Kent County Council,600012821
16/03/2016,Premises & Programme Management,3183346,Capital Spend,CP101,Building Works,£372.95,1824,Poyntell Limited,303763
16/03/2016,Human Resources,3183634,Employee Insurance and other employee costs,10300,Staff Advertising and interview expenses,"£1,409.40",1921,Reed Business Information Ltd,20836737
16/03/2016,Information Systems & communications,3183664,Communications and computing,52102,Pagers and Alerters,"£43,036.00",2249,Smye-Rumsby Ltd,146536
16/03/2016,Premises & Programme Management,3183907,Capital Spend,CP101,Building Works,£578.65,2407,C Barber,1984
16/03/2016,Transport and Operational Support,3183940,Vehicle purchase and running costs,40301,Vehicle fuel,"£7,964.78",2590,KCS Laser,F3882964
16/03/2016,Transport and Operational Support,3183941,Vehicle purchase and running costs,40301,Vehicle fuel,"£8,028.25",2590,KCS Laser,F3882948
16/03/2016,Transport and Operational Support,3183917,Equipment and supplies,50200,Operational Equipment,£348.00,2634,Blue Diamond STL,170566
16/03/2016,Information Systems & communications,3183636,Communications and computing,52001,Opernl Comms equipment rental,"£55,342.18",2684,Department of Communities & Local Government,1800022351
16/03/2016,Fire Fighting and Rescue Services,3183964,Equipment and supplies,50902,Bedding,£480.00,3540,Nestledown Beds Ltd,OP/I255325
16/03/2016,Technical Fire Safety,3183915,Fees and services,51300,Professional Fees,"£2,500.00",3602,David Stotesbury,1046
16/03/2016,Facilities Stores & Procurement,3183738,"Repairs, maintenance and other costs",30602,Security Charges,£474.38,3862,Ward Security (Response) Ltd,34887
16/03/2016,Training & Development,3183952,Training Expenses,10500,Operational Staff Exam & Course Fees,"£1,725.00",4061,Kent Police & Crime Commissioner,1800032782
16/03/2016,Training & Development,3183989,Training Expenses,10500,Operational Staff Exam & Course Fees,"£2,902.49",4061,Kent Police & Crime Commissioner,1800032781
16/03/2016,Transport and Operational Support,3183879,Equipment and supplies,50900,PPE - Operational,£340.00,4079,Ballyclare Ltd,767408
16/03/2016,Transport and Operational Support,3183968,Fees and services,51300,Professional Fees,"£1,260.00",4084,Sharpe Pritchard,83977
16/03/2016,Premises & Programme Management,3183657,"Repairs, maintenance and other costs",30100,Premises Repairs and Maintenance,£350.00,4098,Theobalds (Refurbishment) Ltd,1884
16/03/2016,Training & Development,3183972,Equipment and supplies,50400,Training Equipment,£495.00,4142,Copart Ltd,107616655
16/03/2016,Information Systems & communications,3183982,Communications and computing,52304,Computer Technical Services,"£17,440.00",4160,Midland Software Ltd trading as MHR,29461
16/03/2016,Premises & Programme Management,3183914,Capital Spend,CP101,Building Works,"£354,493.65",4205,Walker Construction (UK) Ltd,35374
16/03/2016,Premises & Programme Management,3183977,"Repairs, maintenance and other costs",30100,Premises Repairs and Maintenance,"£2,160.00",4226,Burtonwood Generator & Switchgear Services Ltd,26006
16/03/2016,"Corporate Policy, Communications & Marketing",3183875,Fees and services,51300,Professional Fees,£450.00,4246,Gorkana Group Ltd,GB_41949
16/03/2016,Transport and Operational Support,3183629,Equipment and supplies,50900,PPE - Operational,£931.52,4278,Beechwood Equipment Ltd,2505
16/03/2016,Premises & Programme Management,3183963,Capital Spend,CP101,Building Works,"£3,421.07",4332,Amey OW Ltd,90487795
16/03/2016,Human Resources,3183916,Employee Insurance and other employee costs,10300,Staff Advertising and interview expenses,"£1,600.00",4359,JGP Resourcing Limited,7007
17/03/2016,Premises & Programme Management,3183999,"Repairs, maintenance and other costs",30100,Premises Repairs and Maintenance,£380.00,36,Intec,14356
17/03/2016,Premises & Programme Management,3184012,"Repairs, maintenance and other costs",30100,Premises Repairs and Maintenance,£300.00,36,Intec,14352
17/03/2016,Transport and Operational Support,3184013,Equipment and supplies,50900,PPE - Operational,"£1,245.84",202,Bristol Uniforms Limited,336316
17/03/2016,Facilities Stores & Procurement,3183959,Equipment and supplies,50100,Office Furniture & Furnishings,£826.50,1132,Kent Commercial Services,I2515177
17/03/2016,Training & Development,3184014,Training Expenses,10500,Operational Staff Exam & Course Fees,"£7,000.00",1170,Kent County Council,600012944
17/03/2016,Training & Development,3184014,Training Expenses,10600,Professional Staff  Exam & Course Fees,"£5,250.00",1170,Kent County Council,600012944
17/03/2016,Transport and Operational Support,3184009,Equipment and supplies,50300,Hydrants - Maintenance,£866.90,2092,South East Water Ltd,INV0174521
17/03/2016,Transport and Operational Support,3183421,Vehicle purchase and running costs,40200,Vehicle Consumables,£266.16,2302,Haynes Ford,16861263
17/03/2016,Information Systems & communications,3183997,Communications and computing,52302,Computer Software,"£11,100.00",2724,Experian Ltd,HEX54000566664
17/03/2016,Information Systems & communications,3183950,Communications and computing,52001,Opernl Comms equipment rental,£629.69,3289,Airwave Solutions Ltd,0940000024-056
17/03/2016,Community Safety,3184008,Equipment and supplies,50200,Operational Equipment,£856.68,3686,L Whitaker & Sons (1983) Ltd,76143
17/03/2016,Transport and Operational Support,3183850,Equipment and supplies,50900,PPE - Operational,£262.18,4079,Ballyclare Ltd,767036
17/03/2016,Transport and Operational Support,3183889,Equipment and supplies,50900,PPE - Operational,£339.76,4079,Ballyclare Ltd,768170
17/03/2016,Human Resources,3183994,"Salaries, allowances and on-costs",450,Service Support Staff Agency Staff,£592.50,762,New Appointments Group Ltd,217398
17/03/2016,Transport and Operational Support,3184004,Vehicle purchase and running costs,40200,Vehicle Consumables,£310.00,941,Sparshatts of Kent Ltd,50383960
17/03/2016,Corporate Management & Member Services,3183416,Other supplies and services,52400,Conference Expenses,£324.00,2846,Laria,1673
17/03/2016,Information Systems & communications,3183954,Fees and services,51400,Consultancy Fees,"£4,560.00",3987,Marcus Donald People Ltd,22203
17/03/2016,Information Systems & communications,3183955,Fees and services,51400,Consultancy Fees,"£6,840.00",3987,Marcus Donald People Ltd,22306
18/03/2016,Premises & Programme Management,3184042,"Repairs, maintenance and other costs",30100,Premises Repairs and Maintenance,£511.68,36,Intec,14344
18/03/2016,Premises & Programme Management,3184044,"Repairs, maintenance and other costs",30100,Premises Repairs and Maintenance,£850.00,36,Intec,14279
18/03/2016,Transport and Operational Support,3183980,Capital Spend,CV303,Select Pumping Appliance,"£56,673.00",607,John Dennis Coachbuilders Ltd,40877
18/03/2016,Transport and Operational Support,3183984,Capital Spend,CV303,Select Pumping Appliance,"£70,000.00",607,John Dennis Coachbuilders Ltd,40878
18/03/2016,Facilities Stores & Procurement,3184027,Utility costs,30201,Energy Costs - Electricity,£452.70,2590,KCS Laser,E3888570
18/03/2016,Facilities Stores & Procurement,3184028,Utility costs,30201,Energy Costs - Electricity,"£1,145.51",2590,KCS Laser,E3888575
18/03/2016,Facilities Stores & Procurement,3184029,Utility costs,30201,Energy Costs - Electricity,"£1,672.51",2590,KCS Laser,E3888584
18/03/2016,Facilities Stores & Procurement,3184030,Utility costs,30201,Energy Costs - Electricity,"£1,260.46",2590,KCS Laser,E3888587
18/03/2016,Community Safety,3183479,Other supplies and services,52900,Publicity,"£5,601.75",3099,Hotline Group Limited,AGN2722
18/03/2016,Transport and Operational Support,3184022,Training Expenses,10500,Operational Staff Exam & Course Fees,"£11,160.00",3122,Bureau Veritas UK Ltd,16003999
18/03/2016,Transport and Operational Support,3183329,Equipment and supplies,50900,PPE - Operational,£876.00,3746,Total Protection (UK) Limited,48682
18/03/2016,Training & Development,3184025,Training Expenses,10500,Operational Staff Exam & Course Fees,"£2,091.05",4358,Trainer Bubble Ltd.,829
18/03/2016,Training & Development,3184025,Training Expenses,10600,Professional Staff  Exam & Course Fees,"£2,091.06",4358,Trainer Bubble Ltd.,829
21/03/2016,Human Resources,3184058,Employee Insurance and other employee costs,10100,"Medical, Dental and Optical","£1,424.00",128,ASE (Eye Care Plans) Ltd,39733
21/03/2016,Community Safety,3184045,Other supplies and services,52701,Grants and Contributions,"£2,557.00",1170,Kent County Council,800011808
21/03/2016,Corporate Management & Member Services,3184102,Other supplies and services,52701,Grants and Contributions,"£10,000.00",1170,Kent County Council,800011951
21/03/2016,Transport and Operational Support,3184054,Vehicle purchase and running costs,40200,Vehicle Consumables,£255.00,1213,Scania (Great Britain) Ltd,24599574
21/03/2016,Human Resources,3184076,Fees and services,51300,Professional Fees,£341.00,3047,Intra Orbis Ltd,29/2/2046
21/03/2016,Community Safety,3184084,Equipment and supplies,50200,Operational Equipment,£642.32,3686,L Whitaker & Sons (1983) Ltd,76308
21/03/2016,Information Systems & communications,3183873,Fees and services,51400,Consultancy Fees,"£11,250.00",3987,Marcus Donald People Ltd,22279
21/03/2016,Human Resources,3184079,Fees and services,51400,Consultancy Fees,"£3,400.00",4147,MJF Systems Ltd,KFRS27
21/03/2016,Transport and Operational Support,3184055,"Salaries, allowances and on-costs",450,Service Support Staff Agency Staff,£279.50,4185,HR GO Recruitment Ltd,629165
21/03/2016,Transport and Operational Support,3184101,Equipment and supplies,50200,Operational Equipment,"£2,390.00",4309,Rocket Bags,1016619
22/03/2016,Premises & Programme Management,3184041,"Repairs, maintenance and other costs",30100,Premises Repairs and Maintenance,£492.22,36,Intec,14385
22/03/2016,Information Systems & communications,3184062,Communications and computing,52302,Computer Software,"£4,663.18",267,Civica Services Ltd,1045653
22/03/2016,Transport and Operational Support,3184104,Vehicle purchase and running costs,40200,Vehicle Consumables,£391.89,367,D & S Supplies,4417
22/03/2016,Community Safety,3184063,Fees and services,51300,Professional Fees,£255.00,1032,University Of Kent,534811
22/03/2016,Premises & Programme Management,3184048,Utility costs,30302,Non Domestic Rates & Council Tax,"£16,153.83",1120,Medway Council,10000265942 0216-0316
22/03/2016,Facilities Stores & Procurement,3184131,Equipment and supplies,50100,Office Furniture & Furnishings,£895.73,1132,Kent Commercial Services,I2520324
22/03/2016,Facilities Stores & Procurement,3184132,Equipment and supplies,50100,Office Furniture & Furnishings,£298.58,1132,Kent Commercial Services,I2520325
22/03/2016,Information Systems & communications,3184130,Communications and computing,52305,Computer network costs,"£10,367.81",1170,Kent County Council,600013157
22/03/2016,Transport and Operational Support,3184107,Vehicle purchase and running costs,40200,Vehicle Consumables,£314.54,1724,Emergency One (UK) Ltd,17495
22/03/2016,Premises & Programme Management,3184120,"Repairs, maintenance and other costs",30100,Premises Repairs and Maintenance,£255.00,2037,Hag Shutters & Grilles Ltd,INV51448
22/03/2016,Premises & Programme Management,3184122,"Repairs, maintenance and other costs",30100,Premises Repairs and Maintenance,£548.90,2037,Hag Shutters & Grilles Ltd,INV51450
22/03/2016,Premises & Programme Management,3184123,"Repairs, maintenance and other costs",30100,Premises Repairs and Maintenance,£376.40,2037,Hag Shutters & Grilles Ltd,INV51451
22/03/2016,Premises & Programme Management,3184124,"Repairs, maintenance and other costs",30100,Premises Repairs and Maintenance,£305.60,2037,Hag Shutters & Grilles Ltd,INV51452
22/03/2016,Facilities Stores & Procurement,3184129,"Repairs, maintenance and other costs",30602,Security Charges,"£1,910.80",3862,Ward Security (Response) Ltd,36487
22/03/2016,Premises & Programme Management,3184082,Capital Spend,CN100,New Build Design fees,"£34,052.60",3926,Pick Everard,34012
22/03/2016,Premises & Programme Management,3184083,Capital Spend,CN100,New Build Design fees,"£5,406.17",3926,Pick Everard,34010
22/03/2016,Premises & Programme Management,3184105,"Repairs, maintenance and other costs",30100,Premises Repairs and Maintenance,"£3,704.50",4059,Healthy Buildings International,27232
22/03/2016,Premises & Programme Management,3183471,Capital Spend,CP101,Building Works,"£2,400.00",4135,Timeplan Fuel Solutions Limited,6528
22/03/2016,Premises & Programme Management,3184138,Capital Spend,CN101,New Build Main contractor,"£3,408.48",4205,Walker Construction (UK) Ltd,35372
22/03/2016,Premises & Programme Management,3184138,Capital Spend,CP101,Building Works,"£223,769.47",4205,Walker Construction (UK) Ltd,35372
22/03/2016,Insurance Services,3183339,Vehicle purchase and running costs,40303,Vehicle Insurance Excess,"£1,741.24",4221,"Kent County Council, CTS Vehicle Services",23556
22/03/2016,Information Systems & communications,3184115,Communications and computing,52302,Computer Software,£750.00,4348,Higher Mapping Solutions,1260
23/03/2016,Training & Development,3184143,Fees and services,51300,Professional Fees,"£1,284.00",1170,Kent County Council,600013162
23/03/2016,Community Safety,3184150,Other supplies and services,52701,Grants and Contributions,£750.00,1170,Kent County Council,400014632
23/03/2016,Facilities Stores & Procurement,3184155,"Repairs, maintenance and other costs",30104,Grounds maintenance,£686.71,3087,Barge Landscape Management,7130
23/03/2016,Insurance Services,3184137,Fees and services,51300,Professional Fees,£732.50,3583,Intelligent Data Systems (UK) Ltd,25654
23/03/2016,Transport and Operational Support,3184148,"Repairs, maintenance and other costs",30500,Contract Cleaning,£431.00,4041,Grade One Commercial Cleaning Services Ltd,129920
23/03/2016,Facilities Stores & Procurement,3184142,"Repairs, maintenance and other costs",30400,Water services,£424.16,4243,South East Water Ltd trading as South East Water Choices,30484057-7 Bill No 4
24/03/2016,Premises & Programme Management,3184159,"Repairs, maintenance and other costs",30100,Premises Repairs and Maintenance,£338.94,63,W S Parsons Ltd,002264TF
24/03/2016,Community Safety,3184051,Other supplies and services,52900,Publicity,£523.45,3099,Hotline Group Limited,AGN2972
24/03/2016,Training & Development,3184174,Training Expenses,10500,Operational Staff Exam & Course Fees,"£3,150.00",3481,Xact Consultancy & Training Ltd,16-1316
24/03/2016,Training & Development,3184174,Training Expenses,10600,Professional Staff  Exam & Course Fees,"£1,312.00",3481,Xact Consultancy & Training Ltd,16-1316
24/03/2016,Premises & Programme Management,3184147,"Repairs, maintenance and other costs",30100,Premises Repairs and Maintenance,"£1,186.00",3962,Fire Control Services Ltd,GL0658
24/03/2016,Fire Fighting and Rescue Services,3184180,Fees and services,51400,Consultancy Fees,"£4,455.00",4247,Asfalis Safety Ltd,1025
24/03/2016,Human Resources,3184187,Fees and services,51300,Professional Fees,£875.21,663,Local Government Association,40146121
24/03/2016,Community Safety,3184185,Other supplies and services,52701,Grants and Contributions,"£2,500.00",1124,Sevenoaks District Council,2042124
24/03/2016,Information Systems & communications,3184181,Fees and services,51300,Professional Fees,"£1,786.89",4084,Sharpe Pritchard,83978
24/03/2016,Transport and Operational Support,3184182,Fees and services,51300,Professional Fees,"£5,833.37",4300,University of Portsmouth Enterprise Ltd,ELI02209
25/03/2016,Transport and Operational Support,3184032,Capital Spend,CV303,Select Pumping Appliance,"£70,000.00",607,John Dennis Coachbuilders Ltd,40892
28/03/2016,Human Resources,3184177,"Salaries, allowances and on-costs",450,Service Support Staff Agency Staff,£730.75,762,New Appointments Group Ltd,217510
29/03/2016,Transport and Operational Support,3184033,Capital Spend,CV303,Select Pumping Appliance,"£70,000.00",607,John Dennis Coachbuilders Ltd,40893
29/03/2016,Transport and Operational Support,3184034,Capital Spend,CV303,Select Pumping Appliance,"£70,000.00",607,John Dennis Coachbuilders Ltd,40894
29/03/2016,Corporate Management & Member Services,3184175,"Salaries, allowances and on-costs",450,Service Support Staff Agency Staff,£359.40,762,New Appointments Group Ltd,217508
29/03/2016,Corporate Management & Member Services,3184176,"Salaries, allowances and on-costs",450,Service Support Staff Agency Staff,£371.78,762,New Appointments Group Ltd,217509
29/03/2016,Transport and Operational Support,3183884,Equipment and supplies,50900,PPE - Operational,£368.02,4079,Ballyclare Ltd,767111
29/03/2016,Premises & Programme Management,3184206,"Repairs, maintenance and other costs",30100,Premises Repairs and Maintenance,£314.00,36,Intec,14185
29/03/2016,Premises & Programme Management,3184207,"Repairs, maintenance and other costs",30100,Premises Repairs and Maintenance,£305.00,36,Intec,14187
29/03/2016,Premises & Programme Management,3184250,"Repairs, maintenance and other costs",30100,Premises Repairs and Maintenance,£300.00,36,Intec,14358
29/03/2016,Human Resources,3184240,Employee Insurance and other employee costs,10100,"Medical, Dental and Optical",£255.00,842,Psicon Ltd,21054
29/03/2016,Human Resources,3184242,Employee Insurance and other employee costs,10100,"Medical, Dental and Optical",£330.00,842,Psicon Ltd,21124
29/03/2016,Information Systems & communications,3184220,Communications and computing,52302,Computer Software,"£1,925.00",1040,Vector Command,1711
29/03/2016,Facilities Stores & Procurement,3184209,Equipment and supplies,50801,Catering Equipment,£269.99,1132,Kent Commercial Services,I2522794
29/03/2016,Community Safety,3184208,Other supplies and services,52701,Grants and Contributions,"£3,000.00",1170,Kent County Council,400013107
29/03/2016,"Corporate Policy, Communications & Marketing",3184200,Equipment and supplies,51000,Printing,£326.00,1418,PB Group Ltd,45972
29/03/2016,Community Safety,3183973,Other supplies and services,52701,Grants and Contributions,£293.98,1686,DIAmond Advanced Motorists Ltd,9292
29/03/2016,Facilities Stores & Procurement,3184201,Utility costs,30200,Energy Costs - Fuel Oil,"£1,077.08",2590,KCS Laser,F3890359
29/03/2016,Transport and Operational Support,3184197,Vehicle purchase and running costs,40301,Vehicle fuel,"£5,744.38",2590,KCS Laser,F3890356
29/03/2016,Transport and Operational Support,3184198,Vehicle purchase and running costs,40301,Vehicle fuel,"£5,568.76",2590,KCS Laser,F3890357
29/03/2016,Transport and Operational Support,3184199,Vehicle purchase and running costs,40301,Vehicle fuel,"£2,434.58",2590,KCS Laser,F3890358
29/03/2016,Transport and Operational Support,3184238,Equipment and supplies,50200,Operational Equipment,"£3,465.00",3409,Supply + Limited,25001
29/03/2016,Information Systems & communications,3184247,Communications and computing,52304,Computer Technical Services,"£46,656.06",3578,Unit 4 Business Software Ltd,20000000240
29/03/2016,Training & Development,3184212,Training Expenses,10600,Professional Staff  Exam & Course Fees,"£1,600.00",3717,ABC Health & Safety Ltd,4968
29/03/2016,Information Systems & communications,3184234,Communications and computing,52302,Computer Software,"£2,268.00",3868,Texthelp Systems Ltd,40593
29/03/2016,Transport and Operational Support,3184194,"Salaries, allowances and on-costs",450,Service Support Staff Agency Staff,£312.00,4185,HR GO Recruitment Ltd,629961
29/03/2016,Corporate Management & Member Services,3184228,Other supplies and services,52400,Conference Expenses,£300.00,4257,iESE Transformation Ltd,244
29/03/2016,Finance,3184237,Fees and services,52700,Subscriptions to Organisations,£300.00,4321,PSTAX of LAVAT Consulting LTD,103712
29/03/2016,Information Systems & communications,3184249,Communications and computing,52302,Computer Software,"£4,500.00",4360,Dotted Eyes Ltd,18806
30/03/2016,Premises & Programme Management,3184290,"Repairs, maintenance and other costs",30100,Premises Repairs and Maintenance,£485.00,36,Intec,14451
30/03/2016,Premises & Programme Management,3184293,"Repairs, maintenance and other costs",30100,Premises Repairs and Maintenance,£286.00,36,Intec,14364
30/03/2016,Premises & Programme Management,3184296,"Repairs, maintenance and other costs",30100,Premises Repairs and Maintenance,£921.00,36,Intec,14226
30/03/2016,Premises & Programme Management,3184297,"Repairs, maintenance and other costs",30100,Premises Repairs and Maintenance,"£1,559.60",36,Intec,14450
30/03/2016,Premises & Programme Management,3184299,"Repairs, maintenance and other costs",30100,Premises Repairs and Maintenance,£556.50,36,Intec,14443
30/03/2016,Premises & Programme Management,3184300,"Repairs, maintenance and other costs",30100,Premises Repairs and Maintenance,£327.00,36,Intec,14449
30/03/2016,Premises & Programme Management,3184302,"Repairs, maintenance and other costs",30100,Premises Repairs and Maintenance,"£1,093.00",36,Intec,14453
30/03/2016,Premises & Programme Management,3184283,"Repairs, maintenance and other costs",30100,Premises Repairs and Maintenance,£253.11,63,W S Parsons Ltd,002708TF
30/03/2016,Premises & Programme Management,3184280,Capital Spend,CP101,Building Works,£481.29,63,W S Parsons Ltd,002650TF
30/03/2016,Transport and Operational Support,3184248,Vehicle purchase and running costs,40200,Vehicle Consumables,£290.50,116,Angloco Ltd,OP/I036457
30/03/2016,Information Systems & communications,3184305,Communications and computing,52302,Computer Software,"£230,676.82",267,Civica Services Ltd,1045734
30/03/2016,Community Safety,3184218,Other supplies and services,52701,Grants and Contributions,£432.00,1132,Kent Commercial Services,I2522917
30/03/2016,Finance,3184258,Fees and services,51301,Bought In / Contracted Out Services,"£76,769.56",1170,Kent County Council,600013005
30/03/2016,Community Safety,3184317,Other supplies and services,52701,Grants and Contributions,£333.33,3405,MotorSport Vision Ltd,SI-043741
30/03/2016,Community Safety,3184318,Other supplies and services,52701,Grants and Contributions,£333.33,3405,MotorSport Vision Ltd,SI-043739
30/03/2016,Community Safety,3184319,Other supplies and services,52701,Grants and Contributions,£333.33,3405,MotorSport Vision Ltd,SI-043737
30/03/2016,Transport and Operational Support,3184239,Equipment and supplies,50200,Operational Equipment,"£14,875.00",3409,Supply + Limited,25002
30/03/2016,Facilities Stores & Procurement,3184256,Communications and computing,52304,Computer Technical Services,£647.15,4036,CGI IT UK Ltd,GB2400012844
30/03/2016,Facilities Stores & Procurement,3184263,"Repairs, maintenance and other costs",30104,Grounds maintenance,£969.83,4063,Mark Walker (Grounds Maintenance) Ltd,122369
30/03/2016,Premises & Programme Management,3184214,"Repairs, maintenance and other costs",30100,Premises Repairs and Maintenance,£285.00,4176,PBA Consulting,6036/14144.INV.05
30/03/2016,Premises & Programme Management,3184215,Capital Spend,CP100,Fees,"£7,000.00",4350,eDriving Solutions Ltd,INV-0724
31/03/2016,Premises & Programme Management,3184217,"Repairs, maintenance and other costs",30100,Premises Repairs and Maintenance,£454.00,36,Intec,14275
31/03/2016,Premises & Programme Management,3184251,"Repairs, maintenance and other costs",30100,Premises Repairs and Maintenance,£436.00,36,Intec,14274
31/03/2016,Premises & Programme Management,3184354,"Repairs, maintenance and other costs",30100,Premises Repairs and Maintenance,£686.69,36,Intec,14427
31/03/2016,Premises & Programme Management,3184360,"Repairs, maintenance and other costs",30100,Premises Repairs and Maintenance,£310.00,36,Intec,14432
31/03/2016,Premises & Programme Management,3184369,"Repairs, maintenance and other costs",30100,Premises Repairs and Maintenance,£530.00,36,Intec,14437
31/03/2016,Premises & Programme Management,3184380,"Repairs, maintenance and other costs",30100,Premises Repairs and Maintenance,£250.00,36,Intec,14445
31/03/2016,Premises & Programme Management,3184384,"Repairs, maintenance and other costs",30100,Premises Repairs and Maintenance,£303.00,36,Intec,14405
31/03/2016,Premises & Programme Management,3184388,"Repairs, maintenance and other costs",30100,Premises Repairs and Maintenance,£342.00,36,Intec,14409
31/03/2016,Premises & Programme Management,3184391,"Repairs, maintenance and other costs",30100,Premises Repairs and Maintenance,£250.00,36,Intec,14411
31/03/2016,Premises & Programme Management,3184393,"Repairs, maintenance and other costs",30100,Premises Repairs and Maintenance,£556.00,36,Intec,14412
31/03/2016,Premises & Programme Management,3184394,"Repairs, maintenance and other costs",30100,Premises Repairs and Maintenance,£319.38,36,Intec,14141
31/03/2016,Premises & Programme Management,3184396,"Repairs, maintenance and other costs",30100,Premises Repairs and Maintenance,"£1,565.00",36,Intec,14076
31/03/2016,Premises & Programme Management,3184397,"Repairs, maintenance and other costs",30100,Premises Repairs and Maintenance,£300.00,36,Intec,14414
31/03/2016,Premises & Programme Management,3184400,"Repairs, maintenance and other costs",30100,Premises Repairs and Maintenance,£490.61,36,Intec,14417
31/03/2016,Premises & Programme Management,3184403,"Repairs, maintenance and other costs",30100,Premises Repairs and Maintenance,£411.00,36,Intec,14420
31/03/2016,Facilities Stores & Procurement,3184288,"Repairs, maintenance and other costs",30100,Premises Repairs and Maintenance,£403.57,63,W S Parsons Ltd,002718TF
31/03/2016,Premises & Programme Management,3184161,"Repairs, maintenance and other costs",30100,Premises Repairs and Maintenance,"£1,143.66",63,W S Parsons Ltd,002603TF
31/03/2016,Premises & Programme Management,3184162,"Repairs, maintenance and other costs",30100,Premises Repairs and Maintenance,£733.34,63,W S Parsons Ltd,002630TF
31/03/2016,Premises & Programme Management,3184164,"Repairs, maintenance and other costs",30100,Premises Repairs and Maintenance,£436.94,63,W S Parsons Ltd,002673TF
31/03/2016,Premises & Programme Management,3184271,"Repairs, maintenance and other costs",30100,Premises Repairs and Maintenance,£289.64,63,W S Parsons Ltd,002447TF
31/03/2016,Premises & Programme Management,3184276,"Repairs, maintenance and other costs",30100,Premises Repairs and Maintenance,£401.66,63,W S Parsons Ltd,002609TF
31/03/2016,Transport and Operational Support,3184387,Vehicle purchase and running costs,40200,Vehicle Consumables,"£1,955.42",116,Angloco Ltd,OP/I036477
31/03/2016,Transport and Operational Support,3184387,Vehicle purchase and running costs,40201,Vehicle Maintenance,"£3,747.40",116,Angloco Ltd,OP/I036477
31/03/2016,Transport and Operational Support,3184338,Vehicle purchase and running costs,40200,Vehicle Consumables,"£1,547.33",646,W J King (Garages) Ltd,30436586
31/03/2016,Transport and Operational Support,3184338,Vehicle purchase and running costs,40201,Vehicle Maintenance,£538.69,646,W J King (Garages) Ltd,30436586
31/03/2016,Premises & Programme Management,3184222,Capital Spend,CP101,Building Works,£511.35,1132,Kent Commercial Services,I2523660
31/03/2016,Premises & Programme Management,3184227,Capital Spend,CP101,Building Works,£511.35,1132,Kent Commercial Services,I2523496
31/03/2016,Finance,3182786,Fees and services,51301,Bought In / Contracted Out Services,"£25,300.00",1170,Kent County Council,600012722
31/03/2016,Training & Development,3184325,Training Expenses,10500,Operational Staff Exam & Course Fees,£350.00,1971,IOSH Services Ltd,ISL152650
31/03/2016,Facilities Stores & Procurement,3184410,Utility costs,30201,Energy Costs - Electricity,"£2,000.02",2590,KCS Laser,E3891633
31/03/2016,Training & Development,3184407,Equipment and supplies,50101,"Books, Stationery & Office Equipment",£800.00,2720,IOSH Services Ltd (Books),54547
31/03/2016,Corporate Management & Member Services,3184357,Fees and services,51200,External Audit Fee,"£8,902.00",3975,Grant Thornton UK LLP,8499132
31/03/2016,Transport and Operational Support,3184409,Equipment and supplies,50900,PPE - Operational,£958.99,4079,Ballyclare Ltd,772248
31/03/2016,Transport and Operational Support,3184418,Equipment and supplies,50900,PPE - Operational,"£55,464.01",4079,Ballyclare Ltd,772247
31/03/2016,Premises & Programme Management,3184351,Capital Spend,CP101,Building Works,£500.00,4176,PBA Consulting,6041/15244.INV.01
31/03/2016,Premises & Programme Management,3184257,Capital Spend,CP101,Building Works,"£503,531.35",4205,Walker Construction (UK) Ltd,35383
31/03/2016,Community Safety,3184315,Capital Spend,CP101,Building Works,"£1,000.00",4312,Phoenix Crew & Production Ltd,101968
31/03/2016,Transport and Operational Support,3184419,Vehicle purchase and running costs,40200,Vehicle Consumables,£326.30,1213,Scania (Great Britain) Ltd,24600162
31/03/2016,Premises & Programme Management,3184422,"Repairs, maintenance and other costs",30100,Premises Repairs and Maintenance,"£1,475.00",3473,Hydro Descaling Ltd,81815
31/03/2016,Transport and Operational Support,3184421,"Repairs, maintenance and other costs",30500,Contract Cleaning,£431.00,4041,Grade One Commercial Cleaning Services Ltd,130310
05/04/2016,Premises & Programme Management,3184279,"Repairs, maintenance and other costs",30100,Premises Repairs and Maintenance,"£1,361.65",63,W S Parsons Ltd,002614TF
05/04/2016,Transport and Operational Support,3184426,Vehicle purchase and running costs,40203,Tyres,"£4,674.72",135,ATS Euromaster Ltd,A9980115751
05/04/2016,Transport and Operational Support,3184230,Capital Spend,CV303,Select Pumping Appliance,"£56,673.00",607,John Dennis Coachbuilders Ltd,40925
05/04/2016,Transport and Operational Support,3184232,Capital Spend,CV303,Select Pumping Appliance,"£56,673.00",607,John Dennis Coachbuilders Ltd,40926
05/04/2016,Premises & Programme Management,3184435,"Repairs, maintenance and other costs",30100,Premises Repairs and Maintenance,£445.00,3193,Astral Ltd,8189
05/04/2016,Premises & Programme Management,3184436,"Repairs, maintenance and other costs",30100,Premises Repairs and Maintenance,£290.00,3193,Astral Ltd,8190
05/04/2016,Premises & Programme Management,3184441,"Repairs, maintenance and other costs",30100,Premises Repairs and Maintenance,"£2,820.00",3193,Astral Ltd,8195
05/04/2016,Premises & Programme Management,3184443,"Repairs, maintenance and other costs",30100,Premises Repairs and Maintenance,£350.00,3193,Astral Ltd,8197
05/04/2016,Premises & Programme Management,3184446,"Repairs, maintenance and other costs",30100,Premises Repairs and Maintenance,£750.00,3193,Astral Ltd,8201
05/04/2016,Premises & Programme Management,3184447,"Repairs, maintenance and other costs",30100,Premises Repairs and Maintenance,£972.00,3193,Astral Ltd,8202
05/04/2016,Premises & Programme Management,3184449,"Repairs, maintenance and other costs",30100,Premises Repairs and Maintenance,£600.00,3193,Astral Ltd,8204
05/04/2016,Premises & Programme Management,3184452,"Repairs, maintenance and other costs",30100,Premises Repairs and Maintenance,£320.00,3193,Astral Ltd,8207
05/04/2016,Premises & Programme Management,3184427,Capital Spend,CP101,Building Works,"£7,380.00",3193,Astral Ltd,8180
05/04/2016,Premises & Programme Management,3184439,Capital Spend,CP101,Building Works,"£2,005.20",3193,Astral Ltd,8193
05/04/2016,Premises & Programme Management,3184440,Capital Spend,CP101,Building Works,"£2,394.00",3193,Astral Ltd,8194
05/04/2016,Premises & Programme Management,3184442,Capital Spend,CP101,Building Works,£276.00,3193,Astral Ltd,8196
05/04/2016,Transport and Operational Support,3184423,Vehicle purchase and running costs,40301,Vehicle fuel,"£9,529.32",3834,Allstar Business Solutions Ltd,E2006386436
05/04/2016,Facilities Stores & Procurement,3184219,"Repairs, maintenance and other costs",30500,Contract Cleaning,"£3,239.06",4042,Superclean Services Wothorpe Limited,68896
05/04/2016,Transport and Operational Support,3184425,"Salaries, allowances and on-costs",450,Service Support Staff Agency Staff,£279.50,4185,HR GO Recruitment Ltd,630769
05/04/2016,Premises & Programme Management,3184454,"Repairs, maintenance and other costs",30100,Premises Repairs and Maintenance,"£2,186.78",4251,Aluminium Door & Window Solutions Ltd,31032016273
05/04/2016,Premises & Programme Management,3184455,"Repairs, maintenance and other costs",30100,Premises Repairs and Maintenance,"£3,521.37",4251,Aluminium Door & Window Solutions Ltd,31032016274
07/04/2016,Premises & Programme Management,3184294,"Repairs, maintenance and other costs",30100,Premises Repairs and Maintenance,£460.00,36,Intec,14106
07/04/2016,Premises & Programme Management,3184301,"Repairs, maintenance and other costs",30100,Premises Repairs and Maintenance,"£1,344.00",36,Intec,14452
07/04/2016,Premises & Programme Management,3184373,"Repairs, maintenance and other costs",30100,Premises Repairs and Maintenance,£450.00,36,Intec,14440
07/04/2016,Premises & Programme Management,3184375,"Repairs, maintenance and other costs",30100,Premises Repairs and Maintenance,£774.44,36,Intec,14441
07/04/2016,Premises & Programme Management,3184286,"Repairs, maintenance and other costs",30100,Premises Repairs and Maintenance,£425.97,63,W S Parsons Ltd,002715TF
07/04/2016,Premises & Programme Management,3184413,"Repairs, maintenance and other costs",30100,Premises Repairs and Maintenance,"£1,343.93",63,W S Parsons Ltd,002271TF
07/04/2016,Premises & Programme Management,3184414,"Repairs, maintenance and other costs",30100,Premises Repairs and Maintenance,"£1,148.07",63,W S Parsons Ltd,002644TF
07/04/2016,Premises & Programme Management,3184417,"Repairs, maintenance and other costs",30100,Premises Repairs and Maintenance,£451.07,63,W S Parsons Ltd,002710TF
07/04/2016,Corporate Management & Member Services,3184469,"Salaries, allowances and on-costs",450,Service Support Staff Agency Staff,£384.60,762,New Appointments Group Ltd,217746
07/04/2016,Corporate Management & Member Services,3184470,"Salaries, allowances and on-costs",450,Service Support Staff Agency Staff,£359.40,762,New Appointments Group Ltd,217745
07/04/2016,Financing Costs,3184479,Other supplies and services,52701,Grants and Contributions,"£6,756.00",1167,Canterbury City Council,2219193
07/04/2016,Premises & Programme Management,3184432,"Repairs, maintenance and other costs",30100,Premises Repairs and Maintenance,"£1,084.00",3193,Astral Ltd,8185
07/04/2016,Premises & Programme Management,3184456,"Repairs, maintenance and other costs",30100,Premises Repairs and Maintenance,£320.00,3193,Astral Ltd,8209
07/04/2016,Premises & Programme Management,3184429,Capital Spend,CP101,Building Works,"£4,376.00",3193,Astral Ltd,8182
07/04/2016,Training & Development,3183983,Training Expenses,10500,Operational Staff Exam & Course Fees,"£1,835.00",3324,OPP Limited,INV0600756
07/04/2016,Training & Development,3183983,Training Expenses,10600,Professional Staff  Exam & Course Fees,"£1,835.00",3324,OPP Limited,INV0600756
07/04/2016,Human Resources,3184465,Fees and services,51300,Professional Fees,"£6,167.57",3675,Edenred (UK Group) Ltd,IN124246815
07/04/2016,Premises & Programme Management,3184336,Capital Spend,CN100,New Build Design fees,"£5,406.17",3926,Pick Everard,34471
07/04/2016,Premises & Programme Management,3184412,Capital Spend,CN100,New Build Design fees,"£5,406.17",3926,Pick Everard,33520
07/04/2016,Training & Development,3184309,Training Expenses,10500,Operational Staff Exam & Course Fees,£476.00,4067,Fit4training Ltd,725
07/04/2016,Insurance Services,3184474,Employee Insurance and other employee costs,10400,Employee Related Insurance - Premium,"£11,492.66",4307,Fire & Rescue Indemnity Company Ltd,FRIC15016
07/04/2016,Insurance Services,3184474,"Repairs, maintenance and other costs",30700,Premises Related Insurance - Premium,"£2,052.00",4307,Fire & Rescue Indemnity Company Ltd,FRIC15016
07/04/2016,Insurance Services,3184474,Vehicle purchase and running costs,40302,Vehicle Insurance Premium,"£14,324.00",4307,Fire & Rescue Indemnity Company Ltd,FRIC15016
07/04/2016,Insurance Services,3184474,Other supplies and services,52800,Miscellaneous Insurance - Premium,"£6,696.34",4307,Fire & Rescue Indemnity Company Ltd,FRIC15016
07/04/2016,Information Systems & communications,3184259,Communications and computing,52101,Mobile Telephone Costs,"£2,649.21",81,O2 (UK) Limited,84199967
07/04/2016,Information Systems & communications,3184260,Communications and computing,52101,Mobile Telephone Costs,£418.28,81,O2 (UK) Limited,84200943
07/04/2016,Information Systems & communications,3184189,Communications and computing,52100,Telephone & Fax Costs,"£3,051.75",201,British Telecom Plc,VP 72855170 M18401 YB
07/04/2016,Human Resources,3184468,"Salaries, allowances and on-costs",450,Service Support Staff Agency Staff,£444.38,762,New Appointments Group Ltd,217747
07/04/2016,Facilities Stores & Procurement,3184188,Utility costs,30300,External Rent & Room Hire,£664.00,1170,Kent County Council,OH47431
07/04/2016,Corporate Management & Member Services,3184188,Equipment and supplies,50803,External Refreshments at Meetings,£965.00,1170,Kent County Council,OH47431
07/04/2016,Premises & Programme Management,3184463,"Repairs, maintenance and other costs",30100,Premises Repairs and Maintenance,£320.00,3193,Astral Ltd,8217
07/04/2016,Community Safety,3184343,Other supplies and services,52701,Grants and Contributions,£333.33,3405,MotorSport Vision Ltd,SI-043742
07/04/2016,Community Safety,3184345,Other supplies and services,52701,Grants and Contributions,£333.33,3405,MotorSport Vision Ltd,SI-043740
07/04/2016,Community Safety,3184346,Other supplies and services,52701,Grants and Contributions,£333.33,3405,MotorSport Vision Ltd,SI-043738
07/04/2016,Premises & Programme Management,3184467,Capital Spend,CP100,Fees,"£1,150.00",4176,PBA Consulting,6040/15229/15230.INV.01
08/04/2016,Premises & Programme Management,3184533,"Repairs, maintenance and other costs",30100,Premises Repairs and Maintenance,£532.56,36,Intec,14270
08/04/2016,Transport and Operational Support,3184527,Equipment and supplies,50200,Operational Equipment,"£1,971.00",116,Angloco Ltd,OP/I036527
08/04/2016,Training & Development,3184531,Equipment and supplies,50400,Training Equipment,"£1,374.00",874,Rother Valley Timber Ltd,RI253627
08/04/2016,Community Safety,3184528,Equipment and supplies,50200,Operational Equipment,"£8,624.00",3674,Sprue Safety Products Ltd,1090660
08/04/2016,Corporate Management & Member Services,3184221,Equipment and supplies,50803,External Refreshments at Meetings,£302.00,4171,Thyme 2 Dine Catering Services,10658
11/04/2016,Transport and Operational Support,3184541,Vehicle purchase and running costs,40200,Vehicle Consumables,£423.68,937,South Eastern Auto Elec Sus,10166117
11/04/2016,Facilities Stores & Procurement,3184540,"Repairs, maintenance and other costs",30400,Water services,£404.32,940,Southern Water,7.06001E+11
11/04/2016,Premises & Programme Management,3184428,"Repairs, maintenance and other costs",30100,Premises Repairs and Maintenance,"£4,668.00",3193,Astral Ltd,8181
11/04/2016,Premises & Programme Management,3184430,"Repairs, maintenance and other costs",30100,Premises Repairs and Maintenance,£420.00,3193,Astral Ltd,8183
11/04/2016,"Corporate Policy, Communications & Marketing",3184312,Fees and services,51300,Professional Fees,£463.50,4246,Gorkana Group Ltd,GB_44442
12/04/2016,Transport and Operational Support,3184608,Vehicle purchase and running costs,40201,Vehicle Maintenance,£260.51,223,Caffyns Plc,230992
12/04/2016,Premises & Programme Management,3184614,Capital Spend,CP101,Building Works,"£1,075.00",660,Le Maitre Limited,7636
12/04/2016,Corporate Management & Member Services,3184551,"Salaries, allowances and on-costs",450,Service Support Staff Agency Staff,£359.40,762,New Appointments Group Ltd,217624
12/04/2016,Corporate Management & Member Services,3184552,"Salaries, allowances and on-costs",450,Service Support Staff Agency Staff,£384.60,762,New Appointments Group Ltd,217625
12/04/2016,Premises & Programme Management,3184497,"Repairs, maintenance and other costs",30100,Premises Repairs and Maintenance,£650.00,3962,Fire Control Services Ltd,GL0659
12/04/2016,Facilities Stores & Procurement,3184543,"Repairs, maintenance and other costs",30400,Water services,£350.06,4243,South East Water Ltd trading as South East Water Choices,30484057-7 Bill No 5
12/04/2016,Human Resources,3184609,Employee Insurance and other employee costs,10100,"Medical, Dental and Optical",£270.00,4317,Team Prevent,14216
12/04/2016,Transport and Operational Support,3184607,Equipment and supplies,50200,Operational Equipment,"£5,130.00",4349,Jafco Tools Ltd,2645
13/04/2016,Premises & Programme Management,3184667,"Repairs, maintenance and other costs",30100,Premises Repairs and Maintenance,"£5,052.00",36,Intec,14495
13/04/2016,Premises & Programme Management,3184668,"Repairs, maintenance and other costs",30100,Premises Repairs and Maintenance,"£1,690.00",36,Intec,14489
13/04/2016,Premises & Programme Management,3184669,"Repairs, maintenance and other costs",30100,Premises Repairs and Maintenance,£310.00,36,Intec,14490
13/04/2016,Premises & Programme Management,3184670,"Repairs, maintenance and other costs",30100,Premises Repairs and Maintenance,£549.80,36,Intec,14491
13/04/2016,Premises & Programme Management,3184671,"Repairs, maintenance and other costs",30100,Premises Repairs and Maintenance,£376.00,36,Intec,14493
13/04/2016,Premises & Programme Management,3184673,"Repairs, maintenance and other costs",30100,Premises Repairs and Maintenance,£332.00,36,Intec,14513
13/04/2016,Premises & Programme Management,3184706,"Repairs, maintenance and other costs",30100,Premises Repairs and Maintenance,£520.30,36,Intec,14470
13/04/2016,Premises & Programme Management,3184707,"Repairs, maintenance and other costs",30100,Premises Repairs and Maintenance,£561.00,36,Intec,14469
13/04/2016,Premises & Programme Management,3184712,"Repairs, maintenance and other costs",30100,Premises Repairs and Maintenance,£419.00,36,Intec,14454
13/04/2016,Premises & Programme Management,3184720,"Repairs, maintenance and other costs",30100,Premises Repairs and Maintenance,£415.00,36,Intec,14504
13/04/2016,Premises & Programme Management,3184721,"Repairs, maintenance and other costs",30100,Premises Repairs and Maintenance,"£1,590.00",36,Intec,14503
13/04/2016,Corporate Management & Member Services,3184773,"Salaries, allowances and on-costs",450,Service Support Staff Agency Staff,£480.75,762,New Appointments Group Ltd,217861
13/04/2016,Facilities Stores & Procurement,3184574,"Repairs, maintenance and other costs",30400,Water services,£325.13,940,Southern Water,7.22001E+11
13/04/2016,Facilities Stores & Procurement,3184575,"Repairs, maintenance and other costs",30400,Water services,£471.75,940,Southern Water,11667054.59
13/04/2016,Facilities Stores & Procurement,3184576,"Repairs, maintenance and other costs",30400,Water services,£275.80,940,Southern Water,11407586.59
13/04/2016,Facilities Stores & Procurement,3184578,"Repairs, maintenance and other costs",30400,Water services,£321.29,940,Southern Water,7.03002E+11
13/04/2016,Facilities Stores & Procurement,3184580,"Repairs, maintenance and other costs",30400,Water services,£765.12,940,Southern Water,7.04002E+11
13/04/2016,Facilities Stores & Procurement,3184581,"Repairs, maintenance and other costs",30400,Water services,£325.13,940,Southern Water,7.18001E+11
13/04/2016,Facilities Stores & Procurement,3184582,"Repairs, maintenance and other costs",30400,Water services,£325.13,940,Southern Water,7.14001E+11
13/04/2016,Facilities Stores & Procurement,3184583,"Repairs, maintenance and other costs",30400,Water services,£325.13,940,Southern Water,7.00002E+11
13/04/2016,Facilities Stores & Procurement,3184584,"Repairs, maintenance and other costs",30400,Water services,£744.71,1000,Thames Water Utilities Ltd,53754-79098 2016/17
13/04/2016,Information Systems & communications,3184500,Communications and computing,52101,Mobile Telephone Costs,"£1,496.31",1083,Wireless Logic Ltd,AP/550475
13/04/2016,Premises & Programme Management,3184655,Utility costs,30302,Non Domestic Rates & Council Tax,"£36,778.00",1108,Dartford Borough Council,21098424.59
13/04/2016,Premises & Programme Management,3184656,Utility costs,30302,Non Domestic Rates & Council Tax,"£5,445.00",1108,Dartford Borough Council,2110990X 2016/17
13/04/2016,Premises & Programme Management,3184566,Utility costs,30302,Non Domestic Rates & Council Tax,"£39,014.50",1112,Gravesham Borough Council,502285P 2016/17
13/04/2016,Premises & Programme Management,3184648,Utility costs,30302,Non Domestic Rates & Council Tax,"£30,068.50",1119,Maidstone Borough Council (Non Domestic Rates),3171090.588
